Workbook

Sheet 2019 JAN
A1: Program Name | D1: 3S - ABC Residential Services | F1: Provider ID | H1: =VLOOKUP(D1,[13]List!A2:B132,2,FALSE) -> 555777999 | L1: FOR PROVIDER USE ONLY DO NOT SUBMIT WITH COST REPORT | AK1: ANNUAL SERVICES PAID BY PROGRAM TYPE | AO1: =IF(AN1="","",AH2+AI2+AJ2) ->  | AR1: PROFESSIONAL SERVICES | AV1: Professional Svs Paid Calculation | AW1: =SUM(AV4:AV40) -> 0
A2: Report Period | D2: 2019-01-01 | F2: 2019-12-31 | J2: =IF($AN$1="",SUM(J4:J39),SUMIF($E$4:$E$39,$AN$1,J4:J39)) -> 9490 | K2: =IF($AN$1="",SUM(K4:K39),SUMIF($E$4:$E$39,$AN$1,K4:K39)) -> 26 | AG2: Annual Totals | AH2: =IF($AN$1="",SUM(AH4:AH39),SUMIF($E$4:$E$39,$AN$1,AH4:AH39)) -> 2126008.2 | AI2: 39536.8 | AJ2: 46026.5 | AK2: 11461 | AL2: 2223032.5 | AM2: 418158.6 | AN2: 15943.2 | AO2: 9909.75 | AP2: 0 | AQ2: 15220.5 | AR2: 29900.8 | AS2: 489132.85 | AT2: 2712165.35 | AU2: 2712165.35 | AV2: 0 | AW2: 9490
A3: Client Name (b) | B3: House or Cluster | C3: Client P1 ID (c) | D3: P1 Service Code/RAC (w) | E3: Program Type | F3: Rate Effective Date (d) | G3: Actual Start Date (Overrides Rate Effective Date) | H3: Rate End Date | I3: Actual End Date (Overrides Rate End Date) | J3: Resid Days Paid | K3: Client Count | L3: ISS Tier Level (e) | M3: ISS Daily Tier Rate (f) | N3: Prof Svs Hrs PCD 1 (g) | O3: Prof Svs Hrly Rate 1 (h) | P3: Prof Svs Hrs PCD 2 (i) | Q3: Prof Svs Hrly Rate 2 (j) | R3: Prof Svs Hrs PCD 3 | S3: Prof Svs Hrly Rate 3 | T3: Prof Svs Hrs PCD 4 | U3: Prof Svs Hrly Rate 4 | V3: ISS Prof Svs Daily Rate | W3: ISS CRST Tier Rate (l) | X3: ISS Hold Harmless Rate (m) | Y3: Total ISS Daily Rate | Z3: Admin Tier Rate (o) | AA3: Admin Hold Harmless (p) | AB3: Admin CRST Tier Rate (q) | AC3: Admin Cert Rate (r) | AD3: Transportion Rate (s) | AE3: Other Non-ISS Rates (t) | AF3: Total Non-ISS Daily Rate | AG3: Total ISS & Non-ISS Daily Rate | AH3: Annual ISS Paid | AI3: Annual ISS CRST Paid | AJ3: Annual ISS Hold Harmless Paid | AK3: Annual ISS Prof Svs Paid | AL3: Total Annual ISS Paid | AM3: Annual Admin Paid | AN3: Annual Admin Hold Harmless Paid | AO3: Annual Admin CRST Paid | AP3: Annual Admin Cert Paid | AQ3: Annual Transportation Paid | AR3: Annual Other Non-ISS Paid | AS3: Total Annual Non-ISS Paid | AT3: Annual ISS & Non-ISS Paid | AU3: Total ISS & Non-ISS Paid per Client | AV3: Prof Svs Paid Calculation | AW3: Total Days Paid per Client
A4: Client A | B4: House 1 | C4: 500 | D4: SA722-3603 GH CORE | E4: GH Group Home | F4: 2019-01-01 | H4: 2019-12-31 | J4: =IF(F4>0,+IF(I4>0,I4,H4)-IF(G4>0,G4,F4)+1,0) -> 365 | K4: =IF(C4<=0,"",IF(C4=C3,"",1)) -> 1 | L4: 4 | M4: 291.71 | R4: 0 | S4: 0 | T4: 0 | U4: 0 | V4: =+N4*O4+P4*Q4 -> 0 | W4: 5.42 | X4: 4.85 | Y4: =(M4+V4+W4+X4) -> 301.98 | Z4: 57.97 | AA4: 1.68 | AB4: 1.36 | AC4: 0 | AD4: 0 | AE4: 0 | AF4: =SUM(Z4:AE4) -> 61.01 | AG4: =+Y4+AF4 -> 362.99 | AH4: =M4*J4 -> 106474.15 | AI4: =W4*J4 -> 1978.3 | AJ4: =X4*J4 -> 1770.25 | AK4: =V4*J4 -> 0 | AL4: =$J4*Y4 -> 110222.7 | AM4: =$J4*Z4 -> 21159.05 | AN4: =$J4*AA4 -> 613.2 | AO4: =$J4*AB4 -> 496.4 | AP4: =$J4*AC4 -> 0 | AQ4: =J4*AD4 -> 0 | AR4: =$J4*AE4 -> 0 | AS4: =$J4*AF4 -> 22268.65 | AT4: =AL4+AS4 -> 132491.35 | AU4: =IF(A5=A4,0,SUMIF($A$4:$A$4802,$A4,AL$4:AL$4802))+IF(A5=A4,0,SUMIF($A$4:$A$4802,$A4,AS$4:AS$4802)) -> 132491.35 | AV4: =IF($O4=$AU$1,$N4*$O4*$J4,0)+IF($Q4=$AU$1,$P4*$Q4*$J4,0) -> 0 | AW4: =IF(A5=A4,0,SUMIF($A$4:$A$4802,$A4,J$4:J$4802))+IF(A5=A4,0,SUMIF($A$4:$A$4802,$A4)) -> 365
A5: Client B | B5: House 1 | C5: 501 | D5: SA722-3603 GH CORE | E5: GH Group Home | F5: 2019-01-01 | H5: 2019-12-31 | J5: 365 | K5: 1 | L5: 3 | M5: 223.56 | R5: 0 | S5: 0 | T5: 0 | U5: 0 | V5: 0 | W5: 4.16 | X5: 4.85 | Y5: 232.57 | Z5: 56.63 | AA5: 1.68 | AB5: 1.04 | AC5: 0 | AD5: 0 | AE5: 0 | AF5: 59.35 | AG5: 291.92 | AH5: 81599.4 | AI5: 1518.4 | AJ5: 1770.25 | AK5: 0 | AL5: 84888.05 | AM5: 20669.95 | AN5: 613.2 | AO5: 379.6 | AP5: 0 | AQ5: 0 | AR5: 0 | AS5: 21662.75 | AT5: 106550.8 | AU5: 106550.8 | AV5: 0 | AW5: 365
A6: Client C | B6: House 1 | C6: 502 | D6: SA722-3603 GH CORE | E6: GH Group Home | F6: 2019-01-01 | H6: 2019-12-31 | J6: 365 | K6: 1 | L6: 3 | M6: 223.56 | R6: 0 | S6: 0 | T6: 0 | U6: 0 | V6: 0 | W6: 4.16 | X6: 4.85 | Y6: 232.57 | Z6: 56.63 | AA6: 1.68 | AB6: 1.04 | AC6: 0 | AD6: 0 | AE6: 0 | AF6: 59.35 | AG6: 291.92 | AH6: 81599.4 | AI6: 1518.4 | AJ6: 1770.25 | AK6: 0 | AL6: 84888.05 | AM6: 20669.95 | AN6: 613.2 | AO6: 379.6 | AP6: 0 | AQ6: 0 | AR6: 0 | AS6: 21662.75 | AT6: 106550.8 | AU6: 106550.8 | AV6: 0 | AW6: 365
A7: Client D | B7: House 1 | C7: 503 | D7: SA722-3603 GH CORE | E7: GH Group Home | F7: 2019-01-01 | H7: 2019-12-31 | J7: 365 | K7: 1 | L7: 2 | M7: 144.81 | R7: 0 | S7: 0 | T7: 0 | U7: 0 | V7: 0 | W7: 2.69 | X7: 4.85 | Y7: 152.35 | Z7: 54.84 | AA7: 1.68 | AB7: 0.68 | AC7: 0 | AD7: 0 | AE7: 2.5 | AF7: 59.7 | AG7: 212.05 | AH7: 52855.65 | AI7: 981.85 | AJ7: 1770.25 | AK7: 0 | AL7: 55607.75 | AM7: 20016.6 | AN7: 613.2 | AO7: 248.2 | AP7: 0 | AQ7: 0 | AR7: 912.5 | AS7: 21790.5 | AT7: 77398.25 | AU7: 77398.25 | AV7: 0 | AW7: 365
A8: Client E | B8: House 1 | C8: 504 | D8: SA722-3905 GTH State | E8: GTH Group Training Home | F8: 2019-01-01 | H8: 2019-12-31 | J8: 365 | K8: 1 | L8: 6 | M8: 441.64 | R8: 0 | S8: 0 | T8: 0 | U8: 0 | V8: 0 | W8: 8.21 | X8: 4.85 | Y8: 454.7 | Z8: 66.43 | AA8: 1.68 | AB8: 2.06 | AC8: 0 | AD8: 0 | AE8: 2.5 | AF8: 72.67 | AG8: 527.37 | AH8: 161198.6 | AI8: 2996.65 | AJ8: 1770.25 | AK8: 0 | AL8: 165965.5 | AM8: 24246.95 | AN8: 613.2 | AO8: 751.9 | AP8: 0 | AQ8: 0 | AR8: 912.5 | AS8: 26524.55 | AT8: 192490.05 | AU8: 192490.05 | AV8: 0 | AW8: 365
A9: Client F | B9: House 2 | C9: 505 | D9: SA722-3905 GTH State | E9: GTH Group Training Home | F9: 2019-01-01 | H9: 2019-12-31 | J9: 365 | K9: 1 | L9: 4 | M9: 291.71 | R9: 0 | S9: 0 | T9: 0 | U9: 0 | V9: 0 | W9: 5.42 | X9: 4.85 | Y9: 301.98 | Z9: 57.97 | AA9: 1.68 | AB9: 1.36 | AC9: 0 | AD9: 0 | AE9: 2.5 | AF9: 63.51 | AG9: 365.49 | AH9: 106474.15 | AI9: 1978.3 | AJ9: 1770.25 | AK9: 0 | AL9: 110222.7 | AM9: 21159.05 | AN9: 613.2 | AO9: 496.4 | AP9: 0 | AQ9: 0 | AR9: 912.5 | AS9: 23181.15 | AT9: 133403.85 | AU9: 133403.85 | AV9: 0 | AW9: 365
A10: Client G | B10: House 2 | C10: 506 | D10: SA722-3905 GTH State | E10: GTH Group Training Home | F10: 2019-01-01 | H10: 2019-12-31 | J10: 365 | K10: 1 | L10: 4 | M10: 291.71 | R10: 0 | S10: 0 | T10: 0 | U10: 0 | V10: 0 | W10: 5.42 | X10: 4.85 | Y10: 301.98 | Z10: 57.97 | AA10: 1.68 | AB10: 1.36 | AC10: 0 | AD10: 0 | AE10: 0 | AF10: 61.01 | AG10: 362.99 | AH10: 106474.15 | AI10: 1978.3 | AJ10: 1770.25 | AK10: 0 | AL10: 110222.7 | AM10: 21159.05 | AN10: 613.2 | AO10: 496.4 | AP10: 0 | AQ10: 0 | AR10: 0 | AS10: 22268.65 | AT10: 132491.35 | AU10: 132491.35 | AV10: 0 | AW10: 365
A11: Client H | B11: House 2 | C11: 507 | D11: SA722-3603 GH CORE | E11: GH Group Home | F11: 2019-01-01 | H11: 2019-12-31 | J11: 365 | K11: 1 | L11: 5 | M11: 364.4 | R11: 0 | S11: 0 | T11: 0 | U11: 0 | V11: 0 | W11: 6.78 | X11: 4.85 | Y11: 376.03 | Z11: 61.72 | AA11: 1.68 | AB11: 1.69 | AC11: 0 | AD11: 0 | AE11: 0 | AF11: 65.09 | AG11: 441.12 | AH11: 133006 | AI11: 2474.7 | AJ11: 1770.25 | AK11: 0 | AL11: 137250.95 | AM11: 22527.8 | AN11: 613.2 | AO11: 616.85 | AP11: 0 | AQ11: 0 | AR11: 0 | AS11: 23757.85 | AT11: 161008.8 | AU11: 161008.8 | AV11: 0 | AW11: 365
A12: Client I | B12: House 2 | C12: 508 | D12: SA722-3603 GH CORE | E12: GH Group Home | F12: 2019-01-01 | H12: 2019-12-31 | J12: 365 | K12: 1 | L12: 3 | M12: 223.56 | R12: 0 | S12: 0 | T12: 0 | U12: 0 | V12: 0 | W12: 4.16 | X12: 4.85 | Y12: 232.57 | Z12: 56.63 | AA12: 1.68 | AB12: 1.04 | AC12: 0 | AD12: 0 | AE12: 0 | AF12: 59.35 | AG12: 291.92 | AH12: 81599.4 | AI12: 1518.4 | AJ12: 1770.25 | AK12: 0 | AL12: 84888.05 | AM12: 20669.95 | AN12: 613.2 | AO12: 379.6 | AP12: 0 | AQ12: 0 | AR12: 0 | AS12: 21662.75 | AT12: 106550.8 | AU12: 106550.8 | AV12: 0 | AW12: 365
A13: Client J | B13: House 3 | C13: 538 | D13: SA722-3603 GH CORE | E13: GH Group Home | F13: 2019-01-01 | H13: 2019-12-31 | J13: 365 | K13: 1 | L13: 3 | M13: 223.56 | R13: 0 | S13: 0 | T13: 0 | U13: 0 | V13: 0 | W13: 4.16 | X13: 4.85 | Y13: 232.57 | Z13: 56.63 | AA13: 1.68 | AB13: 1.04 | AC13: 0 | AD13: 0 | AE13: 0 | AF13: 59.35 | AG13: 291.92 | AH13: 81599.4 | AI13: 1518.4 | AJ13: 1770.25 | AK13: 0 | AL13: 84888.05 | AM13: 20669.95 | AN13: 613.2 | AO13: 379.6 | AP13: 0 | AQ13: 0 | AR13: 0 | AS13: 21662.75 | AT13: 106550.8 | AU13: 106550.8 | AV13: 0 | AW13: 365
A14: Client 01 | B14: Cluster 1 | C14: 509 | D14: SA716-3603 SL CORE | E14: SL Supported Living | F14: 2019-01-01 | H14: 2019-12-31 | J14: 365 | K14: 1 | L14: 2 | M14: 144.81 | N14: 0.2 | O14: 38.75 | R14: 0 | S14: 0 | T14: 0 | U14: 0 | V14: 7.75 | W14: 2.69 | X14: 4.85 | Y14: 160.1 | Z14: 34.02 | AA14: 1.68 | AB14: 0.68 | AC14: 0 | AD14: 2.25 | AE14: 2.5 | AF14: 41.13 | AG14: 201.23 | AH14: 52855.65 | AI14: 981.85 | AJ14: 1770.25 | AK14: 2828.75 | AL14: 58436.5 | AM14: 12417.3 | AN14: 613.2 | AO14: 248.2 | AP14: 0 | AQ14: 821.25 | AR14: 912.5 | AS14: 15012.45 | AT14: 73448.95 | AU14: 73448.95 | AV14: 0 | AW14: 365
A15: Client 02 | B15: Cluster 1 | C15: 510 | D15: SA716-3603 SL CORE | E15: SL Supported Living | F15: 2019-01-01 | H15: 2019-12-31 | J15: 365 | K15: 1 | L15: 3 | M15: 223.56 | R15: 0 | S15: 0 | T15: 0 | U15: 0 | V15: 0 | W15: 4.16 | X15: 4.85 | Y15: 232.57 | Z15: 35.81 | AA15: 1.68 | AB15: 1.04 | AC15: 0 | AD15: 2.25 | AE15: 13.87 | AF15: 54.65 | AG15: 287.22 | AH15: 81599.4 | AI15: 1518.4 | AJ15: 1770.25 | AK15: 0 | AL15: 84888.05 | AM15: 13070.65 | AN15: 613.2 | AO15: 379.6 | AP15: 0 | AQ15: 821.25 | AR15: 5062.55 | AS15: 19947.25 | AT15: 104835.3 | AU15: 104835.3 | AV15: 0 | AW15: 365
A16: Client 04 | B16: Cluster 2 | C16: 512 | D16: SA716-3603 SL CORE | E16: SL Supported Living | F16: 2019-01-01 | H16: 2019-12-31 | J16: 365 | K16: 1 | L16: 3 | M16: 223.56 | R16: 0 | S16: 0 | T16: 0 | U16: 0 | V16: 0 | W16: 4.16 | X16: 4.85 | Y16: 232.57 | Z16: 35.81 | AA16: 1.68 | AB16: 1.04 | AC16: 0 | AD16: 1.85 | AE16: 10.44 | AF16: 50.82 | AG16: 283.39 | AH16: 81599.4 | AI16: 1518.4 | AJ16: 1770.25 | AK16: 0 | AL16: 84888.05 | AM16: 13070.65 | AN16: 613.2 | AO16: 379.6 | AP16: 0 | AQ16: 675.25 | AR16: 3810.6 | AS16: 18549.3 | AT16: 103437.35 | AU16: 103437.35 | AV16: 0 | AW16: 365
A17: Client 05 | B17: Cluster 2 | C17: 513 | D17: SA716-3603 SL CORE | E17: SL Supported Living | F17: 2019-01-01 | H17: 2019-12-31 | J17: 365 | K17: 1 | L17: 3 | M17: 223.56 | R17: 0 | S17: 0 | T17: 0 | U17: 0 | V17: 0 | W17: 4.16 | X17: 4.85 | Y17: 232.57 | Z17: 35.81 | AA17: 1.68 | AB17: 1.04 | AC17: 0 | AD17: 1.88 | AE17: 2.5 | AF17: 42.91 | AG17: 275.48 | AH17: 81599.4 | AI17: 1518.4 | AJ17: 1770.25 | AK17: 0 | AL17: 84888.05 | AM17: 13070.65 | AN17: 613.2 | AO17: 379.6 | AP17: 0 | AQ17: 686.2 | AR17: 912.5 | AS17: 15662.15 | AT17: 100550.2 | AU17: 100550.2 | AV17: 0 | AW17: 365
A18: Client 07 | B18: Cluster 2 | C18: 515 | D18: SA716-3603 SL CORE | E18: SL Supported Living | F18: 2019-01-01 | H18: 2019-12-31 | J18: 365 | K18: 1 | L18: 2 | M18: 144.81 | R18: 0 | S18: 0 | T18: 0 | U18: 0 | V18: 0 | W18: 2.69 | X18: 4.85 | Y18: 152.35 | Z18: 34.02 | AA18: 1.68 | AB18: 0.68 | AC18: 0 | AD18: 2.5 | AE18: 2.5 | AF18: 41.38 | AG18: 193.73 | AH18: 52855.65 | AI18: 981.85 | AJ18: 1770.25 | AK18: 0 | AL18: 55607.75 | AM18: 12417.3 | AN18: 613.2 | AO18: 248.2 | AP18: 0 | AQ18: 912.5 | AR18: 912.5 | AS18: 15103.7 | AT18: 70711.45 | AU18: 70711.45 | AV18: 0 | AW18: 365
A19: Client 08 | B19: Cluster 2 | C19: 516 | D19: SA716-3603 SL CORE | E19: SL Supported Living | F19: 2019-01-01 | H19: 2019-12-31 | J19: 365 | K19: 1 | L19: 2 | M19: 144.81 | R19: 0 | S19: 0 | T19: 0 | U19: 0 | V19: 0 | W19: 2.69 | X19: 4.85 | Y19: 152.35 | Z19: 34.02 | AA19: 1.68 | AB19: 0.68 | AC19: 0 | AD19: 2.5 | AE19: 10.44 | AF19: 49.32 | AG19: 201.67 | AH19: 52855.65 | AI19: 981.85 | AJ19: 1770.25 | AK19: 0 | AL19: 55607.75 | AM19: 12417.3 | AN19: 613.2 | AO19: 248.2 | AP19: 0 | AQ19: 912.5 | AR19: 3810.6 | AS19: 18001.8 | AT19: 73609.55 | AU19: 73609.55 | AV19: 0 | AW19: 365
A20: Client 09 | B20: Cluster 2 | C20: 517 | D20: SA716-3603 SL CORE | E20: SL Supported Living | F20: 2019-01-01 | H20: 2019-12-31 | J20: 365 | K20: 1 | L20: 2 | M20: 144.81 | R20: 0 | S20: 0 | T20: 0 | U20: 0 | V20: 0 | W20: 2.69 | X20: 4.85 | Y20: 152.35 | Z20: 34.02 | AA20: 1.68 | AB20: 0.68 | AC20: 0 | AD20: 3.25 | AE20: 13.87 | AF20: 53.5 | AG20: 205.85 | AH20: 52855.65 | AI20: 981.85 | AJ20: 1770.25 | AK20: 0 | AL20: 55607.75 | AM20: 12417.3 | AN20: 613.2 | AO20: 248.2 | AP20: 0 | AQ20: 1186.25 | AR20: 5062.55 | AS20: 19527.5 | AT20: 75135.25 | AU20: 75135.25 | AV20: 0 | AW20: 365
A21: Client 10 | B21: Cluster 3 | C21: 518 | D21: SA716-3603 SL CORE | E21: SL Supported Living | F21: 2019-01-01 | H21: 2019-12-31 | J21: 365 | K21: 1 | L21: 3 | M21: 223.56 | N21: 0.35 | O21: 26.5 | R21: 0 | S21: 0 | T21: 0 | U21: 0 | V21: 9.275 | W21: 4.16 | X21: 4.85 | Y21: 241.845 | Z21: 35.81 | AA21: 1.68 | AB21: 1.04 | AC21: 0 | AD21: 3.2 | AE21: 7.9 | AF21: 49.63 | AG21: 291.475 | AH21: 81599.4 | AI21: 1518.4 | AJ21: 1770.25 | AK21: 3385.375 | AL21: 88273.425 | AM21: 13070.65 | AN21: 613.2 | AO21: 379.6 | AP21: 0 | AQ21: 1168 | AR21: 2883.5 | AS21: 18114.95 | AT21: 106388.375 | AU21: 106388.375 | AV21: 0 | AW21: 365
A22: Client 12 | B22: Cluster 3 | C22: 520 | D22: SA716-3603 SL CORE | E22: SL Supported Living | F22: 2019-01-01 | H22: 2019-12-31 | J22: 365 | K22: 1 | L22: 3 | M22: 223.56 | R22: 0 | S22: 0 | T22: 0 | U22: 0 | V22: 0 | W22: 4.16 | X22: 4.85 | Y22: 232.57 | Z22: 35.81 | AA22: 1.68 | AB22: 1.04 | AC22: 0 | AD22: 2.25 | AE22: 0 | AF22: 40.78 | AG22: 273.35 | AH22: 81599.4 | AI22: 1518.4 | AJ22: 1770.25 | AK22: 0 | AL22: 84888.05 | AM22: 13070.65 | AN22: 613.2 | AO22: 379.6 | AP22: 0 | AQ22: 821.25 | AR22: 0 | AS22: 14884.7 | AT22: 99772.75 | AU22: 99772.75 | AV22: 0 | AW22: 365
A23: Client 13 | B23: Cluster 3 | C23: 521 | D23: SA716-3603 SL CORE | E23: SL Supported Living | F23: 2019-01-01 | H23: 2019-12-31 | J23: 365 | K23: 1 | L23: 3 | M23: 223.56 | R23: 0 | S23: 0 | T23: 0 | U23: 0 | V23: 0 | W23: 4.16 | X23: 4.85 | Y23: 232.57 | Z23: 35.81 | AA23: 1.68 | AB23: 1.04 | AC23: 0 | AD23: 1.85 | AE23: 0 | AF23: 40.38 | AG23: 272.95 | AH23: 81599.4 | AI23: 1518.4 | AJ23: 1770.25 | AK23: 0 | AL23: 84888.05 | AM23: 13070.65 | AN23: 613.2 | AO23: 379.6 | AP23: 0 | AQ23: 675.25 | AR23: 0 | AS23: 14738.7 | AT23: 99626.75 | AU23: 99626.75 | AV23: 0 | AW23: 365
A24: Client 16 | B24: Cluster 3 | C24: 524 | D24: SA716-3603 SL CORE | E24: SL Supported Living | F24: 2019-01-01 | H24: 2019-12-31 | J24: 365 | K24: 1 | L24: 3 | M24: 223.56 | N24: 0.2 | O24: 38.75 | P24: 0.25 | Q24: 26.5 | R24: 0 | S24: 0 | T24: 0 | U24: 0 | V24: 14.375 | W24: 4.16 | X24: 4.85 | Y24: 246.945 | Z24: 35.81 | AA24: 1.68 | AB24: 1.04 | AC24: 0 | AD24: 2.5 | AE24: 2.5 | AF24: 43.53 | AG24: 290.475 | AH24: 81599.4 | AI24: 1518.4 | AJ24: 1770.25 | AK24: 5246.875 | AL24: 90134.925 | AM24: 13070.65 | AN24: 613.2 | AO24: 379.6 | AP24: 0 | AQ24: 912.5 | AR24: 912.5 | AS24: 15888.45 | AT24: 106023.375 | AU24: 106023.375 | AV24: 0 | AW24: 365
A25: Client 17 | B25: Cluster 4 | C25: 525 | D25: SA716-3603 SL CORE | E25: SL Supported Living | F25: 2019-01-01 | H25: 2019-12-31 | J25: 365 | K25: 1 | L25: 2 | M25: 144.81 | R25: 0 | S25: 0 | T25: 0 | U25: 0 | V25: 0 | W25: 2.69 | X25: 4.85 | Y25: 152.35 | Z25: 34.02 | AA25: 1.68 | AB25: 0.68 | AC25: 0 | AD25: 2.5 | AE25: 0 | AF25: 38.88 | AG25: 191.23 | AH25: 52855.65 | AI25: 981.85 | AJ25: 1770.25 | AK25: 0 | AL25: 55607.75 | AM25: 12417.3 | AN25: 613.2 | AO25: 248.2 | AP25: 0 | AQ25: 912.5 | AR25: 0 | AS25: 14191.2 | AT25: 69798.95 | AU25: 69798.95 | AV25: 0 | AW25: 365
A26: Client 20 | B26: Cluster 4 | C26: 528 | D26: SA716-3603 SL CORE | E26: SL Supported Living | F26: 2019-01-01 | H26: 2019-12-31 | J26: 365 | K26: 1 | L26: 3 | M26: 223.56 | R26: 0 | S26: 0 | T26: 0 | U26: 0 | V26: 0 | W26: 4.16 | X26: 4.85 | Y26: 232.57 | Z26: 35.81 | AA26: 1.68 | AB26: 1.04 | AC26: 0 | AD26: 3.47 | AE26: 0 | AF26: 42 | AG26: 274.57 | AH26: 81599.4 | AI26: 1518.4 | AJ26: 1770.25 | AK26: 0 | AL26: 84888.05 | AM26: 13070.65 | AN26: 613.2 | AO26: 379.6 | AP26: 0 | AQ26: 1266.55 | AR26: 0 | AS26: 15330 | AT26: 100218.05 | AU26: 100218.05 | AV26: 0 | AW26: 365
A27: Client 23 | B27: Cluster 4 | C27: 531 | D27: SA716-3603 SL CORE | E27: SL Supported Living | F27: 2019-01-01 | H27: 2019-12-31 | J27: 365 | K27: 1 | L27: 3 | M27: 223.56 | R27: 0 | S27: 0 | T27: 0 | U27: 0 | V27: 0 | W27: 4.16 | X27: 4.85 | Y27: 232.57 | Z27: 35.81 | AA27: 1.68 | AB27: 1.04 | AC27: 0 | AD27: 3.5 | AE27: 0 | AF27: 42.03 | AG27: 274.6 | AH27: 81599.4 | AI27: 1518.4 | AJ27: 1770.25 | AK27: 0 | AL27: 84888.05 | AM27: 13070.65 | AN27: 613.2 | AO27: 379.6 | AP27: 0 | AQ27: 1277.5 | AR27: 0 | AS27: 15340.95 | AT27: 100229 | AU27: 100229 | AV27: 0 | AW27: 365
A28: Client 24 | B28: Cluster 4 | C28: 532 | D28: SA716-3603 SL CORE | E28: SL Supported Living | F28: 2019-01-01 | H28: 2019-12-31 | J28: 365 | K28: 1 | L28: 2 | M28: 144.81 | R28: 0 | S28: 0 | T28: 0 | U28: 0 | V28: 0 | W28: 2.69 | X28: 4.85 | Y28: 152.35 | Z28: 34.02 | AA28: 1.68 | AB28: 0.68 | AC28: 0 | AD28: 3.5 | AE28: 7.9 | AF28: 47.78 | AG28: 200.13 | AH28: 52855.65 | AI28: 981.85 | AJ28: 1770.25 | AK28: 0 | AL28: 55607.75 | AM28: 12417.3 | AN28: 613.2 | AO28: 248.2 | AP28: 0 | AQ28: 1277.5 | AR28: 2883.5 | AS28: 17439.7 | AT28: 73047.45 | AU28: 73047.45 | AV28: 0 | AW28: 365
A29: Client 28 | B29: Cluster 4 | C29: 536 | D29: SA716-3603 SL CORE | E29: SL Supported Living | F29: 2019-01-01 | H29: 2019-12-31 | J29: 365 | K29: 1 | L29: 3 | M29: 223.56 | R29: 0 | S29: 0 | T29: 0 | U29: 0 | V29: 0 | W29: 4.16 | X29: 4.85 | Y29: 232.57 | Z29: 35.81 | AA29: 1.68 | AB29: 1.04 | AC29: 0 | AD29: 2.45 | AE29: 0 | AF29: 40.98 | AG29: 273.55 | AH29: 81599.4 | AI29: 1518.4 | AJ29: 1770.25 | AK29: 0 | AL29: 84888.05 | AM29: 13070.65 | AN29: 613.2 | AO29: 379.6 | AP29: 0 | AQ29: 894.25 | AR29: 0 | AS29: 14957.7 | AT29: 99845.75 | AU29: 99845.75 | AV29: 0 | AW29: 365
J30: 0 | R30: 0 | S30: 0 | T30: 0 | U30: 0 | V30: 0 | Y30: 0 | AF30: 0 | AG30: 0 | AH30: 0 | AI30: 0 | AJ30: 0 | AK30: 0 | AL30: 0 | AM30: 0 | AN30: 0 | AO30: 0 | AP30: 0 | AQ30: 0 | AR30: 0 | AS30: 0 | AT30: 0 | AU30: 0 | AV30: 0 | AW30: 0
J31: 0 | R31: 0 | S31: 0 | T31: 0 | U31: 0 | V31: 0 | Y31: 0 | AF31: 0 | AG31: 0 | AH31: 0 | AI31: 0 | AJ31: 0 | AK31: 0 | AL31: 0 | AM31: 0 | AN31: 0 | AO31: 0 | AP31: 0 | AQ31: 0 | AR31: 0 | AS31: 0 | AT31: 0 | AU31: 0 | AV31: 0 | AW31: 0
J32: =IF(F32>0,+IF(I32>0,I32,H32)-IF(G32>0,G32,F32)+1,0) -> 0 | R32: 0 | S32: 0 | T32: 0 | U32: 0 | V32: =+N32*O32+P32*Q32 -> 0 | Y32: =(M32+V32+W32+X32) -> 0 | AF32: 0 | AG32: 0 | AH32: 0 | AI32: 0 | AJ32: 0 | AK32: 0 | AL32: 0 | AM32: 0 | AN32: 0 | AO32: 0 | AP32: 0 | AQ32: 0 | AR32: 0 | AS32: 0 | AT32: 0 | AU32: 0 | AV32: 0 | AW32: 0
J33: 0 | R33: 0 | S33: 0 | T33: 0 | U33: 0 | V33: 0 | Y33: 0 | AF33: 0 | AG33: 0 | AH33: 0 | AI33: 0 | AJ33: 0 | AK33: 0 | AL33: 0 | AM33: 0 | AN33: 0 | AO33: 0 | AP33: 0 | AQ33: 0 | AR33: 0 | AS33: 0 | AT33: 0 | AU33: 0 | AV33: 0 | AW33: 0
J34: 0 | R34: 0 | S34: 0 | T34: 0 | U34: 0 | V34: 0 | Y34: 0 | AF34: 0 | AG34: 0 | AH34: 0 | AI34: 0 | AJ34: 0 | AK34: 0 | AL34: 0 | AM34: 0 | AN34: 0 | AO34: 0 | AP34: 0 | AQ34: 0 | AR34: 0 | AS34: 0 | AT34: 0 | AU34: 0 | AV34: 0 | AW34: 0
J35: 0 | R35: 0 | S35: 0 | T35: 0 | U35: 0 | V35: 0 | Y35: 0 | AF35: 0 | AG35: 0 | AH35: 0 | AI35: 0 | AJ35: 0 | AK35: 0 | AL35: 0 | AM35: 0 | AN35: 0 | AO35: 0 | AP35: 0 | AQ35: 0 | AR35: 0 | AS35: 0 | AT35: 0 | AU35: 0 | AV35: 0 | AW35: 0
J36: 0 | R36: 0 | S36: 0 | T36: 0 | U36: 0 | V36: 0 | Y36: 0 | AF36: 0 | AG36: 0 | AH36: 0 | AI36: 0 | AJ36: 0 | AK36: 0 | AL36: 0 | AM36: 0 | AN36: 0 | AO36: 0 | AP36: 0 | AQ36: 0 | AR36: 0 | AS36: 0 | AT36: 0 | AU36: 0 | AV36: 0 | AW36: 0
J37: 0 | R37: 0 | S37: 0 | T37: 0 | U37: 0 | V37: 0 | Y37: 0 | AF37: 0 | AG37: 0 | AH37: 0 | AI37: 0 | AJ37: 0 | AK37: 0 | AL37: 0 | AM37: 0 | AN37: 0 | AO37: 0 | AP37: 0 | AQ37: 0 | AR37: 0 | AS37: 0 | AT37: 0 | AU37: 0 | AV37: 0 | AW37: 0
J38: 0 | R38: 0 | S38: 0 | T38: 0 | U38: 0 | V38: 0 | Y38: 0 | AF38: 0 | AG38: 0 | AH38: 0 | AI38: 0 | AJ38: 0 | AK38: 0 | AL38: 0 | AM38: 0 | AN38: 0 | AO38: 0 | AP38: 0 | AQ38: 0 | AR38: 0 | AS38: 0 | AT38: 0 | AU38: 0 | AV38: 0 | AW38: 0
J39: =IF(F39>0,+IF(I39>0,I39,H39)-IF(G39>0,G39,F39)+1,0) -> 0 | K39: =IF(C39<=0,"",IF(C39=C38,"",1)) ->  | R39: 0 | S39: 0 | T39: 0 | U39: 0 | V39: =+N39*O39+P39*Q39 -> 0 | Y39: =(M39+V39+W39+X39) -> 0 | AF39: =SUM(Z39:AE39) -> 0 | AG39: =+Y39+AF39 -> 0 | AH39: =M39*J39 -> 0 | AI39: =W39*J39 -> 0 | AJ39: =X39*J39 -> 0 | AK39: =V39*J39 -> 0 | AL39: =$J39*Y39 -> 0 | AM39: =$J39*Z39 -> 0 | AN39: =$J39*AA39 -> 0 | AO39: =$J39*AB39 -> 0 | AP39: =$J39*AC39 -> 0 | AQ39: =J39*AD39 -> 0 | AR39: =$J39*AE39 -> 0 | AS39: =$J39*AF39 -> 0 | AT39: =AL39+AS39 -> 0 | AU39: =IF(A40=A39,0,SUMIF($A$4:$A$4802,$A39,AL$4:AL$4802))+IF(A40=A39,0,SUMIF($A$4:$A$4802,$A39,AS$4:AS$4802)) -> 0 | AV39: =IF($O39=$AU$1,$N39*$O39*$J39,0)+IF($Q39=$AU$1,$P39*$Q39*$J39,0) -> 0 | AW39: =IF(A40=A39,0,SUMIF($A$4:$A$4802,$A39,J$4:J$4802))+IF(A40=A39,0,SUMIF($A$4:$A$4802,$A39)) -> 0
AF40: =SUM(Z40:AE40) -> 0 | AG40: =+Y40+AF40 -> 0 | AH40: =M40*J40 -> 0 | AI40: =W40*J40 -> 0 | AJ40: =X40*J40 -> 0 | AK40: =V40*J40 -> 0 | AL40: =$J40*Y40 -> 0 | AM40: 0 | AN40: 0 | AO40: 0 | AQ40: =J40*AD40 -> 0 | AR40: =$J40*AE40 -> 0 | AS40: 0 | AT40: =AL40+AS40 -> 0 | AU40: =IF(A41=A40,0,SUMIF($A$4:$A$4802,$A40,AL$4:AL$4802))+IF(A41=A40,0,SUMIF($A$4:$A$4802,$A40,AS$4:AS$4802)) -> 0 | AV40: =IF($O40=$AU$1,$N40*$O40*$J40,0)+IF($Q40=$AU$1,$P40*$Q40*$J40,0) -> 0 | AW40: =IF(C41=C40,0,SUMIF($C$4:$C$4594,$C40,J$4:J$4594))+IF(C41=C40,0,SUMIF($C$5:$C$4595,$C40)) -> 0
A41: Totals - Detail | J41: =SUBTOTAL(9,J4:J40) -> 9490 | K41: =SUBTOTAL(9,K4:K40) -> 26 | V41: =SUBTOTAL(9,V4:V40) -> 31.4 | Y41: =SUBTOTAL(9,Y4:Y40) -> 6090.5 | AF41: =SUBTOTAL(9,AF4:AF40) -> 1340.09 | AG41: 7430.59 | AH41: 2126008.2 | AI41: 39536.8 | AJ41: 46026.5 | AK41: 11461 | AL41: 2223032.5 | AM41: 418158.6 | AN41: 15943.2 | AO41: 9909.75 | AP41: 0 | AQ41: 15220.5 | AR41: 29900.8 | AS41: 489132.85 | AT41: 2712165.35 | AU41: 2712165.35 | AW41: =SUBTOTAL(9,AW4:AW40) -> 9490
A42: 1 | E42: SL Supported Living | J42: =SUMIF($E$4:$E$39,$E$42,J4:J39) -> 5840 | K42: =SUMIF($E$4:$E$39,$E$42,K4:K39) -> 16 | V42: =SUMIF($E$4:$E$39,$E$42,V4:V39) -> 31.4 | Y42: =SUMIF($E$4:$E$39,$E$42,Y4:Y39) -> 3271.2 | AF42: =SUMIF($E$4:$E$39,$E$42,AF4:AF39) -> 719.7 | AG42: 3990.9 | AH42: 1133127.9 | AI42: 21075.1 | AJ42: 28324 | AK42: 11461 | AL42: 1193988 | AM42: 205210.3 | AN42: 9811.2 | AO42: 5285.2 | AP42: 0 | AQ42: 15220.5 | AR42: 27163.3 | AS42: 262690.5 | AT42: 1456678.5 | AU42: 1456678.5 | AV42: 0 | AW42: 5840
A43: 2 | E43: GH Group Home | J43: =SUMIF($E$4:$E$39,$E$43,J4:J40) -> 2555 | K43: =SUMIF($E$4:$E$39,$E$43,K4:K40) -> 7 | V43: =SUMIF($E$4:$E$39,$E$43,V4:V40) -> 0 | Y43: =SUMIF($E$4:$E$39,$E$43,Y4:Y40) -> 1760.64 | AF43: =SUMIF($E$4:$E$39,$E$43,AF4:AF40) -> 423.2 | AG43: 2183.84 | AH43: 618733.4 | AI43: 11508.45 | AJ43: 12391.75 | AK43: 0 | AL43: 642633.6 | AM43: 146383.25 | AN43: 4292.4 | AO43: 2879.85 | AP43: 0 | AQ43: 0 | AR43: 912.5 | AS43: 154468 | AT43: 797101.6 | AU43: 797101.6 | AV43: 0 | AW43: 2555
A44: 3 | E44: GTH Group Training Home | J44: =SUMIF($E$4:$E$39,$E$44,J4:J39) -> 1095 | K44: =SUMIF($E$4:$E$39,$E$44,K4:K39) -> 3 | V44: =SUMIF($E$4:$E$39,$E$44,V4:V39) -> 0 | Y44: =SUMIF($E$4:$E$39,$E$44,Y4:Y39) -> 1058.66 | AF44: =SUMIF($E$4:$E$39,$E$44,AF4:AF39) -> 197.19 | AG44: 1255.85 | AH44: 374146.9 | AI44: 6953.25 | AJ44: 5310.75 | AK44: 0 | AL44: 386410.9 | AM44: 66565.05 | AN44: 1839.6 | AO44: 1744.7 | AP44: 0 | AQ44: 0 | AR44: 1825 | AS44: 71974.35 | AT44: 458385.25 | AU44: 458385.25 | AV44: 0 | AW44: 1095
A45: DSHS/DDA Schedule H Rate History (Rev.12/2019)

Sheet Exhibit
A1: Supported Living / Group Home -Exhibit C | K1: July 1, 2018 - June 30, 2019 | U1: Revision #: 190103
A3: ABC Residential Services | I3: 1234-567890 | M3: 3S | O3: 2019-03-15 | S3: 31
A4: Contractor Name | I4: Contract No. | M4: Region | O4: Process Date | S4: No. of Clients (excluding SSP funded)
A6: The undersigned hereby affirm that the following are the agreed upon number of clients and reimbursement rates associated with the indicated contract and contract period. This rate sheet revision supersedes all previous rate sheets as of the effective date.
A9: Contractor Signature | J9: Date Signed | M9: DSHS Regional Administrator or Designee | U9: Date Signed
A11: a | B11: b | C11: c | D11: d | E11: e | F11: f | G11: g | H11: h | I11: i | J11: j | K11: k | L11: l | M11: m | N11: n | O11: o | P11: p | Q11: q | R11: r | S11: s | T11: t | U11: u | V11: v | W11: w | X11: x
A12: Program Name | B12: Client Name | C12: Client P1 ID | D12: Rate Effective Date | E12: ISS Tier Rate | F12: ISS Daily Tier Rate | G12: Prof Svs Hrs PCD 1 | H12: Prof Svs Hrly Rate 1 | I12: Prof Svs Hrs PCD 2 | J12: Prof Svs Hrly Rate 2 | K12: ISS Prof Svs Daily Rate | L12: ISS CRST Tier Rate | M12: ISS Hold Harmless Rate | N12: Total ISS Daily Rate | O12: Admin Tier Rate | P12: Admin Hold Harmles | Q12: Admin CRST Tier Rate | R12: Cert Rate | S12: Transp. Rate | T12: Other Non-ISS Rates | U12: Total Non-ISS Daily Rate | V12: Total Daily Rate | W12: P1 Service Code/RA | X12: Revision #
A13: ABC Residential Services | B13: Client A | C13: 500 | D13: 2018-07-01 | E13: 4 | F13: 291.71 | G13: 0 | H13: 0 | I13: 0 | J13: 0 | K13: 0 | L13: 5.42 | M13: 4.85 | N13: 301.98 | O13: 57.97 | P13: 1.68 | Q13: 1.36 | R13: 0 | S13: 0 | T13: 0 | U13: 61.01 | V13: 362.99 | W13: SA722-3603 | X13: 190100
A14: ABC Residential Services | B14: Client B | C14: 501 | D14: 2018-07-01 | E14: 3 | F14: 223.56 | G14: 0 | H14: 0 | I14: 0 | J14: 0 | K14: 0 | L14: 4.16 | M14: 4.85 | N14: 232.57 | O14: 56.63 | P14: 1.68 | Q14: 1.04 | R14: 0 | S14: 0 | T14: 0 | U14: 59.35 | V14: 291.92 | W14: SA722-3603 | X14: 190102
A15: ABC Residential Services | B15: Client C | C15: 502 | D15: 2018-07-01 | E15: 3 | F15: 223.56 | G15: 0 | H15: 0 | I15: 0 | J15: 0 | K15: 0 | L15: 4.16 | M15: 4.85 | N15: 232.57 | O15: 56.63 | P15: 1.68 | Q15: 1.04 | R15: 0 | S15: 0 | T15: 0 | U15: 59.35 | V15: 291.92 | W15: SA722-3603 | X15: 190100
A16: ABC Residential Services | B16: Client D | C16: 503 | D16: 2018-07-01 | E16: 2 | F16: 144.81 | G16: 0 | H16: 0 | I16: 0 | J16: 0 | K16: 0 | L16: 2.69 | M16: 4.85 | N16: 152.35 | O16: 54.84 | P16: 1.68 | Q16: 0.68 | R16: 0 | S16: 0 | T16: 2.5 | U16: 59.7 | V16: 212.05 | W16: SA722-3603 | X16: 190100
A17: ABC Residential Services | B17: Client E | C17: 504 | D17: 2018-07-01 | E17: 6 | F17: 441.64 | G17: 0 | H17: 0 | I17: 0 | J17: 0 | K17: 0 | L17: 8.21 | M17: 4.85 | N17: 454.7 | O17: 66.43 | P17: 1.68 | Q17: 2.06 | R17: 0 | S17: 0 | T17: 2.5 | U17: 72.67 | V17: 527.37 | W17: SA722-3603 | X17: 190100
A18: ABC Residential Services | B18: Client F | C18: 505 | D18: 2018-07-01 | E18: 4 | F18: 291.71 | G18: 0 | H18: 0 | I18: 0 | J18: 0 | K18: 0 | L18: 5.42 | M18: 4.85 | N18: 301.98 | O18: 57.97 | P18: 1.68 | Q18: 1.36 | R18: 0 | S18: 0 | T18: 2.5 | U18: 63.51 | V18: 365.49 | W18: SA722-3603 | X18: 190100
A19: ABC Residential Services | B19: Client G | C19: 506 | D19: 2018-07-01 | E19: 4 | F19: 291.71 | G19: 0 | H19: 0 | I19: 0 | J19: 0 | K19: 0 | L19: 5.42 | M19: 4.85 | N19: 301.98 | O19: 57.97 | P19: 1.68 | Q19: 1.36 | R19: 0 | S19: 0 | T19: 0 | U19: 61.01 | V19: 362.99 | W19: SA722-3603 | X19: 190100
A20: ABC Residential Services | B20: Client H | C20: 507 | D20: 2018-07-01 | E20: 5 | F20: 364.4 | G20: 0 | H20: 0 | I20: 0 | J20: 0 | K20: 0 | L20: 6.78 | M20: 4.85 | N20: 376.03 | O20: 61.72 | P20: 1.68 | Q20: 1.69 | R20: 0 | S20: 0 | T20: 0 | U20: 65.09 | V20: 441.12 | W20: SA722-3603 | X20: 190100
A21: ABC Residential Services | B21: Client I | C21: 508 | D21: 2018-07-01 | E21: 3 | F21: 223.56 | G21: 0 | H21: 0 | I21: 0 | J21: 0 | K21: 0 | L21: 4.16 | M21: 4.85 | N21: 232.57 | O21: 56.63 | P21: 1.68 | Q21: 1.04 | R21: 0 | S21: 0 | T21: 0 | U21: 59.35 | V21: 291.92 | W21: SA716-3603 | X21: 190100
A22: ABC Residential Services | B22: Client J | C22: 538 | D22: 2018-07-01 | E22: 3 | F22: 223.56 | G22: 0 | H22: 0 | I22: 0 | J22: 0 | K22: 0 | L22: 4.16 | M22: 4.85 | N22: 232.57 | O22: 56.63 | P22: 1.68 | Q22: 1.04 | R22: 0 | S22: 0 | T22: 0 | U22: 59.35 | V22: 291.92 | W22: SA716-3603 | X22: 190100
A23: ABC Residential Services | B23: Client 1 | C23: 509 | D23: 2018-07-01 | E23: 2 | F23: 144.81 | G23: 0.2 | H23: 38.75 | I23: 0 | J23: 0 | K23: 7.75 | L23: 2.69 | M23: 4.85 | N23: 160.1 | O23: 34.02 | P23: 1.68 | Q23: 0.68 | R23: 0 | S23: 2.25 | T23: 2.5 | U23: 41.13 | V23: 201.23 | W23: SA716-3603 | X23: 190100
A24: ABC Residential Services | B24: Client 2 | C24: 510 | D24: 2018-07-01 | E24: 3 | F24: 223.56 | G24: 0 | H24: 0 | I24: 0 | J24: 0 | K24: 0 | L24: 4.16 | M24: 4.85 | N24: 232.57 | O24: 35.81 | P24: 1.68 | Q24: 1.04 | R24: 0 | S24: 2.25 | T24: 13.87 | U24: 54.65 | V24: 287.22 | W24: SA716-3603 | X24: 190100
A25: ABC Residential Services | B25: Client 4 | C25: 512 | D25: 2019-03-01 | E25: 3 | F25: 223.56 | G25: 0.35 | H25: 26.5 | I25: 0 | J25: 0 | K25: 9.28 | L25: 4.16 | M25: 4.85 | N25: 241.85 | O25: 35.81 | P25: 1.68 | Q25: 1.04 | R25: 0 | S25: 4.58 | T25: 7.9 | U25: 51.01 | V25: 292.86 | W25: SA716-3603 | X25: 190103
A26: ABC Residential Services | B26: Client 5 | C26: 513 | D26: 2018-07-01 | E26: 3 | F26: 223.56 | G26: 0 | H26: 0 | I26: 0 | J26: 0 | K26: 0 | L26: 4.16 | M26: 4.85 | N26: 232.57 | O26: 35.81 | P26: 1.68 | Q26: 1.04 | R26: 0 | S26: 1.88 | T26: 2.5 | U26: 42.91 | V26: 275.48 | W26: SA716-3603 | X26: 190100
A27: ABC Residential Services | B27: Client 6 | C27: 514 | D27: 2018-07-01 | E27: 3 | F27: 223.56 | G27: 0 | H27: 0 | I27: 0 | J27: 0 | K27: 0 | L27: 4.16 | M27: 4.85 | N27: 232.57 | O27: 35.81 | P27: 1.68 | Q27: 1.04 | R27: 0 | S27: 2.35 | T27: 0 | U27: 40.88 | V27: 273.45 | W27: SA716-3603 | X27: 190100
A28: ABC Residential Services | B28: Client 7 | C28: 515 | D28: 2018-07-01 | E28: 2 | F28: 144.81 | G28: 0 | H28: 0 | I28: 0 | J28: 0 | K28: 0 | L28: 2.69 | M28: 4.85 | N28: 152.35 | O28: 34.02 | P28: 1.68 | Q28: 0.68 | R28: 0 | S28: 2.5 | T28: 2.5 | U28: 41.38 | V28: 193.73 | W28: SA716-3603 | X28: 190100
A29: a | B29: b | C29: c | D29: d | E29: e | F29: f | G29: g | H29: h | I29: i | J29: j | K29: k | L29: l | M29: m | N29: n | O29: o | P29: p | Q29: q | R29: r | S29: s | T29: t | U29: u | V29: v | W29: w | X29: x
A30: Program Name | B30: Client Name | C30: Client P1 ID | D30: Rate Effective Date | E30: ISS Tier Rate | F30: ISS Daily Tier Rate | G30: Prof Svs Hrs PCD 1 | H30: Prof Svs Hrly Rate 1 | I30: Prof Svs Hrs PCD 2 | J30: Prof Svs Hrly Rate 2 | K30: ISS Prof Svs Daily Rate | L30: ISS CRST Tier Rate | M30: ISS Hold Harmless Rate | N30: Total ISS Daily Rate | O30: Admin Tier Rate | P30: Admin Hold Harmles | Q30: Admin CRST Tier Rate | R30: Cert Rate | S30: Transp. Rate | T30: Other Non-ISS Rates | U30: Total Non-ISS Daily Rate | V30: Total Daily Rate | W30: P1 Service Code/RA | X30: Revision #
A31: ABC Residential Services | B31: Client 8 | C31: 516 | D31: 2018-07-01 | E31: 2 | F31: 144.81 | G31: 0 | H31: 0 | I31: 0 | J31: 0 | K31: 0 | L31: 2.69 | M31: 4.85 | N31: 152.35 | O31: 34.02 | P31: 1.68 | Q31: 0.68 | R31: 0 | S31: 2.5 | T31: 0 | U31: 49.32 | V31: 201.67 | W31: SA716-3603 | X31: 190100
A32: ABC Residential Services | B32: Client 9 | C32: 517 | D32: 2018-07-01 | E32: 2 | F32: 144.81 | G32: 0 | H32: 0 | I32: 0 | J32: 0 | K32: 0 | L32: 2.69 | M32: 4.85 | N32: 152.35 | O32: 34.02 | P32: 1.68 | Q32: 0.68 | R32: 0 | S32: 3.25 | T32: 0 | U32: 42.78 | V32: 174.8 | W32: SA716-3603 | X32: 190100
A33: ABC Residential Services | B33: Client 10 | C33: 518 | D33: 2018-09-01 | E33: 3 | F33: 223.56 | G33: 0.35 | H33: 26.5 | I33: 0 | J33: 0 | K33: 9.28 | L33: 4.16 | M33: 4.85 | N33: 241.85 | O33: 35.81 | P33: 1.68 | Q33: 1.04 | R33: 0 | S33: 3.2 | T33: 7.9 | U33: 49.63 | V33: 291.48 | W33: SA716-3603 | X33: 190100
A34: ABC Residential Services | B34: Client 12 | C34: 520 | D34: 2018-07-01 | E34: 3 | F34: 223.56 | G34: 0 | H34: 0 | I34: 0 | J34: 0 | K34: 0 | L34: 4.16 | M34: 4.85 | N34: 232.57 | O34: 35.81 | P34: 1.68 | Q34: 1.04 | R34: 0 | S34: 2.25 | T34: 0 | U34: 40.78 | V34: 273.35 | W34: SA716-3603 | X34: 190100
A35: ABC Residential Services | B35: Client 13 | C35: 521 | D35: 2018-07-01 | E35: 3 | F35: 223.56 | G35: 0 | H35: 0 | I35: 0 | J35: 0 | K35: 0 | L35: 4.16 | M35: 4.85 | N35: 232.57 | O35: 35.81 | P35: 1.68 | Q35: 1.04 | R35: 0 | S35: 1.85 | T35: 0 | U35: 40.38 | V35: 272.95 | W35: SA716-3603 | X35: 190101
A36: ABC Residential Services | B36: Client 15 | C36: 523 | D36: 2019-02-01 | E36: 2 | F36: 144.81 | G36: 0 | H36: 0 | I36: 0 | J36: 0 | K36: 0 | L36: 2.69 | M36: 4.85 | N36: 152.35 | O36: 34.02 | P36: 1.68 | Q36: 0.68 | R36: 0 | S36: 3.25 | T36: 2.5 | U36: 42.13 | V36: 194.48 | W36: SA716-3603 | X36: 190103
A37: ABC Residential Services | B37: Client 16 | C37: 524 | D37: 2018-07-01 | E37: 3 | F37: 223.56 | G37: 0.2 | H37: 38.75 | I37: 0.25 | J37: 26.5 | K37: 14.38 | L37: 4.16 | M37: 4.85 | N37: 246.95 | O37: 35.81 | P37: 1.68 | Q37: 1.04 | R37: 0 | S37: 2.5 | T37: 2.5 | U37: 43.53 | V37: 290.48 | W37: SA716-3603 | X37: 190100
A38: ABC Residential Services | B38: Client 17 | C38: 525 | D38: 2018-07-01 | E38: 2 | F38: 144.81 | G38: 0 | H38: 0 | I38: 0 | J38: 0 | K38: 0 | L38: 2.69 | M38: 4.85 | N38: 152.35 | O38: 34.02 | P38: 1.68 | Q38: 0.68 | R38: 0 | S38: 2.5 | T38: 0 | U38: 38.88 | V38: 191.23 | W38: SA716-3603 | X38: 190100
A39: ABC Residential Services | B39: Client 20 | C39: 528 | D39: 2018-07-01 | E39: 3 | F39: 223.56 | G39: 0 | H39: 0 | I39: 0 | J39: 0 | K39: 0 | L39: 4.16 | M39: 4.85 | N39: 232.57 | O39: 35.81 | P39: 1.68 | Q39: 1.04 | R39: 0 | S39: 3.47 | T39: 0 | U39: 42 | V39: 274.57 | W39: SA716-3603 | X39: 190100
A40: ABC Residential Services | B40: Client 23 | C40: 531 | D40: 2018-07-01 | E40: 3 | F40: 223.56 | G40: 0 | H40: 0 | I40: 0 | J40: 0 | K40: 0 | L40: 4.16 | M40: 4.85 | N40: 232.57 | O40: 35.81 | P40: 1.68 | Q40: 1.04 | R40: 0 | S40: 3.5 | T40: 0 | U40: 42.03 | V40: 274.6 | W40: SA716-3603 | X40: 190101
A41: ABC Residential Services | B41: Client 24 | C41: 532 | D41: 2018-07-01 | E41: 2 | F41: 144.81 | G41: 0 | H41: 0 | I41: 0 | J41: 0 | K41: 0 | L41: 2.69 | M41: 4.85 | N41: 152.35 | O41: 34.02 | P41: 1.68 | Q41: 0.68 | R41: 0 | S41: 3.5 | T41: 7.9 | U41: 47.78 | V41: 200.13 | W41: SA716-3603 | X41: 190100
A42: ABC Residential Services | B42: Client 25 | C42: 533 | D42: 2018-07-01 | E42: 3 | F42: 223.56 | G42: 0 | H42: 0 | I42: 0 | J42: 0 | K42: 0 | L42: 4.16 | M42: 4.85 | N42: 232.57 | O42: 35.81 | P42: 1.68 | Q42: 1.04 | R42: 0 | S42: 5.76 | T42: 13.87 | U42: 58.16 | V42: 290.73 | W42: SA716-3603 | X42: 190100
A43: ABC Residential Services | B43: Client 28 | C43: 536 | D43: 2018-07-01 | E43: 3 | F43: 223.56 | G43: 0 | H43: 0 | I43: 0 | J43: 0 | K43: 0 | L43: 4.16 | M43: 4.85 | N43: 232.57 | O43: 35.81 | P43: 1.68 | Q43: 1.04 | R43: 0 | S43: 2.45 | T43: 0 | U43: 40.98 | V43: 273.55 | W43: SA716-3603 | X43: 190100

Sheet 2019 JUN
A1: Program Name | D1: 3S - ABC Residential Services | F1: Provider ID | H1: =VLOOKUP(D1,[13]List!A2:B132,2,FALSE) -> 555777999 | L1: FOR PROVIDER USE ONLY DO NOT SUBMIT WITH COST REPORT | AK1: ANNUAL SERVICES PAID BY PROGRAM TYPE | AO1: =IF(AN1="","",AH2+AI2+AJ2) ->  | AR1: PROFESSIONAL SERVICES | AV1: Professional Svs Paid Calculation | AW1: =SUM(AV4:AV43) -> 0
A2: Report Period | D2: 2019-01-01 | F2: 2019-12-31 | J2: =IF($AN$1="",SUM(J4:J42),SUMIF($E$4:$E$42,$AN$1,J4:J42)) -> 4556 | K2: =IF($AN$1="",SUM(K4:K42),SUMIF($E$4:$E$42,$AN$1,K4:K42)) -> 29 | AG2: Annual Totals | AH2: =IF($AN$1="",SUM(AH4:AH42),SUMIF($E$4:$E$42,$AN$1,AH4:AH42)) -> 1008920.58 | AI2: 18761.42 | AJ2: 22096.6 | AK2: 6814.95 | AL2: 1056593.55 | AM2: 195245.82 | AN2: 7654.08 | AO2: 4704.15 | AP2: 0 | AQ2: 8473.26 | AR2: 15239.39 | AS2: 231316.7 | AT2: 1287910.25 | AU2: 1287910.25 | AV2: 0 | AW2: 4556
A3: Client Name (b) | B3: House or Cluster | C3: Client P1 ID (c) | D3: P1 Service Code/RAC (w) | E3: Program Type | F3: Rate Effective Date (d) | G3: Actual Start Date (Overrides Rate Effective Date) | H3: Rate End Date | I3: Actual End Date (Overrides Rate End Date) | J3: Resid Days Paid | K3: Client Count | L3: ISS Tier Level (e) | M3: ISS Daily Tier Rate (f) | N3: Prof Svs Hrs PCD 1 (g) | O3: Prof Svs Hrly Rate 1 (h) | P3: Prof Svs Hrs PCD 2 (i) | Q3: Prof Svs Hrly Rate 2 (j) | R3: Prof Svs Hrs PCD 3 | S3: Prof Svs Hrly Rate 3 | T3: Prof Svs Hrs PCD 4 | U3: Prof Svs Hrly Rate 4 | V3: ISS Prof Svs Daily Rate | W3: ISS CRST Tier Rate (l) | X3: ISS Hold Harmless Rate (m) | Y3: Total ISS Daily Rate | Z3: Admin Tier Rate (o) | AA3: Admin Hold Harmless (p) | AB3: Admin CRST Tier Rate (q) | AC3: Admin Cert Rate (r) | AD3: Transportion Rate (s) | AE3: Other Non-ISS Rates (t) | AF3: Total Non-ISS Daily Rate | AG3: Total ISS & Non-ISS Daily Rate | AH3: Annual ISS Paid | AI3: Annual ISS CRST Paid | AJ3: Annual ISS Hold Harmless Paid | AK3: Annual ISS Prof Svs Paid | AL3: Total Annual ISS Paid | AM3: Annual Admin Paid | AN3: Annual Admin Hold Harmless Paid | AO3: Annual Admin CRST Paid | AP3: Annual Admin Cert Paid | AQ3: Annual Transportation Paid | AR3: Annual Other Non-ISS Paid | AS3: Total Annual Non-ISS Paid | AT3: Annual ISS & Non-ISS Paid | AU3: Total ISS & Non-ISS Paid per Client | AV3: Prof Svs Paid Calculation | AW3: Total Days Paid per Client
A4: Client A | B4: House 1 | C4: 500 | D4: SA722-3603 GH CORE | E4: GH Group Home | F4: 2019-01-01 | H4: 2019-06-30 | J4: =IF(F4>0,+IF(I4>0,I4,H4)-IF(G4>0,G4,F4)+1,0) -> 181 | K4: =IF(C4<=0,"",IF(C4=C3,"",1)) -> 1 | L4: 4 | M4: 291.71 | R4: 0 | S4: 0 | T4: 0 | U4: 0 | V4: =+N4*O4+P4*Q4 -> 0 | W4: 5.42 | X4: 4.85 | Y4: =(M4+V4+W4+X4) -> 301.98 | Z4: 57.97 | AA4: 1.68 | AB4: 1.36 | AC4: 0 | AD4: 0 | AE4: 0 | AF4: =SUM(Z4:AE4) -> 61.01 | AG4: =+Y4+AF4 -> 362.99 | AH4: =M4*J4 -> 52799.51 | AI4: =W4*J4 -> 981.02 | AJ4: =X4*J4 -> 877.85 | AK4: =V4*J4 -> 0 | AL4: =$J4*Y4 -> 54658.38 | AM4: =$J4*Z4 -> 10492.57 | AN4: =$J4*AA4 -> 304.08 | AO4: =$J4*AB4 -> 246.16 | AP4: =$J4*AC4 -> 0 | AQ4: =J4*AD4 -> 0 | AR4: =$J4*AE4 -> 0 | AS4: =$J4*AF4 -> 11042.81 | AT4: =AL4+AS4 -> 65701.19 | AU4: =IF(A5=A4,0,SUMIF($A$4:$A$4805,$A4,AL$4:AL$4805))+IF(A5=A4,0,SUMIF($A$4:$A$4805,$A4,AS$4:AS$4805)) -> 65701.19 | AV4: =IF($O4=$AU$1,$N4*$O4*$J4,0)+IF($Q4=$AU$1,$P4*$Q4*$J4,0) -> 0 | AW4: =IF(A5=A4,0,SUMIF($A$4:$A$4805,$A4,J$4:J$4805))+IF(A5=A4,0,SUMIF($A$4:$A$4805,$A4)) -> 181
A5: Client B | B5: House 1 | C5: 501 | D5: SA722-3603 GH CORE | E5: GH Group Home | F5: 2019-01-01 | H5: 2019-06-30 | J5: 181 | K5: 1 | L5: 3 | M5: 223.56 | R5: 0 | S5: 0 | T5: 0 | U5: 0 | V5: 0 | W5: 4.16 | X5: 4.85 | Y5: 232.57 | Z5: 56.63 | AA5: 1.68 | AB5: 1.04 | AC5: 0 | AD5: 0 | AE5: 0 | AF5: 59.35 | AG5: 291.92 | AH5: 40464.36 | AI5: 752.96 | AJ5: 877.85 | AK5: 0 | AL5: 42095.17 | AM5: 10250.03 | AN5: 304.08 | AO5: 188.24 | AP5: 0 | AQ5: 0 | AR5: 0 | AS5: 10742.35 | AT5: 52837.52 | AU5: 52837.52 | AV5: 0 | AW5: 181
A6: Client C | B6: House 1 | C6: 502 | D6: SA722-3603 GH CORE | E6: GH Group Home | F6: 2019-01-01 | H6: 2019-06-30 | J6: 181 | K6: 1 | L6: 3 | M6: 223.56 | R6: 0 | S6: 0 | T6: 0 | U6: 0 | V6: 0 | W6: 4.16 | X6: 4.85 | Y6: 232.57 | Z6: 56.63 | AA6: 1.68 | AB6: 1.04 | AC6: 0 | AD6: 0 | AE6: 0 | AF6: 59.35 | AG6: 291.92 | AH6: 40464.36 | AI6: 752.96 | AJ6: 877.85 | AK6: 0 | AL6: 42095.17 | AM6: 10250.03 | AN6: 304.08 | AO6: 188.24 | AP6: 0 | AQ6: 0 | AR6: 0 | AS6: 10742.35 | AT6: 52837.52 | AU6: 52837.52 | AV6: 0 | AW6: 181
A7: Client D | B7: House 1 | C7: 503 | D7: SA722-3603 GH CORE | E7: GH Group Home | F7: 2019-01-01 | H7: 2019-06-30 | J7: 181 | K7: 1 | L7: 2 | M7: 144.81 | R7: 0 | S7: 0 | T7: 0 | U7: 0 | V7: 0 | W7: 2.69 | X7: 4.85 | Y7: 152.35 | Z7: 54.84 | AA7: 1.68 | AB7: 0.68 | AC7: 0 | AD7: 0 | AE7: 2.5 | AF7: 59.7 | AG7: 212.05 | AH7: 26210.61 | AI7: 486.89 | AJ7: 877.85 | AK7: 0 | AL7: 27575.35 | AM7: 9926.04 | AN7: 304.08 | AO7: 123.08 | AP7: 0 | AQ7: 0 | AR7: 452.5 | AS7: 10805.7 | AT7: 38381.05 | AU7: 38381.05 | AV7: 0 | AW7: 181
A8: Client E | B8: House 1 | C8: 504 | D8: SA722-3905 GTH State | E8: GTH Group Training Home | F8: 2019-01-01 | H8: 2019-06-30 | J8: 181 | K8: 1 | L8: 6 | M8: 441.64 | R8: 0 | S8: 0 | T8: 0 | U8: 0 | V8: 0 | W8: 8.21 | X8: 4.85 | Y8: 454.7 | Z8: 66.43 | AA8: 1.68 | AB8: 2.06 | AC8: 0 | AD8: 0 | AE8: 2.5 | AF8: 72.67 | AG8: 527.37 | AH8: 79936.84 | AI8: 1486.01 | AJ8: 877.85 | AK8: 0 | AL8: 82300.7 | AM8: 12023.83 | AN8: 304.08 | AO8: 372.86 | AP8: 0 | AQ8: 0 | AR8: 452.5 | AS8: 13153.27 | AT8: 95453.97 | AU8: 95453.97 | AV8: 0 | AW8: 181
A9: Client F | B9: House 2 | C9: 505 | D9: SA722-3905 GTH State | E9: GTH Group Training Home | F9: 2019-01-01 | H9: 2019-06-30 | J9: 181 | K9: 1 | L9: 4 | M9: 291.71 | R9: 0 | S9: 0 | T9: 0 | U9: 0 | V9: 0 | W9: 5.42 | X9: 4.85 | Y9: 301.98 | Z9: 57.97 | AA9: 1.68 | AB9: 1.36 | AC9: 0 | AD9: 0 | AE9: 2.5 | AF9: 63.51 | AG9: 365.49 | AH9: 52799.51 | AI9: 981.02 | AJ9: 877.85 | AK9: 0 | AL9: 54658.38 | AM9: 10492.57 | AN9: 304.08 | AO9: 246.16 | AP9: 0 | AQ9: 0 | AR9: 452.5 | AS9: 11495.31 | AT9: 66153.69 | AU9: 66153.69 | AV9: 0 | AW9: 181
A10: Client G | B10: House 2 | C10: 506 | D10: SA722-3905 GTH State | E10: GTH Group Training Home | F10: 2019-01-01 | H10: 2019-06-30 | J10: 181 | K10: 1 | L10: 4 | M10: 291.71 | R10: 0 | S10: 0 | T10: 0 | U10: 0 | V10: 0 | W10: 5.42 | X10: 4.85 | Y10: 301.98 | Z10: 57.97 | AA10: 1.68 | AB10: 1.36 | AC10: 0 | AD10: 0 | AE10: 0 | AF10: 61.01 | AG10: 362.99 | AH10: 52799.51 | AI10: 981.02 | AJ10: 877.85 | AK10: 0 | AL10: 54658.38 | AM10: 10492.57 | AN10: 304.08 | AO10: 246.16 | AP10: 0 | AQ10: 0 | AR10: 0 | AS10: 11042.81 | AT10: 65701.19 | AU10: 65701.19 | AV10: 0 | AW10: 181
A11: Client H | B11: House 2 | C11: 507 | D11: SA722-3603 GH CORE | E11: GH Group Home | F11: 2019-01-01 | H11: 2019-06-30 | J11: 181 | K11: 1 | L11: 5 | M11: 364.4 | R11: 0 | S11: 0 | T11: 0 | U11: 0 | V11: 0 | W11: 6.78 | X11: 4.85 | Y11: 376.03 | Z11: 61.72 | AA11: 1.68 | AB11: 1.69 | AC11: 0 | AD11: 0 | AE11: 0 | AF11: 65.09 | AG11: 441.12 | AH11: 65956.4 | AI11: 1227.18 | AJ11: 877.85 | AK11: 0 | AL11: 68061.43 | AM11: 11171.32 | AN11: 304.08 | AO11: 305.89 | AP11: 0 | AQ11: 0 | AR11: 0 | AS11: 11781.29 | AT11: 79842.72 | AU11: 79842.72 | AV11: 0 | AW11: 181
A12: Client I | B12: House 2 | C12: 508 | D12: SA722-3603 GH CORE | E12: GH Group Home | F12: 2019-01-01 | H12: 2019-12-31 | I12: 2019-01-21 | J12: 21 | K12: 1 | L12: 3 | M12: 223.56 | R12: 0 | S12: 0 | T12: 0 | U12: 0 | V12: 0 | W12: 4.16 | X12: 4.85 | Y12: 232.57 | Z12: 56.63 | AA12: 1.68 | AB12: 1.04 | AC12: 0 | AD12: 0 | AE12: 0 | AF12: 59.35 | AG12: 291.92 | AH12: 4694.76 | AI12: 87.36 | AJ12: 101.85 | AK12: 0 | AL12: 4883.97 | AM12: 1189.23 | AN12: 35.28 | AO12: 21.84 | AP12: 0 | AQ12: 0 | AR12: 0 | AS12: 1246.35 | AT12: 6130.32 | AU12: 6130.32 | AV12: 0 | AW12: 21
A13: Client J | B13: House 3 | C13: 538 | D13: SA722-3603 GH CORE | E13: GH Group Home | F13: 2019-01-01 | H13: 2019-01-30 | J13: 30 | K13: 1 | L13: 3 | M13: 223.56 | R13: 0 | S13: 0 | T13: 0 | U13: 0 | V13: 0 | W13: 4.16 | X13: 4.85 | Y13: 232.57 | Z13: 56.63 | AA13: 1.68 | AB13: 1.04 | AC13: 0 | AD13: 0 | AE13: 0 | AF13: 59.35 | AG13: 291.92 | AH13: 6706.8 | AI13: 124.8 | AJ13: 145.5 | AK13: 0 | AL13: 6977.1 | AM13: 1698.9 | AN13: 50.4 | AO13: 31.2 | AP13: 0 | AQ13: 0 | AR13: 0 | AS13: 1780.5 | AT13: 8757.6 | AU13: 8757.6 | AV13: 0 | AW13: 30
A14: Client 01 | B14: Cluster 1 | C14: 509 | D14: SA716-3603 SL CORE | E14: SL Supported Living | F14: 2019-01-01 | H14: 2019-06-30 | J14: 181 | K14: 1 | L14: 2 | M14: 144.81 | N14: 0.2 | O14: 38.75 | R14: 0 | S14: 0 | T14: 0 | U14: 0 | V14: 7.75 | W14: 2.69 | X14: 4.85 | Y14: 160.1 | Z14: 34.02 | AA14: 1.68 | AB14: 0.68 | AC14: 0 | AD14: 2.25 | AE14: 2.5 | AF14: 41.13 | AG14: 201.23 | AH14: 26210.61 | AI14: 486.89 | AJ14: 877.85 | AK14: 1402.75 | AL14: 28978.1 | AM14: 6157.62 | AN14: 304.08 | AO14: 123.08 | AP14: 0 | AQ14: 407.25 | AR14: 452.5 | AS14: 7444.53 | AT14: 36422.63 | AU14: 36422.63 | AV14: 0 | AW14: 181
A15: Client 02 | B15: Cluster 1 | C15: 510 | D15: SA716-3603 SL CORE | E15: SL Supported Living | F15: 2019-01-01 | H15: 2019-06-30 | J15: 181 | K15: 1 | L15: 3 | M15: 223.56 | R15: 0 | S15: 0 | T15: 0 | U15: 0 | V15: 0 | W15: 4.16 | X15: 4.85 | Y15: 232.57 | Z15: 35.81 | AA15: 1.68 | AB15: 1.04 | AC15: 0 | AD15: 2.25 | AE15: 13.87 | AF15: 54.65 | AG15: 287.22 | AH15: 40464.36 | AI15: 752.96 | AJ15: 877.85 | AK15: 0 | AL15: 42095.17 | AM15: 6481.61 | AN15: 304.08 | AO15: 188.24 | AP15: 0 | AQ15: 407.25 | AR15: 2510.47 | AS15: 9891.65 | AT15: 51986.82 | AU15: 51986.82 | AV15: 0 | AW15: 181
A16: Client 04 | B16: Cluster 2 | C16: 512 | D16: SA716-3603 SL CORE | E16: SL Supported Living | F16: 2019-01-01 | H16: 2019-12-31 | I16: 2019-02-28 | J16: 59 | K16: 1 | L16: 3 | M16: 223.56 | R16: 0 | S16: 0 | T16: 0 | U16: 0 | V16: 0 | W16: 4.16 | X16: 4.85 | Y16: 232.57 | Z16: 35.81 | AA16: 1.68 | AB16: 1.04 | AC16: 0 | AD16: 1.85 | AE16: 10.44 | AF16: 50.82 | AG16: 283.39 | AH16: 13190.04 | AI16: 245.44 | AJ16: 286.15 | AK16: 0 | AL16: 13721.63 | AM16: 2112.79 | AN16: 99.12 | AO16: 61.36 | AP16: 0 | AQ16: 109.15 | AR16: 615.96 | AS16: 2998.38 | AT16: 16720.01 | AU16: 0 | AV16: 0 | AW16: 0
A17: Client 04 | B17: Cluster 2 | C17: 512 | D17: SA716-3603 SL CORE | E17: SL Supported Living | F17: 2019-03-01 | H17: 2019-06-30 | J17: 122 | L17: 3 | M17: 223.56 | N17: 0.35 | O17: 26.5 | R17: 0 | S17: 0 | T17: 0 | U17: 0 | V17: 9.275 | W17: 4.16 | X17: 4.85 | Y17: 241.845 | Z17: 35.81 | AA17: 1.68 | AB17: 1.04 | AC17: 0 | AD17: 4.58 | AE17: 7.9 | AF17: 51.01 | AG17: 292.855 | AH17: 27274.32 | AI17: 507.52 | AJ17: 591.7 | AK17: 1131.55 | AL17: 29505.09 | AM17: 4368.82 | AN17: 204.96 | AO17: 126.88 | AP17: 0 | AQ17: 558.76 | AR17: 963.8 | AS17: 6223.22 | AT17: 35728.31 | AU17: 52448.32 | AV17: 0 | AW17: 181
A18: Client 05 | B18: Cluster 2 | C18: 513 | D18: SA716-3603 SL CORE | E18: SL Supported Living | F18: 2019-01-01 | H18: 2019-06-30 | J18: 181 | K18: 1 | L18: 3 | M18: 223.56 | R18: 0 | S18: 0 | T18: 0 | U18: 0 | V18: 0 | W18: 4.16 | X18: 4.85 | Y18: 232.57 | Z18: 35.81 | AA18: 1.68 | AB18: 1.04 | AC18: 0 | AD18: 1.88 | AE18: 2.5 | AF18: 42.91 | AG18: 275.48 | AH18: 40464.36 | AI18: 752.96 | AJ18: 877.85 | AK18: 0 | AL18: 42095.17 | AM18: 6481.61 | AN18: 304.08 | AO18: 188.24 | AP18: 0 | AQ18: 340.28 | AR18: 452.5 | AS18: 7766.71 | AT18: 49861.88 | AU18: 49861.88 | AV18: 0 | AW18: 181
A19: Client 06 | B19: Cluster 2 | C19: 514 | D19: SA716-3603 SL CORE | E19: SL Supported Living | F19: 2019-05-18 | G19: 2019-05-15 | H19: 2019-06-30 | J19: 47 | K19: 1 | L19: 3 | M19: 223.56 | R19: 0 | S19: 0 | T19: 0 | U19: 0 | V19: 0 | W19: 4.16 | X19: 4.85 | Y19: 232.57 | Z19: 35.81 | AA19: 1.68 | AB19: 1.04 | AC19: 0 | AD19: 2.35 | AE19: 0 | AF19: 40.88 | AG19: 273.45 | AH19: 10507.32 | AI19: 195.52 | AJ19: 227.95 | AK19: 0 | AL19: 10930.79 | AM19: 1683.07 | AN19: 78.96 | AO19: 48.88 | AP19: 0 | AQ19: 110.45 | AR19: 0 | AS19: 1921.36 | AT19: 12852.15 | AU19: 12852.15 | AV19: 0 | AW19: 47
A20: Client 07 | B20: Cluster 2 | C20: 515 | D20: SA716-3603 SL CORE | E20: SL Supported Living | F20: 2019-01-01 | H20: 2019-06-30 | J20: 181 | K20: 1 | L20: 2 | M20: 144.81 | R20: 0 | S20: 0 | T20: 0 | U20: 0 | V20: 0 | W20: 2.69 | X20: 4.85 | Y20: 152.35 | Z20: 34.02 | AA20: 1.68 | AB20: 0.68 | AC20: 0 | AD20: 2.5 | AE20: 2.5 | AF20: 41.38 | AG20: 193.73 | AH20: 26210.61 | AI20: 486.89 | AJ20: 877.85 | AK20: 0 | AL20: 27575.35 | AM20: 6157.62 | AN20: 304.08 | AO20: 123.08 | AP20: 0 | AQ20: 452.5 | AR20: 452.5 | AS20: 7489.78 | AT20: 35065.13 | AU20: 35065.13 | AV20: 0 | AW20: 181
A21: Client 08 | B21: Cluster 2 | C21: 516 | D21: SA716-3603 SL CORE | E21: SL Supported Living | F21: 2019-01-01 | H21: 2019-06-30 | J21: 181 | K21: 1 | L21: 2 | M21: 144.81 | R21: 0 | S21: 0 | T21: 0 | U21: 0 | V21: 0 | W21: 2.69 | X21: 4.85 | Y21: 152.35 | Z21: 34.02 | AA21: 1.68 | AB21: 0.68 | AC21: 0 | AD21: 2.5 | AE21: 10.44 | AF21: 49.32 | AG21: 201.67 | AH21: 26210.61 | AI21: 486.89 | AJ21: 877.85 | AK21: 0 | AL21: 27575.35 | AM21: 6157.62 | AN21: 304.08 | AO21: 123.08 | AP21: 0 | AQ21: 452.5 | AR21: 1889.64 | AS21: 8926.92 | AT21: 36502.27 | AU21: 36502.27 | AV21: 0 | AW21: 181
A22: Client 09 | B22: Cluster 2 | C22: 517 | D22: SA716-3603 SL CORE | E22: SL Supported Living | F22: 2019-01-01 | H22: 2019-06-30 | J22: 181 | K22: 1 | L22: 2 | M22: 144.81 | R22: 0 | S22: 0 | T22: 0 | U22: 0 | V22: 0 | W22: 2.69 | X22: 4.85 | Y22: 152.35 | Z22: 34.02 | AA22: 1.68 | AB22: 0.68 | AC22: 0 | AD22: 3.25 | AE22: 13.87 | AF22: 53.5 | AG22: 205.85 | AH22: 26210.61 | AI22: 486.89 | AJ22: 877.85 | AK22: 0 | AL22: 27575.35 | AM22: 6157.62 | AN22: 304.08 | AO22: 123.08 | AP22: 0 | AQ22: 588.25 | AR22: 2510.47 | AS22: 9683.5 | AT22: 37258.85 | AU22: 37258.85 | AV22: 0 | AW22: 181
A23: Client 10 | B23: Cluster 3 | C23: 518 | D23: SA716-3603 SL CORE | E23: SL Supported Living | F23: 2019-01-01 | H23: 2019-06-30 | J23: 181 | K23: 1 | L23: 3 | M23: 223.56 | N23: 0.35 | O23: 26.5 | R23: 0 | S23: 0 | T23: 0 | U23: 0 | V23: 9.275 | W23: 4.16 | X23: 4.85 | Y23: 241.845 | Z23: 35.81 | AA23: 1.68 | AB23: 1.04 | AC23: 0 | AD23: 3.2 | AE23: 7.9 | AF23: 49.63 | AG23: 291.475 | AH23: 40464.36 | AI23: 752.96 | AJ23: 877.85 | AK23: 1678.775 | AL23: 43773.945 | AM23: 6481.61 | AN23: 304.08 | AO23: 188.24 | AP23: 0 | AQ23: 579.2 | AR23: 1429.9 | AS23: 8983.03 | AT23: 52756.975 | AU23: 52756.975 | AV23: 0 | AW23: 181
A24: Client 12 | B24: Cluster 3 | C24: 520 | D24: SA716-3603 SL CORE | E24: SL Supported Living | F24: 2019-01-01 | H24: 2019-06-30 | J24: 181 | K24: 1 | L24: 3 | M24: 223.56 | R24: 0 | S24: 0 | T24: 0 | U24: 0 | V24: 0 | W24: 4.16 | X24: 4.85 | Y24: 232.57 | Z24: 35.81 | AA24: 1.68 | AB24: 1.04 | AC24: 0 | AD24: 2.25 | AE24: 0 | AF24: 40.78 | AG24: 273.35 | AH24: 40464.36 | AI24: 752.96 | AJ24: 877.85 | AK24: 0 | AL24: 42095.17 | AM24: 6481.61 | AN24: 304.08 | AO24: 188.24 | AP24: 0 | AQ24: 407.25 | AR24: 0 | AS24: 7381.18 | AT24: 49476.35 | AU24: 49476.35 | AV24: 0 | AW24: 181
A25: Client 13 | B25: Cluster 3 | C25: 521 | D25: SA716-3603 SL CORE | E25: SL Supported Living | F25: 2019-01-01 | H25: 2019-06-30 | J25: 181 | K25: 1 | L25: 3 | M25: 223.56 | R25: 0 | S25: 0 | T25: 0 | U25: 0 | V25: 0 | W25: 4.16 | X25: 4.85 | Y25: 232.57 | Z25: 35.81 | AA25: 1.68 | AB25: 1.04 | AC25: 0 | AD25: 1.85 | AE25: 0 | AF25: 40.38 | AG25: 272.95 | AH25: 40464.36 | AI25: 752.96 | AJ25: 877.85 | AK25: 0 | AL25: 42095.17 | AM25: 6481.61 | AN25: 304.08 | AO25: 188.24 | AP25: 0 | AQ25: 334.85 | AR25: 0 | AS25: 7308.78 | AT25: 49403.95 | AU25: 49403.95 | AV25: 0 | AW25: 181
A26: Client 15 | B26: Cluster 3 | C26: 523 | D26: SA716-3603 SL CORE | E26: SL Supported Living | F26: 2019-02-01 | H26: 2019-06-30 | J26: 150 | K26: 1 | L26: 2 | M26: 144.81 | R26: 0 | S26: 0 | T26: 0 | U26: 0 | V26: 0 | W26: 2.69 | X26: 4.85 | Y26: 152.35 | Z26: 34.02 | AA26: 1.68 | AB26: 0.68 | AC26: 0 | AD26: 3.25 | AE26: 2.5 | AF26: 42.13 | AG26: 194.48 | AH26: 21721.5 | AI26: 403.5 | AJ26: 727.5 | AK26: 0 | AL26: 22852.5 | AM26: 5103 | AN26: 252 | AO26: 102 | AP26: 0 | AQ26: 487.5 | AR26: 375 | AS26: 6319.5 | AT26: 29172 | AU26: 29172 | AV26: 0 | AW26: 150
A27: Client 16 | B27: Cluster 3 | C27: 524 | D27: SA716-3603 SL CORE | E27: SL Supported Living | F27: 2019-01-01 | H27: 2019-06-30 | J27: 181 | K27: 1 | L27: 3 | M27: 223.56 | N27: 0.2 | O27: 38.75 | P27: 0.25 | Q27: 26.5 | R27: 0 | S27: 0 | T27: 0 | U27: 0 | V27: 14.375 | W27: 4.16 | X27: 4.85 | Y27: 246.945 | Z27: 35.81 | AA27: 1.68 | AB27: 1.04 | AC27: 0 | AD27: 2.5 | AE27: 2.5 | AF27: 43.53 | AG27: 290.475 | AH27: 40464.36 | AI27: 752.96 | AJ27: 877.85 | AK27: 2601.875 | AL27: 44697.045 | AM27: 6481.61 | AN27: 304.08 | AO27: 188.24 | AP27: 0 | AQ27: 452.5 | AR27: 452.5 | AS27: 7878.93 | AT27: 52575.975 | AU27: 52575.975 | AV27: 0 | AW27: 181
A28: Client 17 | B28: Cluster 4 | C28: 525 | D28: SA716-3603 SL CORE | E28: SL Supported Living | F28: 2019-01-01 | H28: 2019-06-30 | J28: 181 | K28: 1 | L28: 2 | M28: 144.81 | R28: 0 | S28: 0 | T28: 0 | U28: 0 | V28: 0 | W28: 2.69 | X28: 4.85 | Y28: 152.35 | Z28: 34.02 | AA28: 1.68 | AB28: 0.68 | AC28: 0 | AD28: 2.5 | AE28: 0 | AF28: 38.88 | AG28: 191.23 | AH28: 26210.61 | AI28: 486.89 | AJ28: 877.85 | AK28: 0 | AL28: 27575.35 | AM28: 6157.62 | AN28: 304.08 | AO28: 123.08 | AP28: 0 | AQ28: 452.5 | AR28: 0 | AS28: 7037.28 | AT28: 34612.63 | AU28: 34612.63 | AV28: 0 | AW28: 181
A29: Client 20 | B29: Cluster 4 | C29: 528 | D29: SA716-3603 SL CORE | E29: SL Supported Living | F29: 2019-01-01 | H29: 2019-06-30 | J29: 181 | K29: 1 | L29: 3 | M29: 223.56 | R29: 0 | S29: 0 | T29: 0 | U29: 0 | V29: 0 | W29: 4.16 | X29: 4.85 | Y29: 232.57 | Z29: 35.81 | AA29: 1.68 | AB29: 1.04 | AC29: 0 | AD29: 3.47 | AE29: 0 | AF29: 42 | AG29: 274.57 | AH29: 40464.36 | AI29: 752.96 | AJ29: 877.85 | AK29: 0 | AL29: 42095.17 | AM29: 6481.61 | AN29: 304.08 | AO29: 188.24 | AP29: 0 | AQ29: 628.07 | AR29: 0 | AS29: 7602 | AT29: 49697.17 | AU29: 49697.17 | AV29: 0 | AW29: 181
A30: Client 23 | B30: Cluster 4 | C30: 531 | D30: SA716-3603 SL CORE | E30: SL Supported Living | F30: 2019-01-01 | H30: 2019-06-30 | J30: 181 | K30: 1 | L30: 3 | M30: 223.56 | R30: 0 | S30: 0 | T30: 0 | U30: 0 | V30: 0 | W30: 4.16 | X30: 4.85 | Y30: 232.57 | Z30: 35.81 | AA30: 1.68 | AB30: 1.04 | AC30: 0 | AD30: 3.5 | AE30: 0 | AF30: 42.03 | AG30: 274.6 | AH30: 40464.36 | AI30: 752.96 | AJ30: 877.85 | AK30: 0 | AL30: 42095.17 | AM30: 6481.61 | AN30: 304.08 | AO30: 188.24 | AP30: 0 | AQ30: 633.5 | AR30: 0 | AS30: 7607.43 | AT30: 49702.6 | AU30: 49702.6 | AV30: 0 | AW30: 181
A31: Client 24 | B31: Cluster 4 | C31: 532 | D31: SA716-3603 SL CORE | E31: SL Supported Living | F31: 2019-01-01 | H31: 2019-06-30 | J31: 181 | K31: 1 | L31: 2 | M31: 144.81 | R31: 0 | S31: 0 | T31: 0 | U31: 0 | V31: 0 | W31: 2.69 | X31: 4.85 | Y31: 152.35 | Z31: 34.02 | AA31: 1.68 | AB31: 0.68 | AC31: 0 | AD31: 3.5 | AE31: 7.9 | AF31: 47.78 | AG31: 200.13 | AH31: 26210.61 | AI31: 486.89 | AJ31: 877.85 | AK31: 0 | AL31: 27575.35 | AM31: 6157.62 | AN31: 304.08 | AO31: 123.08 | AP31: 0 | AQ31: 633.5 | AR31: 1429.9 | AS31: 8648.18 | AT31: 36223.53 | AU31: 36223.53 | AV31: 0 | AW31: 181
A32: Client 25 | B32: Cluster 4 | C32: 533 | D32: SA716-3603 SL CORE | E32: SL Supported Living | F32: 2019-06-05 | G32: 2019-06-06 | H32: 2019-06-30 | J32: 25 | K32: 1 | L32: 3 | M32: 223.56 | R32: 0 | S32: 0 | T32: 0 | U32: 0 | V32: 0 | W32: 4.16 | X32: 4.85 | Y32: 232.57 | Z32: 35.81 | AA32: 1.68 | AB32: 1.04 | AC32: 0 | AD32: 5.76 | AE32: 13.87 | AF32: 58.16 | AG32: 290.73 | AH32: 5589 | AI32: 104 | AJ32: 121.25 | AK32: 0 | AL32: 5814.25 | AM32: 895.25 | AN32: 42 | AO32: 26 | AP32: 0 | AQ32: 144 | AR32: 346.75 | AS32: 1454 | AT32: 7268.25 | AU32: 7268.25 | AV32: 0 | AW32: 25
A33: Client 28 | B33: Cluster 4 | C33: 536 | D33: SA716-3603 SL CORE | E33: SL Supported Living | F33: 2019-01-01 | H33: 2019-04-30 | J33: 120 | K33: 1 | L33: 3 | M33: 223.56 | R33: 0 | S33: 0 | T33: 0 | U33: 0 | V33: 0 | W33: 4.16 | X33: 4.85 | Y33: 232.57 | Z33: 35.81 | AA33: 1.68 | AB33: 1.04 | AC33: 0 | AD33: 2.45 | AE33: 0 | AF33: 40.98 | AG33: 273.55 | AH33: 26827.2 | AI33: 499.2 | AJ33: 582 | AK33: 0 | AL33: 27908.4 | AM33: 4297.2 | AN33: 201.6 | AO33: 124.8 | AP33: 0 | AQ33: 294 | AR33: 0 | AS33: 4917.6 | AT33: 32826 | AU33: 32826 | AV33: 0 | AW33: 120
J34: 0 | R34: 0 | S34: 0 | T34: 0 | U34: 0 | V34: 0 | Y34: 0 | AF34: 0 | AG34: 0 | AH34: 0 | AI34: 0 | AJ34: 0 | AK34: 0 | AL34: 0 | AM34: 0 | AN34: 0 | AO34: 0 | AP34: 0 | AQ34: 0 | AR34: 0 | AS34: 0 | AT34: 0 | AU34: 0 | AV34: 0 | AW34: 0
J35: 0 | R35: 0 | S35: 0 | T35: 0 | U35: 0 | V35: 0 | Y35: 0 | AF35: 0 | AG35: 0 | AH35: 0 | AI35: 0 | AJ35: 0 | AK35: 0 | AL35: 0 | AM35: 0 | AN35: 0 | AO35: 0 | AP35: 0 | AQ35: 0 | AR35: 0 | AS35: 0 | AT35: 0 | AU35: 0 | AV35: 0 | AW35: 0
J36: =IF(F36>0,+IF(I36>0,I36,H36)-IF(G36>0,G36,F36)+1,0) -> 0 | R36: 0 | S36: 0 | T36: 0 | U36: 0 | V36: =+N36*O36+P36*Q36 -> 0 | Y36: =(M36+V36+W36+X36) -> 0 | AF36: 0 | AG36: 0 | AH36: 0 | AI36: 0 | AJ36: 0 | AK36: 0 | AL36: 0 | AM36: 0 | AN36: 0 | AO36: 0 | AP36: 0 | AQ36: 0 | AR36: 0 | AS36: 0 | AT36: 0 | AU36: 0 | AV36: 0 | AW36: 0
J37: 0 | R37: 0 | S37: 0 | T37: 0 | U37: 0 | V37: 0 | Y37: 0 | AF37: 0 | AG37: 0 | AH37: 0 | AI37: 0 | AJ37: 0 | AK37: 0 | AL37: 0 | AM37: 0 | AN37: 0 | AO37: 0 | AP37: 0 | AQ37: 0 | AR37: 0 | AS37: 0 | AT37: 0 | AU37: 0 | AV37: 0 | AW37: 0
J38: 0 | R38: 0 | S38: 0 | T38: 0 | U38: 0 | V38: 0 | Y38: 0 | AF38: 0 | AG38: 0 | AH38: 0 | AI38: 0 | AJ38: 0 | AK38: 0 | AL38: 0 | AM38: 0 | AN38: 0 | AO38: 0 | AP38: 0 | AQ38: 0 | AR38: 0 | AS38: 0 | AT38: 0 | AU38: 0 | AV38: 0 | AW38: 0
J39: 0 | R39: 0 | S39: 0 | T39: 0 | U39: 0 | V39: 0 | Y39: 0 | AF39: 0 | AG39: 0 | AH39: 0 | AI39: 0 | AJ39: 0 | AK39: 0 | AL39: 0 | AM39: 0 | AN39: 0 | AO39: 0 | AP39: 0 | AQ39: 0 | AR39: 0 | AS39: 0 | AT39: 0 | AU39: 0 | AV39: 0 | AW39: 0
J40: 0 | R40: 0 | S40: 0 | T40: 0 | U40: 0 | V40: 0 | Y40: 0 | AF40: 0 | AG40: 0 | AH40: 0 | AI40: 0 | AJ40: 0 | AK40: 0 | AL40: 0 | AM40: 0 | AN40: 0 | AO40: 0 | AP40: 0 | AQ40: 0 | AR40: 0 | AS40: 0 | AT40: 0 | AU40: 0 | AV40: 0 | AW40: 0
J41: 0 | R41: 0 | S41: 0 | T41: 0 | U41: 0 | V41: 0 | Y41: 0 | AF41: 0 | AG41: 0 | AH41: 0 | AI41: 0 | AJ41: 0 | AK41: 0 | AL41: 0 | AM41: 0 | AN41: 0 | AO41: 0 | AP41: 0 | AQ41: 0 | AR41: 0 | AS41: 0 | AT41: 0 | AU41: 0 | AV41: 0 | AW41: 0
J42: 0 | R42: 0 | S42: 0 | T42: 0 | U42: 0 | V42: 0 | Y42: 0 | AF42: =SUM(Z42:AE42) -> 0 | AG42: =+Y42+AF42 -> 0 | AH42: =M42*J42 -> 0 | AI42: =W42*J42 -> 0 | AJ42: =X42*J42 -> 0 | AK42: =V42*J42 -> 0 | AL42: =$J42*Y42 -> 0 | AM42: 0 | AN42: 0 | AO42: 0 | AP42: 0 | AQ42: =J42*AD42 -> 0 | AR42: =$J42*AE42 -> 0 | AS42: 0 | AT42: =AL42+AS42 -> 0 | AU42: =IF(A43=A42,0,SUMIF($A$4:$A$4805,$A42,AL$4:AL$4805))+IF(A43=A42,0,SUMIF($A$4:$A$4805,$A42,AS$4:AS$4805)) -> 0 | AV42: =IF($O42=$AU$1,$N42*$O42*$J42,0)+IF($Q42=$AU$1,$P42*$Q42*$J42,0) -> 0 | AW42: =IF(A43=A42,0,SUMIF($A$4:$A$4805,$A42,J$4:J$4805))+IF(A43=A42,0,SUMIF($A$4:$A$4805,$A42)) -> 0
AF43: =SUM(Z43:AE43) -> 0 | AG43: 0 | AH43: 0 | AI43: 0 | AJ43: 0 | AK43: 0 | AL43: 0 | AM43: 0 | AN43: 0 | AO43: 0 | AQ43: 0 | AR43: 0 | AS43: 0 | AT43: 0 | AU43: =IF(A44=A43,0,SUMIF($A$4:$A$4805,$A43,AL$4:AL$4805))+IF(A44=A43,0,SUMIF($A$4:$A$4805,$A43,AS$4:AS$4805)) -> 0 | AV43: 0 | AW43: =IF(C44=C43,0,SUMIF($C$4:$C$4597,$C43,J$4:J$4597))+IF(C44=C43,0,SUMIF($C$5:$C$4598,$C43)) -> 0
A44: Totals - Detail | J44: =SUBTOTAL(9,J4:J43) -> 4556 | K44: =SUBTOTAL(9,K4:K43) -> 29 | V44: =SUBTOTAL(9,V4:V43) -> 40.675 | Y44: =SUBTOTAL(9,Y4:Y43) -> 6949.835 | AF44: =SUBTOTAL(9,AF4:AF43) -> 1532.27 | AG44: 8482.105 | AH44: 1008920.58 | AI44: 18761.42 | AJ44: 22096.6 | AK44: 6814.95 | AL44: 1056593.55 | AM44: 195245.82 | AN44: 7654.08 | AO44: 4704.15 | AP44: 0 | AQ44: 8473.26 | AR44: 15239.39 | AS44: 231316.7 | AT44: 1287910.25 | AU44: 1287910.25 | AW44: =SUBTOTAL(9,AW4:AW43) -> 4556
A45: 1 | E45: SL Supported Living | J45: =SUMIF($E$4:$E$42,$E$45,J4:J42) -> 3057 | K45: =SUMIF($E$4:$E$42,$E$45,K4:K42) -> 19 | V45: =SUMIF($E$4:$E$42,$E$45,V4:V42) -> 40.675 | Y45: =SUMIF($E$4:$E$42,$E$45,Y4:Y42) -> 4130.535 | AF45: =SUMIF($E$4:$E$42,$E$45,AF4:AF42) -> 911.88 | AG45: 5042.415 | AH45: 586087.92 | AI45: 10900.2 | AJ45: 14826.45 | AK45: 6814.95 | AL45: 618629.52 | AM45: 107258.73 | AN45: 5135.76 | AO45: 2734.32 | AP45: 0 | AQ45: 8473.26 | AR45: 13881.89 | AS45: 137483.96 | AT45: 756113.48 | AU45: 756113.48 | AV45: 0 | AW45: 3057
A46: 2 | E46: GH Group Home | J46: =SUMIF($E$4:$E$42,$E$46,J4:J43) -> 956 | K46: =SUMIF($E$4:$E$42,$E$46,K4:K43) -> 7 | V46: =SUMIF($E$4:$E$42,$E$46,V4:V43) -> 0 | Y46: =SUMIF($E$4:$E$42,$E$46,Y4:Y43) -> 1760.64 | AF46: =SUMIF($E$4:$E$42,$E$46,AF4:AF43) -> 423.2 | AG46: 2183.84 | AH46: 237296.8 | AI46: 4413.17 | AJ46: 4636.6 | AK46: 0 | AL46: 246346.57 | AM46: 54978.12 | AN46: 1606.08 | AO46: 1104.65 | AP46: 0 | AQ46: 0 | AR46: 452.5 | AS46: 58141.35 | AT46: 304487.92 | AU46: 304487.92 | AV46: 0 | AW46: 956
A47: 3 | E47: GTH Group Training Home | J47: =SUMIF($E$4:$E$42,$E$47,J4:J42) -> 543 | K47: =SUMIF($E$4:$E$42,$E$47,K4:K42) -> 3 | V47: =SUMIF($E$4:$E$42,$E$47,V4:V42) -> 0 | Y47: =SUMIF($E$4:$E$42,$E$47,Y4:Y42) -> 1058.66 | AF47: =SUMIF($E$4:$E$42,$E$47,AF4:AF42) -> 197.19 | AG47: 1255.85 | AH47: 185535.86 | AI47: 3448.05 | AJ47: 2633.55 | AK47: 0 | AL47: 191617.46 | AM47: 33008.97 | AN47: 912.24 | AO47: 865.18 | AP47: 0 | AQ47: 0 | AR47: 905 | AS47: 35691.39 | AT47: 227308.85 | AU47: 227308.85 | AV47: 0 | AW47: 543
A48: DSHS/DDA Schedule H Rate History (Rev.12/2019)

Sheet COCA
D2: Deveopmental Disabilities
D3: Cost of Care Adjustment
A5: Provider Completes
A6: Absent Client's Name: | D6: Provider Name | H6: Date Submitted
A7: Client 2 | D7: ABC Residential Services | H7: 2019-07-15
A8: Affected Housemates | C8: P1 ID | D8: Provider ID
A9: Client 8 | D9: 555777999
D10: Reason for Temporary Absence
D11: Admitted to medical facility | G11: Admitted to nursing facility
D12: Social leave | G12: RHC respite
D13: In jail | G13: Death(date):
D14: other (describe)
D16: Departure Date | F16: Estimated Return Date | I16: Est. Days
D17: 2019-07-01 | F17: 2019-07-31 | I17: =_xlfn.DAYS(F17,D17)+1 -> 31
A19: DDA Use Only
A20: Covered Cost | E20: housemate assigned for COCA authorization
A21: ISS Shared Support | D21: 139.66 | E21: Client 8
A22: ISS CRST | D22: 3.17 | E22: Service Code | G22: 726 U1 (waiver SL)
A23: Shared Professional Services | D23: 0 | E23: amount paid per calendar month
A24: Administrative Tier Rate | D24: 37.23 | E24: 31 | F24: 1st | G24: 2nd | H24: 3rd | I24: total
A25: Administrative CRST | D25: 0.79 | E25: # days | F25: 0 | G25: 0 | H25: 0
A26: Total COCA Daily Rate | D26: =SUM(D21:D25) -> 180.85 | E26: amount | F26: =D26*F25 -> 0 | G26: =D26*G25 -> 0 | H26: =D26*H25 -> 0 | I26: =F26+G26+H26 -> 0
A27: Approval
A28: DDA RMA/DESIGNEE SIGNATURE: | H28: DATE:
H29: 2019-07-31
A30: authorization
A31: Date authorized:
A32: processing commments:
A35: DISTRIBUTION: Resource Manager Contracts file PROVIDER DDA Rates Analyst
A36: DSHS 06-124 (REV. 02/19)

Sheet YE Schedule H Rate History
A1: Program Name | D1: 3S - ABC Residential Services | F1: Provider ID | H1: =VLOOKUP(D1,[13]List!A2:B132,2,FALSE) -> 555777999 | L1: FOR PROVIDER USE ONLY DO NOT SUBMIT WITH COST REPORT | AK1: ANNUAL SERVICES PAID BY PROGRAM TYPE | AO1: =IF(AN1="","",AH2+AI2+AJ2) ->  | AR1: PROFESSIONAL SERVICES | AV1: Professional Svs Paid Calculation | AW1: =SUM(AV4:AV58) -> 0
A2: Report Period | D2: 2019-01-01 | F2: 2019-12-31 | J2: =IF($AN$1="",SUM(J4:J57),SUMIF($E$4:$E$57,$AN$1,J4:J57)) -> 9477 | K2: =IF($AN$1="",SUM(K4:K57),SUMIF($E$4:$E$57,$AN$1,K4:K57)) -> 33 | AG2: Annual Totals | AH2: =IF($AN$1="",SUM(AH4:AH57),SUMIF($E$4:$E$57,$AN$1,AH4:AH57)) -> 2109537.83 | AI2: 39241.41 | AJ2: 45963.45 | AK2: 14299.15 | AL2: 2209041.84 | AM2: 403723.11 | AN2: 15921.36 | AO2: 9841.44 | AP2: 0 | AQ2: 18381.86 | AR2: 32326.7 | AS2: 480194.47 | AT2: 2689236.31 | AU2: 2689236.31 | AV2: 0 | AW2: 9477
A3: Client Name (b) | B3: House or Cluster | C3: Client P1 ID (c) | D3: P1 Service Code/RAC (w) | E3: Program Type | F3: Rate Effective Date (d) | G3: Actual Start Date (Overrides Rate Effective Date) | H3: Rate End Date | I3: Actual End Date (Overrides Rate End Date) | J3: Resid Days Paid | K3: Client Count | L3: ISS Tier Level (e) | M3: ISS Daily Tier Rate (f) | N3: Prof Svs Hrs PCD 1 (g) | O3: Prof Svs Hrly Rate 1 (h) | P3: Prof Svs Hrs PCD 2 (i) | Q3: Prof Svs Hrly Rate 2 (j) | R3: Prof Svs Hrs PCD 3 | S3: Prof Svs Hrly Rate 3 | T3: Prof Svs Hrs PCD 4 | U3: Prof Svs Hrly Rate 4 | V3: ISS Prof Svs Daily Rate | W3: ISS CRST Tier Rate (l) | X3: ISS Hold Harmless Rate (m) | Y3: Total ISS Daily Rate | Z3: Admin Tier Rate (o) | AA3: Admin Hold Harmless (p) | AB3: Admin CRST Tier Rate (q) | AC3: Admin Cert Rate (r) | AD3: Transportion Rate (s) | AE3: Other Non-ISS Rates (t) | AF3: Total Non-ISS Daily Rate | AG3: Total ISS & Non-ISS Daily Rate | AH3: Annual ISS Paid | AI3: Annual ISS CRST Paid | AJ3: Annual ISS Hold Harmless Paid | AK3: Annual ISS Prof Svs Paid | AL3: Total Annual ISS Paid | AM3: Annual Admin Paid | AN3: Annual Admin Hold Harmless Paid | AO3: Annual Admin CRST Paid | AP3: Annual Admin Cert Paid | AQ3: Annual Transportation Paid | AR3: Annual Other Non-ISS Paid | AS3: Total Annual Non-ISS Paid | AT3: Annual ISS & Non-ISS Paid | AU3: Total ISS & Non-ISS Paid per Client | AV3: Prof Svs Paid Calculation | AW3: Total Days Paid per Client
A4: Client A | B4: House 1 | C4: 500 | D4: SA722-3603 GH CORE | E4: GH Group Home | F4: 2019-01-01 | H4: 2019-12-31 | J4: =IF(F4>0,+IF(I4>0,I4,H4)-IF(G4>0,G4,F4)+1,0) -> 365 | K4: =IF(C4<=0,"",IF(C4=C3,"",1)) -> 1 | L4: 4 | M4: 291.71 | R4: 0 | S4: 0 | T4: 0 | U4: 0 | V4: =+N4*O4+P4*Q4 -> 0 | W4: 5.42 | X4: 4.85 | Y4: =(M4+V4+W4+X4) -> 301.98 | Z4: 57.97 | AA4: 1.68 | AB4: 1.36 | AC4: 0 | AD4: 0 | AE4: 0 | AF4: =SUM(Z4:AE4) -> 61.01 | AG4: =+Y4+AF4 -> 362.99 | AH4: =M4*J4 -> 106474.15 | AI4: =W4*J4 -> 1978.3 | AJ4: =X4*J4 -> 1770.25 | AK4: =V4*J4 -> 0 | AL4: =$J4*Y4 -> 110222.7 | AM4: =$J4*Z4 -> 21159.05 | AN4: =$J4*AA4 -> 613.2 | AO4: =$J4*AB4 -> 496.4 | AP4: =$J4*AC4 -> 0 | AQ4: =J4*AD4 -> 0 | AR4: =$J4*AE4 -> 0 | AS4: 22268.65 | AT4: =AL4+AS4 -> 132491.35 | AU4: =IF(A5=A4,0,SUMIF($A$4:$A$4820,$A4,AL$4:AL$4820))+IF(A5=A4,0,SUMIF($A$4:$A$4820,$A4,AS$4:AS$4820)) -> 132491.35 | AV4: =IF($O4=$AU$1,$N4*$O4*$J4,0)+IF($Q4=$AU$1,$P4*$Q4*$J4,0) -> 0 | AW4: =IF(A5=A4,0,SUMIF($A$4:$A$4820,$A4,J$4:J$4820))+IF(A5=A4,0,SUMIF($A$4:$A$4820,$A4)) -> 365
A5: Client B | B5: House 1 | C5: 501 | D5: SA722-3603 GH CORE | E5: GH Group Home | F5: 2019-01-01 | H5: 2019-06-30 | J5: 181 | K5: 1 | L5: 3 | M5: 223.56 | R5: 0 | S5: 0 | T5: 0 | U5: 0 | V5: 0 | W5: 4.16 | X5: 4.85 | Y5: 232.57 | Z5: 56.63 | AA5: 1.68 | AB5: 1.04 | AC5: 0 | AD5: 0 | AE5: 0 | AF5: =SUM(Z5:AE5) -> 59.35 | AG5: =+Y5+AF5 -> 291.92 | AH5: =M5*J5 -> 40464.36 | AI5: =W5*J5 -> 752.96 | AJ5: =X5*J5 -> 877.85 | AK5: =V5*J5 -> 0 | AL5: =$J5*Y5 -> 42095.17 | AM5: =$J5*Z5 -> 10250.03 | AN5: =$J5*AA5 -> 304.08 | AO5: =$J5*AB5 -> 188.24 | AP5: =$J5*AC5 -> 0 | AQ5: =J5*AD5 -> 0 | AR5: =$J5*AE5 -> 0 | AS5: =$J5*AF5 -> 10742.35 | AT5: =AL5+AS5 -> 52837.52 | AU5: =IF(A6=A5,0,SUMIF($A$4:$A$4820,$A5,AL$4:AL$4820))+IF(A6=A5,0,SUMIF($A$4:$A$4820,$A5,AS$4:AS$4820)) -> 0 | AV5: 0 | AW5: =IF(A6=A5,0,SUMIF($A$4:$A$4820,$A5,J$4:J$4820))+IF(A6=A5,0,SUMIF($A$4:$A$4820,$A5)) -> 0
A6: Client B | B6: House 1 | C6: 501 | D6: SA722-3603 GH CORE | E6: GH Group Home | F6: 2019-07-01 | H6: 2019-12-31 | J6: 184 | L6: 3 | M6: 223.56 | R6: 0 | S6: 0 | T6: 0 | U6: 0 | V6: 0 | W6: 4.16 | X6: 4.85 | Y6: 232.57 | Z6: 56.63 | AA6: 1.68 | AB6: 1.04 | AC6: 0 | AD6: 0 | AE6: 0 | AF6: 59.35 | AG6: 291.92 | AH6: 41135.04 | AI6: 765.44 | AJ6: 892.4 | AK6: 0 | AL6: 42792.88 | AM6: 10419.92 | AN6: 309.12 | AO6: 191.36 | AP6: 0 | AQ6: 0 | AR6: 0 | AS6: 10920.4 | AT6: 53713.28 | AU6: 106550.8 | AV6: 0 | AW6: 365
A7: Client C | B7: House 1 | C7: 502 | D7: SA722-3603 GH CORE | E7: GH Group Home | F7: 2019-01-01 | H7: 2019-12-31 | J7: 365 | K7: 1 | L7: 3 | M7: 223.56 | R7: 0 | S7: 0 | T7: 0 | U7: 0 | V7: 0 | W7: 4.16 | X7: 4.85 | Y7: 232.57 | Z7: 56.63 | AA7: 1.68 | AB7: 1.04 | AC7: 0 | AD7: 0 | AE7: 0 | AF7: 59.35 | AG7: 291.92 | AH7: 81599.4 | AI7: 1518.4 | AJ7: 1770.25 | AK7: 0 | AL7: 84888.05 | AM7: 20669.95 | AN7: 613.2 | AO7: 379.6 | AP7: 0 | AQ7: 0 | AR7: 0 | AS7: 21662.75 | AT7: 106550.8 | AU7: 106550.8 | AV7: 0 | AW7: 365
A8: Client D | B8: House 1 | C8: 503 | D8: SA722-3603 GH CORE | E8: GH Group Home | F8: 2019-01-01 | H8: 2019-06-30 | J8: 181 | K8: 1 | L8: 2 | M8: 144.81 | R8: 0 | S8: 0 | T8: 0 | U8: 0 | V8: 0 | W8: 2.69 | X8: 4.85 | Y8: 152.35 | Z8: 54.84 | AA8: 1.68 | AB8: 0.68 | AC8: 0 | AD8: 0 | AE8: 2.5 | AF8: 59.7 | AG8: 212.05 | AH8: 26210.61 | AI8: 486.89 | AJ8: 877.85 | AK8: 0 | AL8: 27575.35 | AM8: 9926.04 | AN8: 304.08 | AO8: 123.08 | AP8: 0 | AQ8: 0 | AR8: 452.5 | AS8: 10805.7 | AT8: 38381.05 | AU8: 0 | AV8: 0 | AW8: 0
A9: Client D | B9: House 1 | C9: 503 | D9: SA722-3603 GH CORE | E9: GH Group Home | F9: 2019-07-01 | H9: 2019-12-31 | J9: 184 | L9: 2 | M9: 144.81 | R9: 0 | S9: 0 | T9: 0 | U9: 0 | V9: 0 | W9: 2.69 | X9: 4.85 | Y9: 152.35 | Z9: 54.84 | AA9: 1.68 | AB9: 0.68 | AC9: 0 | AD9: 0 | AE9: 0 | AF9: 57.2 | AG9: 209.55 | AH9: 26645.04 | AI9: 494.96 | AJ9: 892.4 | AK9: 0 | AL9: 28032.4 | AM9: 10090.56 | AN9: 309.12 | AO9: 125.12 | AP9: 0 | AQ9: 0 | AR9: 0 | AS9: 10524.8 | AT9: 38557.2 | AU9: 76938.25 | AV9: 0 | AW9: 365
A10: Client E | B10: House 1 | C10: 504 | D10: SA722-3905 GTH State | E10: GTH Group Training Home | F10: 2019-01-01 | H10: 2019-12-31 | J10: 365 | K10: 1 | L10: 6 | M10: 441.64 | R10: 0 | S10: 0 | T10: 0 | U10: 0 | V10: 0 | W10: 8.21 | X10: 4.85 | Y10: 454.7 | Z10: 66.43 | AA10: 1.68 | AB10: 2.06 | AC10: 0 | AD10: 0 | AE10: 2.5 | AF10: 72.67 | AG10: 527.37 | AH10: 161198.6 | AI10: 2996.65 | AJ10: 1770.25 | AK10: 0 | AL10: 165965.5 | AM10: 24246.95 | AN10: 613.2 | AO10: 751.9 | AP10: 0 | AQ10: 0 | AR10: 912.5 | AS10: 26524.55 | AT10: 192490.05 | AU10: 192490.05 | AV10: 0 | AW10: 365
A11: Client F | B11: House 2 | C11: 505 | D11: SA722-3905 GTH State | E11: GTH Group Training Home | F11: 2019-01-01 | H11: 2019-12-31 | J11: 365 | K11: 1 | L11: 4 | M11: 291.71 | R11: 0 | S11: 0 | T11: 0 | U11: 0 | V11: 0 | W11: 5.42 | X11: 4.85 | Y11: 301.98 | Z11: 57.97 | AA11: 1.68 | AB11: 1.36 | AC11: 0 | AD11: 0 | AE11: 2.5 | AF11: 63.51 | AG11: 365.49 | AH11: 106474.15 | AI11: 1978.3 | AJ11: 1770.25 | AK11: 0 | AL11: 110222.7 | AM11: 21159.05 | AN11: 613.2 | AO11: 496.4 | AP11: 0 | AQ11: 0 | AR11: 912.5 | AS11: 23181.15 | AT11: 133403.85 | AU11: 133403.85 | AV11: 0 | AW11: 365
A12: Client G | B12: House 2 | C12: 506 | D12: SA722-3905 GTH State | E12: GTH Group Training Home | F12: 2019-01-01 | H12: 2019-12-31 | J12: 365 | K12: 1 | L12: 4 | M12: 291.71 | R12: 0 | S12: 0 | T12: 0 | U12: 0 | V12: 0 | W12: 5.42 | X12: 4.85 | Y12: 301.98 | Z12: 57.97 | AA12: 1.68 | AB12: 1.36 | AC12: 0 | AD12: 0 | AE12: 0 | AF12: 61.01 | AG12: 362.99 | AH12: 106474.15 | AI12: 1978.3 | AJ12: 1770.25 | AK12: 0 | AL12: 110222.7 | AM12: 21159.05 | AN12: 613.2 | AO12: 496.4 | AP12: 0 | AQ12: 0 | AR12: 0 | AS12: 22268.65 | AT12: 132491.35 | AU12: 132491.35 | AV12: 0 | AW12: 365
A13: Client H | B13: House 2 | C13: 507 | D13: SA722-3603 GH CORE | E13: GH Group Home | F13: 2019-01-01 | H13: 2019-08-31 | J13: 243 | K13: 1 | L13: 5 | M13: 364.4 | R13: 0 | S13: 0 | T13: 0 | U13: 0 | V13: 0 | W13: 6.78 | X13: 4.85 | Y13: 376.03 | Z13: 61.72 | AA13: 1.68 | AB13: 1.69 | AC13: 0 | AD13: 0 | AE13: 0 | AF13: 65.09 | AG13: 441.12 | AH13: 88549.2 | AI13: 1647.54 | AJ13: 1178.55 | AK13: 0 | AL13: 91375.29 | AM13: 14997.96 | AN13: 408.24 | AO13: 410.67 | AP13: 0 | AQ13: 0 | AR13: 0 | AS13: 15816.87 | AT13: 107192.16 | AU13: 0 | AV13: 0 | AW13: 0
A14: Client H | B14: House 2 | C14: 507 | D14: SA722-3603 GH CORE | E14: GH Group Home | F14: 2019-09-01 | H14: 2019-12-31 | J14: 122 | L14: 6 | M14: 441.64 | R14: 0 | S14: 0 | T14: 0 | U14: 0 | V14: 0 | W14: 8.21 | X14: 4.85 | Y14: 454.7 | Z14: 66.43 | AA14: 1.68 | AB14: 2.06 | AC14: 0 | AD14: 0 | AE14: 0 | AF14: 70.17 | AG14: 524.87 | AH14: 53880.08 | AI14: 1001.62 | AJ14: 591.7 | AK14: 0 | AL14: 55473.4 | AM14: 8104.46 | AN14: 204.96 | AO14: 251.32 | AP14: 0 | AQ14: 0 | AR14: 0 | AS14: 8560.74 | AT14: 64034.14 | AU14: 171226.3 | AV14: 0 | AW14: 365
A15: Client I | B15: House 2 | C15: 508 | D15: SA722-3603 GH CORE | E15: GH Group Home | F15: 2019-01-01 | H15: 2019-12-31 | I15: 2019-01-21 | J15: 21 | K15: 1 | L15: 3 | M15: 223.56 | R15: 0 | S15: 0 | T15: 0 | U15: 0 | V15: 0 | W15: 4.16 | X15: 4.85 | Y15: 232.57 | Z15: 56.63 | AA15: 1.68 | AB15: 1.04 | AC15: 0 | AD15: 0 | AE15: 0 | AF15: 59.35 | AG15: 291.92 | AH15: 4694.76 | AI15: 87.36 | AJ15: 101.85 | AK15: 0 | AL15: 4883.97 | AM15: 1189.23 | AN15: 35.28 | AO15: 21.84 | AP15: 0 | AQ15: 0 | AR15: 0 | AS15: 1246.35 | AT15: 6130.32 | AU15: 6130.32 | AV15: 0 | AW15: 21
A16: Client J | B16: House 3 | C16: 538 | D16: SA722-3603 GH CORE | E16: GH Group Home | F16: 2019-01-01 | H16: 2019-01-30 | J16: 30 | K16: 1 | L16: 3 | M16: 223.56 | R16: 0 | S16: 0 | T16: 0 | U16: 0 | V16: 0 | W16: 4.16 | X16: 4.85 | Y16: 232.57 | Z16: 56.63 | AA16: 1.68 | AB16: 1.04 | AC16: 0 | AD16: 0 | AE16: 0 | AF16: 59.35 | AG16: 291.92 | AH16: 6706.8 | AI16: 124.8 | AJ16: 145.5 | AK16: 0 | AL16: 6977.1 | AM16: 1698.9 | AN16: 50.4 | AO16: 31.2 | AP16: 0 | AQ16: 0 | AR16: 0 | AS16: 1780.5 | AT16: 8757.6 | AU16: 8757.6 | AV16: 0 | AW16: 30
A17: Client 01 | B17: Cluster 1 | C17: 509 | D17: SA716-3603 SL CORE | E17: SL Supported Living | F17: 2019-01-01 | H17: 2019-12-31 | J17: 365 | K17: 1 | L17: 2 | M17: 144.81 | N17: 0.2 | O17: 38.75 | R17: 0 | S17: 0 | T17: 0 | U17: 0 | V17: 7.75 | W17: 2.69 | X17: 4.85 | Y17: 160.1 | Z17: 34.02 | AA17: 1.68 | AB17: 0.68 | AC17: 0 | AD17: 2.25 | AE17: 2.5 | AF17: 41.13 | AG17: 201.23 | AH17: 52855.65 | AI17: 981.85 | AJ17: 1770.25 | AK17: 2828.75 | AL17: 58436.5 | AM17: 12417.3 | AN17: 613.2 | AO17: 248.2 | AP17: 0 | AQ17: 821.25 | AR17: 912.5 | AS17: 15012.45 | AT17: 73448.95 | AU17: 73448.95 | AV17: 0 | AW17: 365
A18: Client 02 | B18: Cluster 1 | C18: 510 | D18: SA716-3603 SL CORE | E18: SL Supported Living | F18: 2019-01-01 | H18: 2019-12-31 | I18: 2019-06-30 | J18: 181 | K18: 1 | L18: 3 | M18: 223.56 | R18: 0 | S18: 0 | T18: 0 | U18: 0 | V18: 0 | W18: 4.16 | X18: 4.85 | Y18: 232.57 | Z18: 35.81 | AA18: 1.68 | AB18: 1.04 | AC18: 0 | AD18: 2.25 | AE18: 13.87 | AF18: 54.65 | AG18: 287.22 | AH18: 40464.36 | AI18: 752.96 | AJ18: 877.85 | AK18: 0 | AL18: 42095.17 | AM18: 6481.61 | AN18: 304.08 | AO18: 188.24 | AP18: 0 | AQ18: 407.25 | AR18: 2510.47 | AS18: 9891.65 | AT18: 51986.82 | AU18: 51986.82 | AV18: 0 | AW18: 181
A19: Client 02 (Client 8) COCA | B19: Cluster 1 | C19: 510 | D19: SA716-3603 SL CORE | E19: SL Supported Living | F19: 2019-07-01 | H19: 2019-07-31 | J19: 31 | L19: 3 | M19: 223.56 | R19: 0 | S19: 0 | T19: 0 | U19: 0 | V19: 0 | W19: 4.16 | X19: 4.85 | Y19: 232.57 | Z19: 35.81 | AA19: 1.68 | AB19: 1.04 | AC19: 0 | AD19: 2.25 | AE19: 13.87 | AF19: 54.65 | AG19: 287.22 | AH19: 6930.36 | AI19: 128.96 | AJ19: 150.35 | AK19: 0 | AL19: 7209.67 | AM19: 1110.11 | AN19: 52.08 | AO19: 32.24 | AP19: 0 | AQ19: 69.75 | AR19: 429.97 | AS19: 1694.15 | AT19: 8903.82 | AU19: 8903.82 | AV19: 0 | AW19: 31
A20: Client 03 | B20: Cluster 1 | C20: 511 | D20: SA716-3603 SL CORE | E20: SL Supported Living | F20: 2019-08-01 | G20: 2019-08-03 | H20: 2019-12-31 | I20: 2019-10-31 | J20: 90 | K20: 1 | L20: 2 | M20: 144.81 | R20: 0 | S20: 0 | T20: 0 | U20: 0 | V20: 0 | W20: 2.69 | X20: 4.85 | Y20: 152.35 | Z20: 34.02 | AA20: 1.68 | AB20: 0.68 | AC20: 0 | AD20: 1.85 | AE20: 7.9 | AF20: 46.13 | AG20: 198.48 | AH20: 13032.9 | AI20: 242.1 | AJ20: 436.5 | AK20: 0 | AL20: 13711.5 | AM20: 3061.8 | AN20: 151.2 | AO20: 61.2 | AP20: 0 | AQ20: 166.5 | AR20: 711 | AS20: 4151.7 | AT20: 17863.2 | AU20: 17863.2 | AV20: 0 | AW20: 90
A21: Client 03 (Client 12) COCA | B21: Cluster 1 | C21: 511 | D21: SA716-3603 SL CORE | E21: SL Supported Living | F21: 2019-11-01 | H21: 2019-12-31 | J21: 61 | L21: 2 | M21: 144.81 | R21: 0 | S21: 0 | T21: 0 | U21: 0 | V21: 0 | W21: 2.69 | X21: 4.85 | Y21: 152.35 | Z21: 34.02 | AA21: 1.68 | AB21: 0.68 | AC21: 0 | AD21: 3.5 | AE21: 10.44 | AF21: 50.32 | AG21: 202.67 | AH21: 8833.41 | AI21: 164.09 | AJ21: 295.85 | AK21: 0 | AL21: 9293.35 | AM21: 2075.22 | AN21: 102.48 | AO21: 41.48 | AP21: 0 | AQ21: 213.5 | AR21: 636.84 | AS21: 3069.52 | AT21: 12362.87 | AU21: 12362.87 | AV21: 0 | AW21: 61
A22: Client 04 | B22: Cluster 2 | C22: 512 | D22: SA716-3603 SL CORE | E22: SL Supported Living | F22: 2019-01-01 | H22: 2019-12-31 | I22: 2019-02-28 | J22: 59 | K22: 1 | L22: 3 | M22: 223.56 | R22: 0 | S22: 0 | T22: 0 | U22: 0 | V22: 0 | W22: 4.16 | X22: 4.85 | Y22: 232.57 | Z22: 35.81 | AA22: 1.68 | AB22: 1.04 | AC22: 0 | AD22: 1.85 | AE22: 10.44 | AF22: 50.82 | AG22: 283.39 | AH22: 13190.04 | AI22: 245.44 | AJ22: 286.15 | AK22: 0 | AL22: 13721.63 | AM22: 2112.79 | AN22: 99.12 | AO22: 61.36 | AP22: 0 | AQ22: 109.15 | AR22: 615.96 | AS22: 2998.38 | AT22: 16720.01 | AU22: 0 | AV22: 0 | AW22: 0
A23: Client 04 | B23: Cluster 2 | C23: 512 | D23: SA716-3603 SL CORE | E23: SL Supported Living | F23: 2019-03-01 | H23: 2019-12-31 | J23: 306 | L23: 3 | M23: 223.56 | N23: 0.35 | O23: 26.5 | R23: 0 | S23: 0 | T23: 0 | U23: 0 | V23: 9.275 | W23: 4.16 | X23: 4.85 | Y23: 241.845 | Z23: 35.81 | AA23: 1.68 | AB23: 1.04 | AC23: 0 | AD23: 4.58 | AE23: 7.9 | AF23: 51.01 | AG23: 292.855 | AH23: 68409.36 | AI23: 1272.96 | AJ23: 1484.1 | AK23: 2838.15 | AL23: 74004.57 | AM23: 10957.86 | AN23: 514.08 | AO23: 318.24 | AP23: 0 | AQ23: 1401.48 | AR23: 2417.4 | AS23: 15609.06 | AT23: 89613.63 | AU23: 106333.64 | AV23: 0 | AW23: 365
A24: Client 05 | B24: Cluster 2 | C24: 513 | D24: SA716-3603 SL CORE | E24: SL Supported Living | F24: 2019-01-01 | H24: 2019-12-31 | I24: 2019-11-27 | J24: 331 | K24: 1 | L24: 3 | M24: 223.56 | R24: 0 | S24: 0 | T24: 0 | U24: 0 | V24: 0 | W24: 4.16 | X24: 4.85 | Y24: 232.57 | Z24: 35.81 | AA24: 1.68 | AB24: 1.04 | AC24: 0 | AD24: 1.88 | AE24: 2.5 | AF24: 42.91 | AG24: 275.48 | AH24: 73998.36 | AI24: 1376.96 | AJ24: 1605.35 | AK24: 0 | AL24: 76980.67 | AM24: 11853.11 | AN24: 556.08 | AO24: 344.24 | AP24: 0 | AQ24: 622.28 | AR24: 827.5 | AS24: 14203.21 | AT24: 91183.88 | AU24: 91183.88 | AV24: 0 | AW24: 331
A25: Client 06 | B25: Cluster 2 | C25: 514 | D25: SA716-3603 SL CORE | E25: SL Supported Living | F25: 2019-05-18 | G25: 2019-05-15 | H25: 2019-12-31 | J25: 231 | K25: 1 | L25: 3 | M25: 223.56 | R25: 0 | S25: 0 | T25: 0 | U25: 0 | V25: 0 | W25: 4.16 | X25: 4.85 | Y25: 232.57 | Z25: 35.81 | AA25: 1.68 | AB25: 1.04 | AC25: 0 | AD25: 2.35 | AE25: 0 | AF25: 40.88 | AG25: 273.45 | AH25: 51642.36 | AI25: 960.96 | AJ25: 1120.35 | AK25: 0 | AL25: 53723.67 | AM25: 8272.11 | AN25: 388.08 | AO25: 240.24 | AP25: 0 | AQ25: 542.85 | AR25: 0 | AS25: 9443.28 | AT25: 63166.95 | AU25: 63166.95 | AV25: 0 | AW25: 231
A26: Client 07 | B26: Cluster 2 | C26: 515 | D26: SA716-3603 SL CORE | E26: SL Supported Living | F26: 2019-01-01 | H26: 2019-06-30 | J26: 181 | K26: 1 | L26: 2 | M26: 144.81 | R26: 0 | S26: 0 | T26: 0 | U26: 0 | V26: 0 | W26: 2.69 | X26: 4.85 | Y26: 152.35 | Z26: 34.02 | AA26: 1.68 | AB26: 0.68 | AC26: 0 | AD26: 2.5 | AE26: 2.5 | AF26: 41.38 | AG26: 193.73 | AH26: 26210.61 | AI26: 486.89 | AJ26: 877.85 | AK26: 0 | AL26: 27575.35 | AM26: 6157.62 | AN26: 304.08 | AO26: 123.08 | AP26: 0 | AQ26: 452.5 | AR26: 452.5 | AS26: 7489.78 | AT26: 35065.13 | AU26: 0 | AV26: 0 | AW26: 0
A27: Client 07 | B27: Cluster 2 | C27: 515 | D27: SA716-3603 SL CORE | E27: SL Supported Living | F27: 2019-07-01 | H27: 2019-12-31 | J27: 184 | L27: 2 | M27: 144.81 | R27: 0 | S27: 0 | T27: 0 | U27: 0 | V27: 0 | W27: 2.69 | X27: 4.85 | Y27: 152.35 | Z27: 34.02 | AA27: 1.68 | AB27: 0.68 | AC27: 0 | AD27: 2.5 | AE27: 10.44 | AF27: 49.32 | AG27: 201.67 | AH27: 26645.04 | AI27: 494.96 | AJ27: 892.4 | AK27: 0 | AL27: 28032.4 | AM27: 6259.68 | AN27: 309.12 | AO27: 125.12 | AP27: 0 | AQ27: 460 | AR27: 1920.96 | AS27: 9074.88 | AT27: 37107.28 | AU27: 72172.41 | AV27: 0 | AW27: 365
A28: Client 08 | B28: Cluster 2 | C28: 516 | D28: SA716-3603 SL CORE | E28: SL Supported Living | F28: 2019-01-01 | H28: 2019-06-30 | J28: 181 | K28: 1 | L28: 2 | M28: 144.81 | R28: 0 | S28: 0 | T28: 0 | U28: 0 | V28: 0 | W28: 2.69 | X28: 4.85 | Y28: 152.35 | Z28: 34.02 | AA28: 1.68 | AB28: 0.68 | AC28: 0 | AD28: 2.5 | AE28: 10.44 | AF28: 49.32 | AG28: 201.67 | AH28: 26210.61 | AI28: 486.89 | AJ28: 877.85 | AK28: 0 | AL28: 27575.35 | AM28: 6157.62 | AN28: 304.08 | AO28: 123.08 | AP28: 0 | AQ28: 452.5 | AR28: 1889.64 | AS28: 8926.92 | AT28: 36502.27 | AU28: 0 | AV28: 0 | AW28: 0
A29: Client 08 | B29: Cluster 2 | C29: 516 | D29: SA716-3603 SL CORE | E29: SL Supported Living | F29: 2019-07-01 | H29: 2019-12-31 | J29: 184 | L29: 2 | M29: 144.81 | R29: 0 | S29: 0 | T29: 0 | U29: 0 | V29: 0 | W29: 2.69 | X29: 4.85 | Y29: 152.35 | Z29: 34.02 | AA29: 1.68 | AB29: 0.68 | AC29: 0 | AD29: 2.5 | AE29: 13.87 | AF29: 52.75 | AG29: 205.1 | AH29: 26645.04 | AI29: 494.96 | AJ29: 892.4 | AK29: 0 | AL29: 28032.4 | AM29: 6259.68 | AN29: 309.12 | AO29: 125.12 | AP29: 0 | AQ29: 460 | AR29: 2552.08 | AS29: 9706 | AT29: 37738.4 | AU29: 74240.67 | AV29: 0 | AW29: 365
A30: Client 09 | B30: Cluster 2 | C30: 517 | D30: SA716-3603 SL CORE | E30: SL Supported Living | F30: 2019-01-01 | H30: 2019-06-30 | J30: 181 | K30: 1 | L30: 2 | M30: 144.81 | R30: 0 | S30: 0 | T30: 0 | U30: 0 | V30: 0 | W30: 2.69 | X30: 4.85 | Y30: 152.35 | Z30: 34.02 | AA30: 1.68 | AB30: 0.68 | AC30: 0 | AD30: 3.25 | AE30: 13.87 | AF30: 53.5 | AG30: 205.85 | AH30: 26210.61 | AI30: 486.89 | AJ30: 877.85 | AK30: 0 | AL30: 27575.35 | AM30: 6157.62 | AN30: 304.08 | AO30: 123.08 | AP30: 0 | AQ30: 588.25 | AR30: 2510.47 | AS30: 9683.5 | AT30: 37258.85 | AU30: 0 | AV30: 0 | AW30: 0
A31: Client 09 | B31: Cluster 2 | C31: 517 | D31: SA716-3603 SL CORE | E31: SL Supported Living | F31: 2019-07-01 | H31: 2019-12-31 | J31: 184 | L31: 2 | M31: 144.81 | R31: 0 | S31: 0 | T31: 0 | U31: 0 | V31: 0 | W31: 2.69 | X31: 4.85 | Y31: 152.35 | Z31: 34.02 | AA31: 1.68 | AB31: 0.68 | AC31: 0 | AD31: 3.25 | AE31: 7.9 | AF31: 47.53 | AG31: 199.88 | AH31: 26645.04 | AI31: 494.96 | AJ31: 892.4 | AK31: 0 | AL31: 28032.4 | AM31: 6259.68 | AN31: 309.12 | AO31: 125.12 | AP31: 0 | AQ31: 598 | AR31: 1453.6 | AS31: 8745.52 | AT31: 36777.92 | AU31: 74036.77 | AV31: 0 | AW31: 365
A32: Client 10 | B32: Cluster 3 | C32: 518 | D32: SA716-3603 SL CORE | E32: SL Supported Living | F32: 2019-01-01 | H32: 2019-12-31 | J32: 365 | K32: 1 | L32: 3 | M32: 223.56 | N32: 0.35 | O32: 26.5 | R32: 0 | S32: 0 | T32: 0 | U32: 0 | V32: 9.275 | W32: 4.16 | X32: 4.85 | Y32: 241.845 | Z32: 35.81 | AA32: 1.68 | AB32: 1.04 | AC32: 0 | AD32: 3.2 | AE32: 7.9 | AF32: 49.63 | AG32: 291.475 | AH32: 81599.4 | AI32: 1518.4 | AJ32: 1770.25 | AK32: 3385.375 | AL32: 88273.425 | AM32: 13070.65 | AN32: 613.2 | AO32: 379.6 | AP32: 0 | AQ32: 1168 | AR32: 2883.5 | AS32: 18114.95 | AT32: 106388.375 | AU32: 106388.375 | AV32: 0 | AW32: 365
A33: Client 11 | B33: Cluster 3 | C33: 519 | D33: SA716-3603 SL CORE | E33: SL Supported Living | F33: 2019-08-01 | G33: 2019-08-15 | H33: 2019-12-31 | I33: 2019-09-30 | J33: 47 | K33: 1 | L33: 5 | M33: 364.4 | R33: 0 | S33: 0 | T33: 0 | U33: 0 | V33: 0 | W33: 6.78 | X33: 4.85 | Y33: 376.03 | Z33: 40.9 | AA33: 1.68 | AB33: 1.69 | AC33: 0 | AD33: 2.25 | AE33: 0 | AF33: 46.52 | AG33: 422.55 | AH33: 17126.8 | AI33: 318.66 | AJ33: 227.95 | AK33: 0 | AL33: 17673.41 | AM33: 1922.3 | AN33: 78.96 | AO33: 79.43 | AP33: 0 | AQ33: 105.75 | AR33: 0 | AS33: 2186.44 | AT33: 19859.85 | AU33: 0 | AV33: 0 | AW33: 0
A34: Client 11 | B34: Cluster 3 | C34: 519 | D34: SA716-3603 SL CORE | E34: SL Supported Living | F34: 2019-10-01 | H34: 2019-12-31 | J34: 92 | L34: 3 | M34: 223.56 | R34: 0 | S34: 0 | T34: 0 | U34: 0 | V34: 0 | W34: 4.16 | X34: 4.85 | Y34: 232.57 | Z34: 35.81 | AA34: 1.68 | AB34: 1.04 | AC34: 0 | AD34: 2.25 | AE34: 0 | AF34: 40.78 | AG34: 273.35 | AH34: 20567.52 | AI34: 382.72 | AJ34: 446.2 | AK34: 0 | AL34: 21396.44 | AM34: 3294.52 | AN34: 154.56 | AO34: 95.68 | AP34: 0 | AQ34: 207 | AR34: 0 | AS34: 3751.76 | AT34: 25148.2 | AU34: 45008.05 | AV34: 0 | AW34: 139
A35: Client 12 | B35: Cluster 3 | C35: 520 | D35: SA716-3603 SL CORE | E35: SL Supported Living | F35: 2019-01-01 | H35: 2019-12-31 | J35: 365 | K35: 1 | L35: 3 | M35: 223.56 | R35: 0 | S35: 0 | T35: 0 | U35: 0 | V35: 0 | W35: 4.16 | X35: 4.85 | Y35: 232.57 | Z35: 35.81 | AA35: 1.68 | AB35: 1.04 | AC35: 0 | AD35: 2.25 | AE35: 0 | AF35: 40.78 | AG35: 273.35 | AH35: 81599.4 | AI35: 1518.4 | AJ35: 1770.25 | AK35: 0 | AL35: 84888.05 | AM35: 13070.65 | AN35: 613.2 | AO35: 379.6 | AP35: 0 | AQ35: 821.25 | AR35: 0 | AS35: 14884.7 | AT35: 99772.75 | AU35: 99772.75 | AV35: 0 | AW35: 365
A36: Client 13 | B36: Cluster 3 | C36: 521 | D36: SA716-3603 SL CORE | E36: SL Supported Living | F36: 2019-01-01 | H36: 2019-12-31 | J36: 365 | K36: 1 | L36: 3 | M36: 223.56 | R36: 0 | S36: 0 | T36: 0 | U36: 0 | V36: 0 | W36: 4.16 | X36: 4.85 | Y36: 232.57 | Z36: 35.81 | AA36: 1.68 | AB36: 1.04 | AC36: 0 | AD36: 1.85 | AE36: 0 | AF36: 40.38 | AG36: 272.95 | AH36: 81599.4 | AI36: 1518.4 | AJ36: 1770.25 | AK36: 0 | AL36: 84888.05 | AM36: 13070.65 | AN36: 613.2 | AO36: 379.6 | AP36: 0 | AQ36: 675.25 | AR36: 0 | AS36: 14738.7 | AT36: 99626.75 | AU36: 99626.75 | AV36: 0 | AW36: 365
A37: Client 14 | B37: Cluster 3 | C37: 522 | D37: SA716-3603 SL CORE | E37: SL Supported Living | F37: 2019-07-01 | H37: 2019-12-31 | I37: 2019-08-31 | J37: 62 | K37: 1 | L37: 3 | M37: 223.56 | R37: 0 | S37: 0 | T37: 0 | U37: 0 | V37: 0 | W37: 4.16 | X37: 4.85 | Y37: 232.57 | Z37: 35.81 | AA37: 1.68 | AB37: 1.04 | AC37: 0 | AD37: 4.58 | AE37: 10.44 | AF37: 53.55 | AG37: 286.12 | AH37: 13860.72 | AI37: 257.92 | AJ37: 300.7 | AK37: 0 | AL37: 14419.34 | AM37: 2220.22 | AN37: 104.16 | AO37: 64.48 | AP37: 0 | AQ37: 283.96 | AR37: 647.28 | AS37: 3320.1 | AT37: 17739.44 | AU37: 0 | AV37: 0 | AW37: 0
A38: Client 14 | B38: Cluster 3 | C38: 522 | D38: SA716-3603 SL CORE | E38: SL Supported Living | F38: 2019-09-01 | H38: 2019-12-31 | J38: 122 | L38: 4 | M38: 291.71 | R38: 0 | S38: 0 | T38: 0 | U38: 0 | V38: 0 | W38: 5.42 | X38: 4.85 | Y38: 301.98 | Z38: 37.15 | AA38: 1.68 | AB38: 1.36 | AC38: 0 | AD38: 4.25 | AE38: 10.44 | AF38: 54.88 | AG38: 356.86 | AH38: 35588.62 | AI38: 661.24 | AJ38: 591.7 | AK38: 0 | AL38: 36841.56 | AM38: 4532.3 | AN38: 204.96 | AO38: 165.92 | AP38: 0 | AQ38: 518.5 | AR38: 1273.68 | AS38: 6695.36 | AT38: 43536.92 | AU38: 61276.36 | AV38: 0 | AW38: 184
A39: Client 15 | B39: Cluster 3 | C39: 523 | D39: SA716-3603 SL CORE | E39: SL Supported Living | F39: 2019-02-01 | H39: 2019-12-31 | I39: 2019-09-30 | J39: 242 | K39: 1 | L39: 2 | M39: 144.81 | R39: 0 | S39: 0 | T39: 0 | U39: 0 | V39: 0 | W39: 2.69 | X39: 4.85 | Y39: 152.35 | Z39: 34.02 | AA39: 1.68 | AB39: 0.68 | AC39: 0 | AD39: 3.25 | AE39: 2.5 | AF39: 42.13 | AG39: 194.48 | AH39: 35044.02 | AI39: 650.98 | AJ39: 1173.7 | AK39: 0 | AL39: 36868.7 | AM39: 8232.84 | AN39: 406.56 | AO39: 164.56 | AP39: 0 | AQ39: 786.5 | AR39: 605 | AS39: 10195.46 | AT39: 47064.16 | AU39: 0 | AV39: 0 | AW39: 0
A40: Client 15 | B40: Cluster 3 | C40: 523 | D40: SA716-3603 SL CORE | E40: SL Supported Living | F40: 2019-10-01 | H40: 2019-12-31 | J40: 92 | L40: 2 | M40: 144.81 | R40: 0 | S40: 0 | T40: 0 | U40: 0 | V40: 0 | W40: 2.69 | X40: 4.85 | Y40: 152.35 | Z40: 34.02 | AA40: 1.68 | AB40: 0.68 | AC40: 0 | AD40: 1.88 | AE40: 2.5 | AF40: 40.76 | AG40: 193.11 | AH40: 13322.52 | AI40: 247.48 | AJ40: 446.2 | AK40: 0 | AL40: 14016.2 | AM40: 3129.84 | AN40: 154.56 | AO40: 62.56 | AP40: 0 | AQ40: 172.96 | AR40: 230 | AS40: 3749.92 | AT40: 17766.12 | AU40: 64830.28 | AV40: 0 | AW40: 334
A41: Client 16 | B41: Cluster 3 | C41: 524 | D41: SA716-3603 SL CORE | E41: SL Supported Living | F41: 2019-01-01 | H41: 2019-12-31 | J41: 365 | K41: 1 | L41: 3 | M41: 223.56 | N41: 0.2 | O41: 38.75 | P41: 0.25 | Q41: 26.5 | R41: 0 | S41: 0 | T41: 0 | U41: 0 | V41: 14.375 | W41: 4.16 | X41: 4.85 | Y41: 246.945 | Z41: 35.81 | AA41: 1.68 | AB41: 1.04 | AC41: 0 | AD41: 2.5 | AE41: 2.5 | AF41: 43.53 | AG41: 290.475 | AH41: 81599.4 | AI41: 1518.4 | AJ41: 1770.25 | AK41: 5246.875 | AL41: 90134.925 | AM41: 13070.65 | AN41: 613.2 | AO41: 379.6 | AP41: 0 | AQ41: 912.5 | AR41: 912.5 | AS41: 15888.45 | AT41: 106023.375 | AU41: 106023.375 | AV41: 0 | AW41: 365
A42: Client 17 | B42: Cluster 4 | C42: 525 | D42: SA716-3603 SL CORE | E42: SL Supported Living | F42: 2019-01-01 | H42: 2019-12-31 | J42: 365 | K42: 1 | L42: 2 | M42: 144.81 | R42: 0 | S42: 0 | T42: 0 | U42: 0 | V42: 0 | W42: 2.69 | X42: 4.85 | Y42: 152.35 | Z42: 34.02 | AA42: 1.68 | AB42: 0.68 | AC42: 0 | AD42: 2.5 | AE42: 0 | AF42: 38.88 | AG42: 191.23 | AH42: 52855.65 | AI42: 981.85 | AJ42: 1770.25 | AK42: 0 | AL42: 55607.75 | AM42: 12417.3 | AN42: 613.2 | AO42: 248.2 | AP42: 0 | AQ42: 912.5 | AR42: 0 | AS42: 14191.2 | AT42: 69798.95 | AU42: 69798.95 | AV42: 0 | AW42: 365
A43: Client 20 | B43: Cluster 4 | C43: 528 | D43: SA716-3603 SL CORE | E43: SL Supported Living | F43: 2019-01-01 | H43: 2019-12-31 | J43: 365 | K43: 1 | L43: 3 | M43: 223.56 | R43: 0 | S43: 0 | T43: 0 | U43: 0 | V43: 0 | W43: 4.16 | X43: 4.85 | Y43: 232.57 | Z43: 35.81 | AA43: 1.68 | AB43: 1.04 | AC43: 0 | AD43: 3.47 | AE43: 0 | AF43: 42 | AG43: 274.57 | AH43: 81599.4 | AI43: 1518.4 | AJ43: 1770.25 | AK43: 0 | AL43: 84888.05 | AM43: 13070.65 | AN43: 613.2 | AO43: 379.6 | AP43: 0 | AQ43: 1266.55 | AR43: 0 | AS43: 15330 | AT43: 100218.05 | AU43: 100218.05 | AV43: 0 | AW43: 365
A44: Client 23 | B44: Cluster 4 | C44: 531 | D44: SA716-3603 SL CORE | E44: SL Supported Living | F44: 2019-01-01 | H44: 2019-12-31 | J44: 365 | K44: 1 | L44: 3 | M44: 223.56 | R44: 0 | S44: 0 | T44: 0 | U44: 0 | V44: 0 | W44: 4.16 | X44: 4.85 | Y44: 232.57 | Z44: 35.81 | AA44: 1.68 | AB44: 1.04 | AC44: 0 | AD44: 3.5 | AE44: 0 | AF44: 42.03 | AG44: 274.6 | AH44: 81599.4 | AI44: 1518.4 | AJ44: 1770.25 | AK44: 0 | AL44: 84888.05 | AM44: 13070.65 | AN44: 613.2 | AO44: 379.6 | AP44: 0 | AQ44: 1277.5 | AR44: 0 | AS44: 15340.95 | AT44: 100229 | AU44: 100229 | AV44: 0 | AW44: 365
A45: Client 24 | B45: Cluster 4 | C45: 532 | D45: SA716-3603 SL CORE | E45: SL Supported Living | F45: 2019-01-01 | H45: 2019-12-31 | J45: 365 | K45: 1 | L45: 2 | M45: 144.81 | R45: 0 | S45: 0 | T45: 0 | U45: 0 | V45: 0 | W45: 2.69 | X45: 4.85 | Y45: 152.35 | Z45: 34.02 | AA45: 1.68 | AB45: 0.68 | AC45: 0 | AD45: 3.5 | AE45: 7.9 | AF45: 47.78 | AG45: 200.13 | AH45: 52855.65 | AI45: 981.85 | AJ45: 1770.25 | AK45: 0 | AL45: 55607.75 | AM45: 12417.3 | AN45: 613.2 | AO45: 248.2 | AP45: 0 | AQ45: 1277.5 | AR45: 2883.5 | AS45: 17439.7 | AT45: 73047.45 | AU45: 73047.45 | AV45: 0 | AW45: 365
A46: Client 25 | B46: Cluster 4 | C46: 533 | D46: SA716-3603 SL CORE | E46: SL Supported Living | F46: 2019-06-05 | G46: 2019-06-06 | H46: 2019-12-31 | I46: 2019-07-30 | J46: 55 | K46: 1 | L46: 3 | M46: 223.56 | R46: 0 | S46: 0 | T46: 0 | U46: 0 | V46: 0 | W46: 4.16 | X46: 4.85 | Y46: 232.57 | Z46: 35.81 | AA46: 1.68 | AB46: 1.04 | AC46: 0 | AD46: 5.76 | AE46: 13.87 | AF46: 58.16 | AG46: 290.73 | AH46: 12295.8 | AI46: 228.8 | AJ46: 266.75 | AK46: 0 | AL46: 12791.35 | AM46: 1969.55 | AN46: 92.4 | AO46: 57.2 | AP46: 0 | AQ46: 316.8 | AR46: 762.85 | AS46: 3198.8 | AT46: 15990.15 | AU46: 15990.15 | AV46: 0 | AW46: 55
A47: Client 27 | B47: Cluster 4 | C47: 535 | D47: SA716-3603 SL CORE | E47: SL Supported Living | F47: 2019-09-24 | H47: 2019-10-31 | I47: 2019-09-27 | J47: 4 | K47: 1 | L47: 7 | M47: 291.71 | R47: 0 | S47: 0 | T47: 0 | U47: 0 | V47: 0 | W47: 9.24 | X47: 4.85 | Y47: 305.8 | Z47: 50.22 | AA47: 1.68 | AB47: 2.31 | AC47: 0 | AD47: 5.02 | AE47: 2.5 | AF47: 61.73 | AG47: 367.53 | AH47: 1166.84 | AI47: 36.96 | AJ47: 19.4 | AK47: 0 | AL47: 1223.2 | AM47: 200.88 | AN47: 6.72 | AO47: 9.24 | AP47: 0 | AQ47: 20.08 | AR47: 10 | AS47: 246.92 | AT47: 1470.12 | AU47: 1470.12 | AV47: 0 | AW47: 4
A48: Client 28 | B48: Cluster 4 | C48: 536 | D48: SA716-3603 SL CORE | E48: SL Supported Living | F48: 2019-01-01 | H48: 2019-04-30 | J48: 120 | K48: 1 | L48: 3 | M48: 223.56 | R48: 0 | S48: 0 | T48: 0 | U48: 0 | V48: 0 | W48: 4.16 | X48: 4.85 | Y48: 232.57 | Z48: 35.81 | AA48: 1.68 | AB48: 1.04 | AC48: 0 | AD48: 2.45 | AE48: 0 | AF48: 40.98 | AG48: 273.55 | AH48: 26827.2 | AI48: 499.2 | AJ48: 582 | AK48: 0 | AL48: 27908.4 | AM48: 4297.2 | AN48: 201.6 | AO48: 124.8 | AP48: 0 | AQ48: 294 | AR48: 0 | AS48: 4917.6 | AT48: 32826 | AU48: 32826 | AV48: 0 | AW48: 120
J49: 0 | R49: 0 | S49: 0 | T49: 0 | U49: 0 | V49: 0 | Y49: 0 | AF49: 0 | AG49: 0 | AH49: 0 | AI49: 0 | AJ49: 0 | AK49: 0 | AL49: 0 | AM49: 0 | AN49: 0 | AO49: 0 | AP49: 0 | AQ49: 0 | AR49: 0 | AS49: 0 | AT49: 0 | AU49: 0 | AV49: 0 | AW49: 0
J50: 0 | R50: 0 | S50: 0 | T50: 0 | U50: 0 | V50: 0 | Y50: 0 | AF50: 0 | AG50: 0 | AH50: 0 | AI50: 0 | AJ50: 0 | AK50: 0 | AL50: 0 | AM50: 0 | AN50: 0 | AO50: 0 | AP50: 0 | AQ50: 0 | AR50: 0 | AS50: 0 | AT50: 0 | AU50: 0 | AV50: 0 | AW50: 0
J51: 0 | R51: 0 | S51: 0 | T51: 0 | U51: 0 | V51: 0 | Y51: 0 | AF51: 0 | AG51: 0 | AH51: 0 | AI51: 0 | AJ51: 0 | AK51: 0 | AL51: 0 | AM51: 0 | AN51: 0 | AO51: 0 | AP51: 0 | AQ51: 0 | AR51: 0 | AS51: 0 | AT51: 0 | AU51: 0 | AV51: 0 | AW51: 0
J52: =IF(F52>0,+IF(I52>0,I52,H52)-IF(G52>0,G52,F52)+1,0) -> 0 | R52: 0 | S52: 0 | T52: 0 | U52: 0 | V52: =+N52*O52+P52*Q52 -> 0 | Y52: =(M52+V52+W52+X52) -> 0 | AF52: 0 | AG52: 0 | AH52: 0 | AI52: 0 | AJ52: 0 | AK52: 0 | AL52: 0 | AM52: 0 | AN52: 0 | AO52: 0 | AP52: 0 | AQ52: 0 | AR52: 0 | AS52: 0 | AT52: 0 | AU52: 0 | AV52: 0 | AW52: 0
J53: 0 | R53: 0 | S53: 0 | T53: 0 | U53: 0 | V53: 0 | Y53: 0 | AF53: 0 | AG53: 0 | AH53: 0 | AI53: 0 | AJ53: 0 | AK53: 0 | AL53: 0 | AM53: 0 | AN53: 0 | AO53: 0 | AP53: 0 | AQ53: 0 | AR53: 0 | AS53: 0 | AT53: 0 | AU53: 0 | AV53: 0 | AW53: 0
J54: 0 | R54: 0 | S54: 0 | T54: 0 | U54: 0 | V54: 0 | Y54: 0 | AF54: 0 | AG54: 0 | AH54: 0 | AI54: 0 | AJ54: 0 | AK54: 0 | AL54: 0 | AM54: 0 | AN54: 0 | AO54: 0 | AP54: 0 | AQ54: 0 | AR54: 0 | AS54: 0 | AT54: 0 | AU54: 0 | AV54: 0 | AW54: 0
J55: 0 | R55: 0 | S55: 0 | T55: 0 | U55: 0 | V55: 0 | Y55: 0 | AF55: 0 | AG55: 0 | AH55: 0 | AI55: 0 | AJ55: 0 | AK55: 0 | AL55: 0 | AM55: 0 | AN55: 0 | AO55: 0 | AP55: 0 | AQ55: 0 | AR55: 0 | AS55: 0 | AT55: 0 | AU55: 0 | AV55: 0 | AW55: 0
J56: 0 | R56: 0 | S56: 0 | T56: 0 | U56: 0 | V56: 0 | Y56: 0 | AF56: 0 | AG56: 0 | AH56: 0 | AI56: 0 | AJ56: 0 | AK56: 0 | AL56: 0 | AM56: 0 | AN56: 0 | AO56: 0 | AP56: 0 | AQ56: 0 | AR56: 0 | AS56: 0 | AT56: 0 | AU56: 0 | AV56: 0 | AW56: 0
J57: =IF(F57>0,+IF(I57>0,I57,H57)-IF(G57>0,G57,F57)+1,0) -> 0 | R57: 0 | S57: 0 | T57: 0 | U57: 0 | V57: =+N57*O57+P57*Q57 -> 0 | Y57: =(M57+V57+W57+X57) -> 0 | AF57: 0 | AG57: 0 | AH57: 0 | AI57: 0 | AJ57: 0 | AK57: 0 | AL57: 0 | AM57: 0 | AN57: 0 | AO57: 0 | AP57: 0 | AQ57: 0 | AR57: 0 | AS57: 0 | AT57: 0 | AU57: 0 | AV57: 0 | AW57: 0
AF58: =SUM(Z58:AE58) -> 0 | AG58: =+Y58+AF58 -> 0 | AH58: =M58*J58 -> 0 | AI58: =W58*J58 -> 0 | AJ58: =X58*J58 -> 0 | AK58: =V58*J58 -> 0 | AL58: =$J58*Y58 -> 0 | AM58: =$J58*Z58 -> 0 | AN58: =$J58*AA58 -> 0 | AO58: =$J58*AB58 -> 0 | AP58: =$J58*AC58 -> 0 | AQ58: =J58*AD58 -> 0 | AR58: =$J58*AE58 -> 0 | AS58: =$J58*AF58 -> 0 | AT58: =AL58+AS58 -> 0 | AU58: =IF(A59=A58,0,SUMIF($A$4:$A$4820,$A58,AL$4:AL$4820))+IF(A59=A58,0,SUMIF($A$4:$A$4820,$A58,AS$4:AS$4820)) -> 0 | AV58: 0 | AW58: =IF(A59=A58,0,SUMIF($A$4:$A$4820,$A58,J$4:J$4820))+IF(A59=A58,0,SUMIF($A$4:$A$4820,$A58)) -> 0
A59: Totals - Detail | J59: =SUBTOTAL(9,J4:J58) -> 9477 | K59: =SUBTOTAL(9,K4:K58) -> 33 | V59: =SUBTOTAL(9,V4:V58) -> 40.675 | Y59: =SUBTOTAL(9,Y4:Y58) -> 10385.075 | AF59: =SUBTOTAL(9,AF4:AF58) -> 2317.91 | AG59: 12702.985 | AH59: 2109537.83 | AI59: 39241.41 | AJ59: 45963.45 | AK59: 14299.15 | AL59: 2209041.84 | AM59: 403723.11 | AN59: 15921.36 | AO59: 9841.44 | AP59: 0 | AQ59: 18381.86 | AR59: 32326.7 | AS59: 480194.47 | AT59: 2689236.31 | AU59: 2689236.31 | AW59: =SUBTOTAL(9,AW4:AW58) -> 9477
A60: 1 | E60: SL Supported Living | J60: =SUMIF($E$4:$E$57,$E$60,J4:J57) -> 6506 | K60: =SUMIF($E$4:$E$57,$E$60,K4:K57) -> 23 | V60: =SUMIF($E$4:$E$57,$E$60,V4:V57) -> 40.675 | Y60: =SUMIF($E$4:$E$57,$E$60,Y4:Y57) -> 6726.155 | AF60: =SUMIF($E$4:$E$57,$E$60,AF4:AF57) -> 1510.8 | AG60: 8236.955 | AH60: 1259031.49 | AI60: 23429.89 | AJ60: 31554.1 | AK60: 14299.15 | AL60: 1328314.63 | AM60: 228651.96 | AN60: 10930.08 | AO60: 5877.91 | AP60: 0 | AQ60: 18381.86 | AR60: 30049.2 | AS60: 293891.01 | AT60: 1622205.64 | AU60: 1622205.64 | AV60: 0 | AW60: 6506
A61: 2 | E61: GH Group Home | J61: =SUMIF($E$4:$E$57,$E$61,J4:J58) -> 1876 | K61: =SUMIF($E$4:$E$57,$E$61,K4:K58) -> 7 | V61: =SUMIF($E$4:$E$57,$E$61,V4:V58) -> 0 | Y61: =SUMIF($E$4:$E$57,$E$61,Y4:Y58) -> 2600.26 | AF61: =SUMIF($E$4:$E$57,$E$61,AF4:AF58) -> 609.92 | AG61: 3210.18 | AH61: 476359.44 | AI61: 8858.27 | AJ61: 9098.6 | AK61: 0 | AL61: 494316.31 | AM61: 108506.1 | AN61: 3151.68 | AO61: 2218.83 | AP61: 0 | AQ61: 0 | AR61: 452.5 | AS61: 114329.11 | AT61: 608645.42 | AU61: 608645.42 | AV61: 0 | AW61: 1876
A62: 3 | E62: GTH Group Training Home | J62: =SUMIF($E$4:$E$57,$E$62,J4:J57) -> 1095 | K62: =SUMIF($E$4:$E$57,$E$62,K4:K57) -> 3 | V62: =SUMIF($E$4:$E$57,$E$62,V4:V57) -> 0 | Y62: =SUMIF($E$4:$E$57,$E$62,Y4:Y57) -> 1058.66 | AF62: =SUMIF($E$4:$E$57,$E$62,AF4:AF57) -> 197.19 | AG62: 1255.85 | AH62: 374146.9 | AI62: 6953.25 | AJ62: 5310.75 | AK62: 0 | AL62: 386410.9 | AM62: 66565.05 | AN62: 1839.6 | AO62: 1744.7 | AP62: 0 | AQ62: 0 | AR62: 1825 | AS62: 71974.35 | AT62: 458385.25 | AU62: 458385.25 | AV62: 0 | AW62: 1095
A63: DSHS/DDA Schedule H Rate History (Rev.12/2019)

Sheet 2020 JAN
A1: Program Name | D1: 3S - ABC Residential Services | F1: Provider ID | H1: =VLOOKUP(D1,[13]List!A2:B132,2,FALSE) -> 555777999 | L1: FOR PROVIDER USE ONLY DO NOT SUBMIT WITH COST REPORT | AK1: ANNUAL SERVICES PAID BY PROGRAM TYPE | AO1: =IF(AN1="","",AH2+AI2+AJ2) ->  | AR1: PROFESSIONAL SERVICES | AV1: Professional Svs Paid Calculation | AW1: =SUM(AV4:AV38) -> 0
A2: Report Period | D2: 2020-01-01 | F2: 2020-12-31 | J2: =IF($AN$1="",SUM(J4:J37),SUMIF($E$4:$E$37,$AN$1,J4:J37)) -> 9882 | K2: =IF($AN$1="",SUM(K4:K37),SUMIF($E$4:$E$37,$AN$1,K4:K37)) -> 27 | AG2: Annual Totals | AH2: =IF($AN$1="",SUM(AH4:AH37),SUMIF($E$4:$E$37,$AN$1,AH4:AH37)) -> 2209223.58 | AI2: 41076.18 | AJ2: 47927.7 | AK2: 14887.05 | AL2: 2313114.51 | AM2: 418074.48 | AN2: 16601.76 | AO2: 10306.56 | AP2: 0 | AQ2: 19280.88 | AR2: 36826.92 | AS2: 501090.6 | AT2: 2814205.11 | AU2: 2814205.11 | AV2: 0 | AW2: 9882
A3: Client Name (b) | B3: House or Cluster | C3: Client P1 ID (c) | D3: P1 Service Code/RAC (w) | E3: Program Type | F3: Rate Effective Date (d) | G3: Actual Start Date (Overrides Rate Effective Date) | H3: Rate End Date | I3: Actual End Date (Overrides Rate End Date) | J3: Resid Days Paid | K3: Client Count | L3: ISS Tier Level (e) | M3: ISS Daily Tier Rate (f) | N3: Prof Svs Hrs PCD 1 (g) | O3: Prof Svs Hrly Rate 1 (h) | P3: Prof Svs Hrs PCD 2 (i) | Q3: Prof Svs Hrly Rate 2 (j) | R3: Prof Svs Hrs PCD 3 | S3: Prof Svs Hrly Rate 3 | T3: Prof Svs Hrs PCD 4 | U3: Prof Svs Hrly Rate 4 | V3: ISS Prof Svs Daily Rate | W3: ISS CRST Tier Rate (l) | X3: ISS Hold Harmless Rate (m) | Y3: Total ISS Daily Rate | Z3: Admin Tier Rate (o) | AA3: Admin Hold Harmless (p) | AB3: Admin CRST Tier Rate (q) | AC3: Admin Cert Rate (r) | AD3: Transportion Rate (s) | AE3: Other Non-ISS Rates (t) | AF3: Total Non-ISS Daily Rate | AG3: Total ISS & Non-ISS Daily Rate | AH3: Annual ISS Paid | AI3: Annual ISS CRST Paid | AJ3: Annual ISS Hold Harmless Paid | AK3: Annual ISS Prof Svs Paid | AL3: Total Annual ISS Paid | AM3: Annual Admin Paid | AN3: Annual Admin Hold Harmless Paid | AO3: Annual Admin CRST Paid | AP3: Annual Admin Cert Paid | AQ3: Annual Transportation Paid | AR3: Annual Other Non-ISS Paid | AS3: Total Annual Non-ISS Paid | AT3: Annual ISS & Non-ISS Paid | AU3: Total ISS & Non-ISS Paid per Client | AV3: Prof Svs Paid Calculation | AW3: Total Days Paid per Client
A4: Client A | B4: House 1 | C4: 500 | D4: SA722-3603 GH CORE | E4: GH Group Home | F4: 2020-01-01 | H4: 2020-12-31 | J4: =IF(F4>0,+IF(I4>0,I4,H4)-IF(G4>0,G4,F4)+1,0) -> 366 | K4: =IF(C4<=0,"",IF(C4=C3,"",1)) -> 1 | L4: 4 | M4: 291.71 | R4: 0 | S4: 0 | T4: 0 | U4: 0 | V4: =+N4*O4+P4*Q4 -> 0 | W4: 5.42 | X4: 4.85 | Y4: =(M4+V4+W4+X4) -> 301.98 | Z4: 57.97 | AA4: 1.68 | AB4: 1.36 | AC4: 0 | AD4: 0 | AE4: 0 | AF4: =SUM(Z4:AE4) -> 61.01 | AG4: =+Y4+AF4 -> 362.99 | AH4: =M4*J4 -> 106765.86 | AI4: =W4*J4 -> 1983.72 | AJ4: =X4*J4 -> 1775.1 | AK4: =V4*J4 -> 0 | AL4: =$J4*Y4 -> 110524.68 | AM4: =$J4*Z4 -> 21217.02 | AN4: =$J4*AA4 -> 614.88 | AO4: =$J4*AB4 -> 497.76 | AP4: =$J4*AC4 -> 0 | AQ4: =J4*AD4 -> 0 | AR4: =$J4*AE4 -> 0 | AS4: =$J4*AF4 -> 22329.66 | AT4: =AL4+AS4 -> 132854.34 | AU4: =IF(A5=A4,0,SUMIF($A$4:$A$4800,$A4,AL$4:AL$4800))+IF(A5=A4,0,SUMIF($A$4:$A$4800,$A4,AS$4:AS$4800)) -> 132854.34 | AV4: =IF($O4=$AU$1,$N4*$O4*$J4,0)+IF($Q4=$AU$1,$P4*$Q4*$J4,0) -> 0 | AW4: =IF(A5=A4,0,SUMIF($A$4:$A$4800,$A4,J$4:J$4800))+IF(A5=A4,0,SUMIF($A$4:$A$4800,$A4)) -> 366
A5: Client B | B5: House 1 | C5: 501 | D5: SA722-3603 GH CORE | E5: GH Group Home | F5: 2020-01-01 | H5: 2020-12-31 | J5: 366 | K5: 1 | L5: 3 | M5: 223.56 | R5: 0 | S5: 0 | T5: 0 | U5: 0 | V5: 0 | W5: 4.16 | X5: 4.85 | Y5: 232.57 | Z5: 56.63 | AA5: 1.68 | AB5: 1.04 | AC5: 0 | AD5: 0 | AE5: 0 | AF5: =SUM(Z5:AE5) -> 59.35 | AG5: =+Y5+AF5 -> 291.92 | AH5: =M5*J5 -> 81822.96 | AI5: =W5*J5 -> 1522.56 | AJ5: =X5*J5 -> 1775.1 | AK5: =V5*J5 -> 0 | AL5: =$J5*Y5 -> 85120.62 | AM5: =$J5*Z5 -> 20726.58 | AN5: =$J5*AA5 -> 614.88 | AO5: =$J5*AB5 -> 380.64 | AP5: =$J5*AC5 -> 0 | AQ5: =J5*AD5 -> 0 | AR5: =$J5*AE5 -> 0 | AS5: =$J5*AF5 -> 21722.1 | AT5: =AL5+AS5 -> 106842.72 | AU5: =IF(A6=A5,0,SUMIF($A$4:$A$4800,$A5,AL$4:AL$4800))+IF(A6=A5,0,SUMIF($A$4:$A$4800,$A5,AS$4:AS$4800)) -> 106842.72 | AV5: 0 | AW5: =IF(A6=A5,0,SUMIF($A$4:$A$4800,$A5,J$4:J$4800))+IF(A6=A5,0,SUMIF($A$4:$A$4800,$A5)) -> 366
A6: Client C | B6: House 1 | C6: 502 | D6: SA722-3603 GH CORE | E6: GH Group Home | F6: 2020-01-01 | H6: 2020-12-31 | J6: 366 | K6: 1 | L6: 3 | M6: 223.56 | R6: 0 | S6: 0 | T6: 0 | U6: 0 | V6: 0 | W6: 4.16 | X6: 4.85 | Y6: 232.57 | Z6: 56.63 | AA6: 1.68 | AB6: 1.04 | AC6: 0 | AD6: 0 | AE6: 0 | AF6: 59.35 | AG6: 291.92 | AH6: 81822.96 | AI6: 1522.56 | AJ6: 1775.1 | AK6: 0 | AL6: 85120.62 | AM6: 20726.58 | AN6: 614.88 | AO6: 380.64 | AP6: 0 | AQ6: 0 | AR6: 0 | AS6: 21722.1 | AT6: 106842.72 | AU6: 106842.72 | AV6: 0 | AW6: 366
A7: Client D | B7: House 1 | C7: 503 | D7: SA722-3603 GH CORE | E7: GH Group Home | F7: 2020-01-01 | H7: 2020-12-31 | J7: 366 | K7: 1 | L7: 2 | M7: 144.81 | R7: 0 | S7: 0 | T7: 0 | U7: 0 | V7: 0 | W7: 2.69 | X7: 4.85 | Y7: 152.35 | Z7: 54.84 | AA7: 1.68 | AB7: 0.68 | AC7: 0 | AD7: 0 | AE7: 0 | AF7: 57.2 | AG7: 209.55 | AH7: 53000.46 | AI7: 984.54 | AJ7: 1775.1 | AK7: 0 | AL7: 55760.1 | AM7: 20071.44 | AN7: 614.88 | AO7: 248.88 | AP7: 0 | AQ7: 0 | AR7: 0 | AS7: 20935.2 | AT7: 76695.3 | AU7: 76695.3 | AV7: 0 | AW7: 366
A8: Client E | B8: House 1 | C8: 504 | D8: SA722-3905 GTH State | E8: GTH Group Training Home | F8: 2020-01-01 | H8: 2020-12-31 | J8: 366 | K8: 1 | L8: 6 | M8: 441.64 | R8: 0 | S8: 0 | T8: 0 | U8: 0 | V8: 0 | W8: 8.21 | X8: 4.85 | Y8: 454.7 | Z8: 66.43 | AA8: 1.68 | AB8: 2.06 | AC8: 0 | AD8: 0 | AE8: 2.5 | AF8: 72.67 | AG8: 527.37 | AH8: 161640.24 | AI8: 3004.86 | AJ8: 1775.1 | AK8: 0 | AL8: 166420.2 | AM8: 24313.38 | AN8: 614.88 | AO8: 753.96 | AP8: 0 | AQ8: 0 | AR8: 915 | AS8: 26597.22 | AT8: 193017.42 | AU8: 193017.42 | AV8: 0 | AW8: 366
A9: Client F | B9: House 2 | C9: 505 | D9: SA722-3905 GTH State | E9: GTH Group Training Home | F9: 2020-01-01 | H9: 2020-12-31 | J9: 366 | K9: 1 | L9: 4 | M9: 291.71 | R9: 0 | S9: 0 | T9: 0 | U9: 0 | V9: 0 | W9: 5.42 | X9: 4.85 | Y9: 301.98 | Z9: 57.97 | AA9: 1.68 | AB9: 1.36 | AC9: 0 | AD9: 0 | AE9: 2.5 | AF9: 63.51 | AG9: 365.49 | AH9: 106765.86 | AI9: 1983.72 | AJ9: 1775.1 | AK9: 0 | AL9: 110524.68 | AM9: 21217.02 | AN9: 614.88 | AO9: 497.76 | AP9: 0 | AQ9: 0 | AR9: 915 | AS9: 23244.66 | AT9: 133769.34 | AU9: 133769.34 | AV9: 0 | AW9: 366
A10: Client G | B10: House 2 | C10: 506 | D10: SA722-3905 GTH State | E10: GTH Group Training Home | F10: 2020-01-01 | H10: 2020-12-31 | J10: 366 | K10: 1 | L10: 4 | M10: 291.71 | R10: 0 | S10: 0 | T10: 0 | U10: 0 | V10: 0 | W10: 5.42 | X10: 4.85 | Y10: 301.98 | Z10: 57.97 | AA10: 1.68 | AB10: 1.36 | AC10: 0 | AD10: 0 | AE10: 0 | AF10: 61.01 | AG10: 362.99 | AH10: 106765.86 | AI10: 1983.72 | AJ10: 1775.1 | AK10: 0 | AL10: 110524.68 | AM10: 21217.02 | AN10: 614.88 | AO10: 497.76 | AP10: 0 | AQ10: 0 | AR10: 0 | AS10: 22329.66 | AT10: 132854.34 | AU10: 132854.34 | AV10: 0 | AW10: 366
A11: Client H | B11: House 2 | C11: 507 | D11: SA722-3603 GH CORE | E11: GH Group Home | F11: 2020-01-01 | H11: 2020-12-31 | J11: 366 | K11: 1 | L11: 6 | M11: 441.64 | R11: 0 | S11: 0 | T11: 0 | U11: 0 | V11: 0 | W11: 8.21 | X11: 4.85 | Y11: 454.7 | Z11: 66.43 | AA11: 1.68 | AB11: 2.06 | AC11: 0 | AD11: 0 | AE11: 0 | AF11: 70.17 | AG11: 524.87 | AH11: 161640.24 | AI11: 3004.86 | AJ11: 1775.1 | AK11: 0 | AL11: 166420.2 | AM11: 24313.38 | AN11: 614.88 | AO11: 753.96 | AP11: 0 | AQ11: 0 | AR11: 0 | AS11: 25682.22 | AT11: 192102.42 | AU11: 192102.42 | AV11: 0 | AW11: 366
A12: Client 01 | B12: Cluster 1 | C12: 509 | D12: SA716-3603 SL CORE | E12: SL Supported Living | F12: 2020-01-01 | H12: 2020-12-31 | J12: 366 | K12: 1 | L12: 2 | M12: 144.81 | N12: 0.2 | O12: 38.75 | R12: 0 | S12: 0 | T12: 0 | U12: 0 | V12: 7.75 | W12: 2.69 | X12: 4.85 | Y12: 160.1 | Z12: 34.02 | AA12: 1.68 | AB12: 0.68 | AC12: 0 | AD12: 2.25 | AE12: 2.5 | AF12: 41.13 | AG12: 201.23 | AH12: 53000.46 | AI12: 984.54 | AJ12: 1775.1 | AK12: 2836.5 | AL12: 58596.6 | AM12: 12451.32 | AN12: 614.88 | AO12: 248.88 | AP12: 0 | AQ12: 823.5 | AR12: 915 | AS12: 15053.58 | AT12: 73650.18 | AU12: 73650.18 | AV12: 0 | AW12: 366
A13: Client 02 | B13: Cluster 1 | C13: 510 | D13: SA716-3603 SL CORE | E13: SL Supported Living | F13: 2020-01-01 | H13: 2020-12-31 | J13: 366 | K13: 1 | L13: 3 | M13: 223.56 | R13: 0 | S13: 0 | T13: 0 | U13: 0 | V13: 0 | W13: 4.16 | X13: 4.85 | Y13: 232.57 | Z13: 35.81 | AA13: 1.68 | AB13: 1.04 | AC13: 0 | AD13: 2.25 | AE13: 13.87 | AF13: 54.65 | AG13: 287.22 | AH13: 81822.96 | AI13: 1522.56 | AJ13: 1775.1 | AK13: 0 | AL13: 85120.62 | AM13: 13106.46 | AN13: 614.88 | AO13: 380.64 | AP13: 0 | AQ13: 823.5 | AR13: 5076.42 | AS13: 20001.9 | AT13: 105122.52 | AU13: 105122.52 | AV13: 0 | AW13: 366
A14: Client 03 | B14: Cluster 1 | C14: 511 | D14: SA716-3603 SL CORE | E14: SL Supported Living | F14: 2020-01-01 | H14: 2020-12-31 | J14: 366 | K14: 1 | L14: 2 | M14: 144.81 | R14: 0 | S14: 0 | T14: 0 | U14: 0 | V14: 0 | W14: 2.69 | X14: 4.85 | Y14: 152.35 | Z14: 34.02 | AA14: 1.68 | AB14: 0.68 | AC14: 0 | AD14: 1.85 | AE14: 7.9 | AF14: 46.13 | AG14: 198.48 | AH14: 53000.46 | AI14: 984.54 | AJ14: 1775.1 | AK14: 0 | AL14: 55760.1 | AM14: 12451.32 | AN14: 614.88 | AO14: 248.88 | AP14: 0 | AQ14: 677.1 | AR14: 2891.4 | AS14: 16883.58 | AT14: 72643.68 | AU14: 72643.68 | AV14: 0 | AW14: 366
A15: Client 04 | B15: Cluster 2 | C15: 512 | D15: SA716-3603 SL CORE | E15: SL Supported Living | F15: 2020-01-01 | H15: 2020-12-31 | J15: 366 | K15: 1 | L15: 3 | M15: 223.56 | N15: 0.35 | O15: 26.5 | R15: 0 | S15: 0 | T15: 0 | U15: 0 | V15: 9.275 | W15: 4.16 | X15: 4.85 | Y15: 241.845 | Z15: 35.81 | AA15: 1.68 | AB15: 1.04 | AC15: 0 | AD15: 4.58 | AE15: 7.9 | AF15: 51.01 | AG15: 292.855 | AH15: 81822.96 | AI15: 1522.56 | AJ15: 1775.1 | AK15: 3394.65 | AL15: 88515.27 | AM15: 13106.46 | AN15: 614.88 | AO15: 380.64 | AP15: 0 | AQ15: 1676.28 | AR15: 2891.4 | AS15: 18669.66 | AT15: 107184.93 | AU15: 107184.93 | AV15: 0 | AW15: 366
A16: Client 06 | B16: Cluster 2 | C16: 514 | D16: SA716-3603 SL CORE | E16: SL Supported Living | F16: 2020-01-01 | H16: 2020-12-31 | J16: 366 | K16: 1 | L16: 3 | M16: 223.56 | R16: 0 | S16: 0 | T16: 0 | U16: 0 | V16: 0 | W16: 4.16 | X16: 4.85 | Y16: 232.57 | Z16: 35.81 | AA16: 1.68 | AB16: 1.04 | AC16: 0 | AD16: 2.35 | AE16: 0 | AF16: 40.88 | AG16: 273.45 | AH16: 81822.96 | AI16: 1522.56 | AJ16: 1775.1 | AK16: 0 | AL16: 85120.62 | AM16: 13106.46 | AN16: 614.88 | AO16: 380.64 | AP16: 0 | AQ16: 860.1 | AR16: 0 | AS16: 14962.08 | AT16: 100082.7 | AU16: 100082.7 | AV16: 0 | AW16: 366
A17: Client 07 | B17: Cluster 2 | C17: 515 | D17: SA716-3603 SL CORE | E17: SL Supported Living | F17: 2020-01-01 | H17: 2020-12-31 | J17: 366 | K17: 1 | L17: 2 | M17: 144.81 | R17: 0 | S17: 0 | T17: 0 | U17: 0 | V17: 0 | W17: 2.69 | X17: 4.85 | Y17: 152.35 | Z17: 34.02 | AA17: 1.68 | AB17: 0.68 | AC17: 0 | AD17: 2.5 | AE17: 10.44 | AF17: 49.32 | AG17: 201.67 | AH17: 53000.46 | AI17: 984.54 | AJ17: 1775.1 | AK17: 0 | AL17: 55760.1 | AM17: 12451.32 | AN17: 614.88 | AO17: 248.88 | AP17: 0 | AQ17: 915 | AR17: 3821.04 | AS17: 18051.12 | AT17: 73811.22 | AU17: 73811.22 | AV17: 0 | AW17: 366
A18: Client 08 | B18: Cluster 2 | C18: 516 | D18: SA716-3603 SL CORE | E18: SL Supported Living | F18: 2020-01-01 | H18: 2020-12-31 | J18: 366 | K18: 1 | L18: 2 | M18: 144.81 | R18: 0 | S18: 0 | T18: 0 | U18: 0 | V18: 0 | W18: 2.69 | X18: 4.85 | Y18: 152.35 | Z18: 34.02 | AA18: 1.68 | AB18: 0.68 | AC18: 0 | AD18: 2.5 | AE18: 13.87 | AF18: 52.75 | AG18: 205.1 | AH18: 53000.46 | AI18: 984.54 | AJ18: 1775.1 | AK18: 0 | AL18: 55760.1 | AM18: 12451.32 | AN18: 614.88 | AO18: 248.88 | AP18: 0 | AQ18: 915 | AR18: 5076.42 | AS18: 19306.5 | AT18: 75066.6 | AU18: 75066.6 | AV18: 0 | AW18: 366
A19: Client 09 | B19: Cluster 2 | C19: 517 | D19: SA716-3603 SL CORE | E19: SL Supported Living | F19: 2020-01-01 | H19: 2020-12-31 | J19: 366 | K19: 1 | L19: 2 | M19: 144.81 | R19: 0 | S19: 0 | T19: 0 | U19: 0 | V19: 0 | W19: 2.69 | X19: 4.85 | Y19: 152.35 | Z19: 34.02 | AA19: 1.68 | AB19: 0.68 | AC19: 0 | AD19: 3.25 | AE19: 7.9 | AF19: 47.53 | AG19: 199.88 | AH19: 53000.46 | AI19: 984.54 | AJ19: 1775.1 | AK19: 0 | AL19: 55760.1 | AM19: 12451.32 | AN19: 614.88 | AO19: 248.88 | AP19: 0 | AQ19: 1189.5 | AR19: 2891.4 | AS19: 17395.98 | AT19: 73156.08 | AU19: 73156.08 | AV19: 0 | AW19: 366
A20: Client 10 | B20: Cluster 3 | C20: 518 | D20: SA716-3603 SL CORE | E20: SL Supported Living | F20: 2020-01-01 | H20: 2020-12-31 | J20: 366 | K20: 1 | L20: 3 | M20: 223.56 | N20: 0.35 | O20: 26.5 | R20: 0 | S20: 0 | T20: 0 | U20: 0 | V20: 9.275 | W20: 4.16 | X20: 4.85 | Y20: 241.845 | Z20: 35.81 | AA20: 1.68 | AB20: 1.04 | AC20: 0 | AD20: 3.2 | AE20: 7.9 | AF20: 49.63 | AG20: 291.475 | AH20: 81822.96 | AI20: 1522.56 | AJ20: 1775.1 | AK20: 3394.65 | AL20: 88515.27 | AM20: 13106.46 | AN20: 614.88 | AO20: 380.64 | AP20: 0 | AQ20: 1171.2 | AR20: 2891.4 | AS20: 18164.58 | AT20: 106679.85 | AU20: 106679.85 | AV20: 0 | AW20: 366
A21: Client 11 | B21: Cluster 3 | C21: 519 | D21: SA716-3603 SL CORE | E21: SL Supported Living | F21: 2020-01-01 | H21: 2020-12-31 | J21: 366 | K21: 1 | L21: 3 | M21: 223.56 | R21: 0 | S21: 0 | T21: 0 | U21: 0 | V21: 0 | W21: 4.16 | X21: 4.85 | Y21: 232.57 | Z21: 35.81 | AA21: 1.68 | AB21: 1.04 | AC21: 0 | AD21: 2.25 | AE21: 0 | AF21: 40.78 | AG21: 273.35 | AH21: 81822.96 | AI21: 1522.56 | AJ21: 1775.1 | AK21: 0 | AL21: 85120.62 | AM21: 13106.46 | AN21: 614.88 | AO21: 380.64 | AP21: 0 | AQ21: 823.5 | AR21: 0 | AS21: 14925.48 | AT21: 100046.1 | AU21: 100046.1 | AV21: 0 | AW21: 366
A22: Client 12 | B22: Cluster 3 | C22: 520 | D22: SA716-3603 SL CORE | E22: SL Supported Living | F22: 2020-01-01 | H22: 2020-12-31 | J22: 366 | K22: 1 | L22: 3 | M22: 223.56 | R22: 0 | S22: 0 | T22: 0 | U22: 0 | V22: 0 | W22: 4.16 | X22: 4.85 | Y22: 232.57 | Z22: 35.81 | AA22: 1.68 | AB22: 1.04 | AC22: 0 | AD22: 2.25 | AE22: 0 | AF22: 40.78 | AG22: 273.35 | AH22: 81822.96 | AI22: 1522.56 | AJ22: 1775.1 | AK22: 0 | AL22: 85120.62 | AM22: 13106.46 | AN22: 614.88 | AO22: 380.64 | AP22: 0 | AQ22: 823.5 | AR22: 0 | AS22: 14925.48 | AT22: 100046.1 | AU22: 100046.1 | AV22: 0 | AW22: 366
A23: Client 13 | B23: Cluster 3 | C23: 521 | D23: SA716-3603 SL CORE | E23: SL Supported Living | F23: 2020-01-01 | H23: 2020-12-31 | J23: 366 | K23: 1 | L23: 3 | M23: 223.56 | R23: 0 | S23: 0 | T23: 0 | U23: 0 | V23: 0 | W23: 4.16 | X23: 4.85 | Y23: 232.57 | Z23: 35.81 | AA23: 1.68 | AB23: 1.04 | AC23: 0 | AD23: 1.85 | AE23: 0 | AF23: 40.38 | AG23: 272.95 | AH23: 81822.96 | AI23: 1522.56 | AJ23: 1775.1 | AK23: 0 | AL23: 85120.62 | AM23: 13106.46 | AN23: 614.88 | AO23: 380.64 | AP23: 0 | AQ23: 677.1 | AR23: 0 | AS23: 14779.08 | AT23: 99899.7 | AU23: 99899.7 | AV23: 0 | AW23: 366
A24: Client 14 | B24: Cluster 3 | C24: 522 | D24: SA716-3603 SL CORE | E24: SL Supported Living | F24: 2020-01-01 | H24: 2020-12-31 | J24: 366 | K24: 1 | L24: 4 | M24: 291.71 | R24: 0 | S24: 0 | T24: 0 | U24: 0 | V24: 0 | W24: 5.42 | X24: 4.85 | Y24: 301.98 | Z24: 37.15 | AA24: 1.68 | AB24: 1.36 | AC24: 0 | AD24: 4.25 | AE24: 10.44 | AF24: 54.88 | AG24: 356.86 | AH24: 106765.86 | AI24: 1983.72 | AJ24: 1775.1 | AK24: 0 | AL24: 110524.68 | AM24: 13596.9 | AN24: 614.88 | AO24: 497.76 | AP24: 0 | AQ24: 1555.5 | AR24: 3821.04 | AS24: 20086.08 | AT24: 130610.76 | AU24: 130610.76 | AV24: 0 | AW24: 366
A25: Client 15 | B25: Cluster 3 | C25: 523 | D25: SA716-3603 SL CORE | E25: SL Supported Living | F25: 2020-01-01 | H25: 2020-12-31 | J25: 366 | K25: 1 | L25: 2 | M25: 144.81 | R25: 0 | S25: 0 | T25: 0 | U25: 0 | V25: 0 | W25: 2.69 | X25: 4.85 | Y25: 152.35 | Z25: 34.02 | AA25: 1.68 | AB25: 0.68 | AC25: 0 | AD25: 1.88 | AE25: 2.5 | AF25: 40.76 | AG25: 193.11 | AH25: 53000.46 | AI25: 984.54 | AJ25: 1775.1 | AK25: 0 | AL25: 55760.1 | AM25: 12451.32 | AN25: 614.88 | AO25: 248.88 | AP25: 0 | AQ25: 688.08 | AR25: 915 | AS25: 14918.16 | AT25: 70678.26 | AU25: 70678.26 | AV25: 0 | AW25: 366
A26: Client 16 | B26: Cluster 3 | C26: 524 | D26: SA716-3603 SL CORE | E26: SL Supported Living | F26: 2020-01-01 | H26: 2020-12-31 | J26: 366 | K26: 1 | L26: 3 | M26: 223.56 | N26: 0.2 | O26: 38.75 | P26: 0.25 | Q26: 26.5 | R26: 0 | S26: 0 | T26: 0 | U26: 0 | V26: 14.375 | W26: 4.16 | X26: 4.85 | Y26: 246.945 | Z26: 35.81 | AA26: 1.68 | AB26: 1.04 | AC26: 0 | AD26: 2.5 | AE26: 2.5 | AF26: 43.53 | AG26: 290.475 | AH26: 81822.96 | AI26: 1522.56 | AJ26: 1775.1 | AK26: 5261.25 | AL26: 90381.87 | AM26: 13106.46 | AN26: 614.88 | AO26: 380.64 | AP26: 0 | AQ26: 915 | AR26: 915 | AS26: 15931.98 | AT26: 106313.85 | AU26: 106313.85 | AV26: 0 | AW26: 366
A27: Client 17 | B27: Cluster 4 | C27: 525 | D27: SA716-3603 SL CORE | E27: SL Supported Living | F27: 2020-01-01 | H27: 2020-12-31 | J27: 366 | K27: 1 | L27: 2 | M27: 144.81 | R27: 0 | S27: 0 | T27: 0 | U27: 0 | V27: 0 | W27: 2.69 | X27: 4.85 | Y27: 152.35 | Z27: 34.02 | AA27: 1.68 | AB27: 0.68 | AC27: 0 | AD27: 2.5 | AE27: 0 | AF27: 38.88 | AG27: 191.23 | AH27: 53000.46 | AI27: 984.54 | AJ27: 1775.1 | AK27: 0 | AL27: 55760.1 | AM27: 12451.32 | AN27: 614.88 | AO27: 248.88 | AP27: 0 | AQ27: 915 | AR27: 0 | AS27: 14230.08 | AT27: 69990.18 | AU27: 69990.18 | AV27: 0 | AW27: 366
A28: Client 20 | B28: Cluster 4 | C28: 528 | D28: SA716-3603 SL CORE | E28: SL Supported Living | F28: 2020-01-01 | H28: 2020-12-31 | J28: 366 | K28: 1 | L28: 3 | M28: 223.56 | R28: 0 | S28: 0 | T28: 0 | U28: 0 | V28: 0 | W28: 4.16 | X28: 4.85 | Y28: 232.57 | Z28: 35.81 | AA28: 1.68 | AB28: 1.04 | AC28: 0 | AD28: 3.47 | AE28: 0 | AF28: 42 | AG28: 274.57 | AH28: 81822.96 | AI28: 1522.56 | AJ28: 1775.1 | AK28: 0 | AL28: 85120.62 | AM28: 13106.46 | AN28: 614.88 | AO28: 380.64 | AP28: 0 | AQ28: 1270.02 | AR28: 0 | AS28: 15372 | AT28: 100492.62 | AU28: 100492.62 | AV28: 0 | AW28: 366
A29: Client 23 | B29: Cluster 4 | C29: 531 | D29: SA716-3603 SL CORE | E29: SL Supported Living | F29: 2020-01-01 | H29: 2020-12-31 | J29: 366 | K29: 1 | L29: 3 | M29: 223.56 | R29: 0 | S29: 0 | T29: 0 | U29: 0 | V29: 0 | W29: 4.16 | X29: 4.85 | Y29: 232.57 | Z29: 35.81 | AA29: 1.68 | AB29: 1.04 | AC29: 0 | AD29: 3.5 | AE29: 0 | AF29: 42.03 | AG29: 274.6 | AH29: 81822.96 | AI29: 1522.56 | AJ29: 1775.1 | AK29: 0 | AL29: 85120.62 | AM29: 13106.46 | AN29: 614.88 | AO29: 380.64 | AP29: 0 | AQ29: 1281 | AR29: 0 | AS29: 15382.98 | AT29: 100503.6 | AU29: 100503.6 | AV29: 0 | AW29: 366
A30: Client 24 | B30: Cluster 4 | C30: 532 | D30: SA716-3603 SL CORE | E30: SL Supported Living | F30: 2020-01-01 | H30: 2020-12-31 | J30: 366 | K30: 1 | L30: 2 | M30: 144.81 | R30: 0 | S30: 0 | T30: 0 | U30: 0 | V30: 0 | W30: 2.69 | X30: 4.85 | Y30: 152.35 | Z30: 34.02 | AA30: 1.68 | AB30: 0.68 | AC30: 0 | AD30: 3.5 | AE30: 7.9 | AF30: 47.78 | AG30: 200.13 | AH30: 53000.46 | AI30: 984.54 | AJ30: 1775.1 | AK30: 0 | AL30: 55760.1 | AM30: 12451.32 | AN30: 614.88 | AO30: 248.88 | AP30: 0 | AQ30: 1281 | AR30: 2891.4 | AS30: 17487.48 | AT30: 73247.58 | AU30: 73247.58 | AV30: 0 | AW30: 366
J31: 0 | R31: 0 | S31: 0 | T31: 0 | U31: 0 | V31: 0 | Y31: 0 | AF31: 0 | AG31: 0 | AH31: 0 | AI31: 0 | AJ31: 0 | AK31: 0 | AL31: 0 | AM31: 0 | AN31: 0 | AO31: 0 | AP31: 0 | AQ31: 0 | AR31: 0 | AS31: 0 | AT31: 0 | AU31: 0 | AV31: 0 | AW31: 0
J32: =IF(F32>0,+IF(I32>0,I32,H32)-IF(G32>0,G32,F32)+1,0) -> 0 | R32: 0 | S32: 0 | T32: 0 | U32: 0 | V32: =+N32*O32+P32*Q32 -> 0 | Y32: =(M32+V32+W32+X32) -> 0 | AF32: 0 | AG32: 0 | AH32: 0 | AI32: 0 | AJ32: 0 | AK32: 0 | AL32: 0 | AM32: 0 | AN32: 0 | AO32: 0 | AP32: 0 | AQ32: 0 | AR32: 0 | AS32: 0 | AT32: 0 | AU32: 0 | AV32: 0 | AW32: 0
J33: 0 | R33: 0 | S33: 0 | T33: 0 | U33: 0 | V33: 0 | Y33: 0 | AF33: 0 | AG33: 0 | AH33: 0 | AI33: 0 | AJ33: 0 | AK33: 0 | AL33: 0 | AM33: 0 | AN33: 0 | AO33: 0 | AP33: 0 | AQ33: 0 | AR33: 0 | AS33: 0 | AT33: 0 | AU33: 0 | AV33: 0 | AW33: 0
J34: 0 | R34: 0 | S34: 0 | T34: 0 | U34: 0 | V34: 0 | Y34: 0 | AF34: 0 | AG34: 0 | AH34: 0 | AI34: 0 | AJ34: 0 | AK34: 0 | AL34: 0 | AM34: 0 | AN34: 0 | AO34: 0 | AP34: 0 | AQ34: 0 | AR34: 0 | AS34: 0 | AT34: 0 | AU34: 0 | AV34: 0 | AW34: 0
J35: 0 | R35: 0 | S35: 0 | T35: 0 | U35: 0 | V35: 0 | Y35: 0 | AF35: 0 | AG35: 0 | AH35: 0 | AI35: 0 | AJ35: 0 | AK35: 0 | AL35: 0 | AM35: 0 | AN35: 0 | AO35: 0 | AP35: 0 | AQ35: 0 | AR35: 0 | AS35: 0 | AT35: 0 | AU35: 0 | AV35: 0 | AW35: 0
J36: 0 | R36: 0 | S36: 0 | T36: 0 | U36: 0 | V36: 0 | Y36: 0 | AF36: 0 | AG36: 0 | AH36: 0 | AI36: 0 | AJ36: 0 | AK36: 0 | AL36: 0 | AM36: 0 | AN36: 0 | AO36: 0 | AP36: 0 | AQ36: 0 | AR36: 0 | AS36: 0 | AT36: 0 | AU36: 0 | AV36: 0 | AW36: 0
J37: 0 | K37: =IF(C37<=0,"",IF(C37=C36,"",1)) ->  | R37: 0 | S37: 0 | T37: 0 | U37: 0 | V37: 0 | Y37: 0 | AF37: 0 | AG37: 0 | AH37: 0 | AI37: 0 | AJ37: 0 | AK37: 0 | AL37: 0 | AM37: 0 | AN37: 0 | AO37: 0 | AP37: 0 | AQ37: 0 | AR37: 0 | AS37: 0 | AT37: 0 | AU37: 0 | AV37: 0 | AW37: 0
AF38: =SUM(Z38:AE38) -> 0 | AG38: =+Y38+AF38 -> 0 | AH38: =M38*J38 -> 0 | AI38: =W38*J38 -> 0 | AJ38: =X38*J38 -> 0 | AK38: =V38*J38 -> 0 | AL38: =$J38*Y38 -> 0 | AM38: 0 | AN38: 0 | AO38: 0 | AQ38: =J38*AD38 -> 0 | AR38: =$J38*AE38 -> 0 | AS38: 0 | AT38: =AL38+AS38 -> 0 | AU38: =IF(A39=A38,0,SUMIF($A$4:$A$4800,$A38,AL$4:AL$4800))+IF(A39=A38,0,SUMIF($A$4:$A$4800,$A38,AS$4:AS$4800)) -> 0 | AV38: =IF($O38=$AU$1,$N38*$O38*$J38,0)+IF($Q38=$AU$1,$P38*$Q38*$J38,0) -> 0 | AW38: =IF(C39=C38,0,SUMIF($C$4:$C$4592,$C38,J$4:J$4592))+IF(C39=C38,0,SUMIF($C$5:$C$4593,$C38)) -> 0
A39: Totals - Detail | J39: =SUBTOTAL(9,J4:J38) -> 9882 | K39: =SUBTOTAL(9,K4:K38) -> 27 | V39: =SUBTOTAL(9,V4:V38) -> 40.675 | Y39: =SUBTOTAL(9,Y4:Y38) -> 6319.985 | AF39: =SUBTOTAL(9,AF4:AF38) -> 1369.1 | AG39: 7689.085 | AH39: 2209223.58 | AI39: 41076.18 | AJ39: 47927.7 | AK39: 14887.05 | AL39: 2313114.51 | AM39: 418074.48 | AN39: 16601.76 | AO39: 10306.56 | AP39: 0 | AQ39: 19280.88 | AR39: 36826.92 | AS39: 501090.6 | AT39: 2814205.11 | AU39: 2814205.11 | AW39: =SUBTOTAL(9,AW4:AW38) -> 9882
A40: 1 | E40: SL Supported Living | J40: =SUMIF($E$4:$E$37,$E$40,J4:J37) -> 6954 | K40: =SUMIF($E$4:$E$37,$E$40,K4:K37) -> 19 | V40: =SUMIF($E$4:$E$37,$E$40,V4:V37) -> 40.675 | Y40: =SUMIF($E$4:$E$37,$E$40,Y4:Y37) -> 3887.155 | AF40: =SUMIF($E$4:$E$37,$E$40,AF4:AF37) -> 864.83 | AG40: 4751.985 | AH40: 1348999.14 | AI40: 25085.64 | AJ40: 33726.9 | AK40: 14887.05 | AL40: 1422698.73 | AM40: 244272.06 | AN40: 11682.72 | AO40: 6295.2 | AP40: 0 | AQ40: 19280.88 | AR40: 34996.92 | AS40: 316527.78 | AT40: 1739226.51 | AU40: 1739226.51 | AV40: 0 | AW40: 6954
A41: 2 | E41: GH Group Home | J41: =SUMIF($E$4:$E$37,$E$41,J4:J38) -> 1830 | K41: =SUMIF($E$4:$E$37,$E$41,K4:K38) -> 5 | V41: =SUMIF($E$4:$E$37,$E$41,V4:V38) -> 0 | Y41: =SUMIF($E$4:$E$37,$E$41,Y4:Y38) -> 1374.17 | AF41: =SUMIF($E$4:$E$37,$E$41,AF4:AF38) -> 307.08 | AG41: 1681.25 | AH41: 485052.48 | AI41: 9018.24 | AJ41: 8875.5 | AK41: 0 | AL41: 502946.22 | AM41: 107055 | AN41: 3074.4 | AO41: 2261.88 | AP41: 0 | AQ41: 0 | AR41: 0 | AS41: 112391.28 | AT41: 615337.5 | AU41: 615337.5 | AV41: 0 | AW41: 1830
A42: 3 | E42: GTH Group Training Home | J42: =SUMIF($E$4:$E$37,$E$42,J4:J37) -> 1098 | K42: =SUMIF($E$4:$E$37,$E$42,K4:K37) -> 3 | V42: =SUMIF($E$4:$E$37,$E$42,V4:V37) -> 0 | Y42: =SUMIF($E$4:$E$37,$E$42,Y4:Y37) -> 1058.66 | AF42: =SUMIF($E$4:$E$37,$E$42,AF4:AF37) -> 197.19 | AG42: 1255.85 | AH42: 375171.96 | AI42: 6972.3 | AJ42: 5325.3 | AK42: 0 | AL42: 387469.56 | AM42: 66747.42 | AN42: 1844.64 | AO42: 1749.48 | AP42: 0 | AQ42: 0 | AR42: 1830 | AS42: 72171.54 | AT42: 459641.1 | AU42: 459641.1 | AV42: 0 | AW42: 1098
A43: DSHS/DDA Schedule H Rate History (Rev.12/2019)

Sheet List (hidden)
A1: Provider | B1: Provider ID a. | C1: Benchmark or Avg Benchmark | D1: Urban Designation | G1: Program Type
A3: 1N - Aacres WA | B3: 111414301 | C3: 18.43 | D3: MSA | G3: SL Supported Living
A4: 1N - Aacres Spokane 2 | B4: 111414310 | C4: 18.43 | D4: MSA | G4: GH Group Home
A5: 1N - Aacres Spokane 3 | B5: 111414309 | C5: 18.43 | D5: MSA | G5: GTH Group Training Home
A6: 1N - Adult Guidance & Empowerment Service | B6: 111684901 | C6: 18.43 | D6: MSA
A7: 1N - Ambitions - Spokane | B7: 111901906 | C7: 18.43 | D7: MSA
A8: 1N - Ambitions - Wenatchee, Omak, Moses Lake | B8: 111901903 | C8: 18.275 | D8: MSA/NON-MSA
A9: 1N - ARC of Spokane | B9: 111426502 | C9: 18.43 | D9: MSA
A10: 1N - Assisted Residential Services | B10: 111705601 | C10: 18.43 | D10: MSA
A11: 1N - Community Integrated Services | B11: 111425301 | C11: 18.43 | D11: MSA
A12: 1N - Community Visions | B12: 111530102 | C12: 18.43 | D12: MSA
A13: 1N - Dreamworks Residential | B13: 111913801 | C13: 18.12 | D13: NON-MSA
A14: 1N - Drive Services | B14: 111621401 | C14: 18.43 | D14: MSA
A15: 1N - Excel Supported Living | B15: 111322002 | C15: 18.43 | D15: MSA
A16: 1N - Grant County Developmental Disabilities (DCL) | B16: 200012501 | C16: 18.12 | D16: NON-MSA
A17: 1N - Kaler House | B17: 111686001 | C17: 18.43 | D17: MSA
A18: 1N - L.M.K. | B18: 111988202 | C18: 18.12 | D18: NON-MSA
A19: 1N - Latah Services | B19: 111762501 | C19: 18.43 | D19: MSA
A20: 1N - Living In Fulfilling Environment | B20: 111777301 | C20: 18.43 | D20: MSA
A21: 1N - Mission Vista | B21: 111707401 | C21: 18.43 | D21: MSA
A22: 1N - Parent's Cooperative Society for the Handicapped (Merry Glen) | B22: 111328901 | C22: 18.43 | D22: MSA
A23: 1N - Skils'kin | B23: 111632701 | C23: 18.43 | D23: MSA
A24: 1S - Alternative Residential Services | B24: 111625401 | C24: 18.275 | D24: MSA/NON-MSA
A25: 1S - Ambitions - Kennewick | B25: 111901901 | C25: 18.43 | D25: MSA
A26: 1S - Ambitions - Yakima | B26: 111901907 | C26: 18.43 | D26: MSA
A27: 1S - Community Living | B27: 111962202 | C27: 18.43 | D27: MSA
A28: 1S - Deaf Access Washington | B28: 111321901 | C28: 18.43 | D28: MSA
A29: 1S - Elmview | B29: 111604101 | C29: 18.275 | D29: MSA/NON-MSA
A30: 1S - Habilitat | B30: 111449601 | C30: 18.12 | D30: NON-MSA
A31: 1S - Kittitas Interactive Management | B31: 111688701 | C31: 18.12 | D31: NON-MSA
A32: 1S - Reach Supported Living | B32: 209862801 | C32: 18.43 | D32: MSA
A33: 1S - Tri-Cities Residential Services | B33: 111872501 | C33: 18.43 | D33: MSA
A34: 1S - Valley Residential Services | B34: 111777901 | C34: 18.12 | D34: NON-MSA
A35: 2N - Aacres | B35: 111414307 | C35: 18.43 | D35: MSA
A36: 2N - Access Living | B36: 111675101 | C36: 18.43 | D36: MSA
A37: 2N - All Heart Agency | B37: 111961601 | C37: 18.43 | D37: MSA
A38: 2N - Alpha Supported Living Services | B38: 111320902 | C38: 18.43 | D38: MSA
A39: 2N - Ambitions Whatcom | B39: 111901908 | C39: 18.43 | D39: MSA
A40: 2N - Camelot Society | B40: 101955202 | C40: 18.43 | D40: MSA
A41: 2N - Cascade Connections | B41: 111724102 | C41: 18.43 | D41: MSA
A42: 2N - Evergreen Supported Living | B42: 111690301 | C42: 18.43 | D42: MSA
A43: 2N - Holly Community Services | B43: 111765001 | C43: 18.43 | D43: MSA
A44: 2N - La Casa de Esperanza | B44: 111390801 | C44: 18.43 | D44: MSA
A45: 2N - Puffin Island | B45: 111959501 | C45: 18.43 | D45: MSA
A46: 2N - Quilceda Community Services | B46: 111321203 | C46: 18.43 | D46: MSA
A47: 2N - Rehabco | B47: 111681901 | C47: 18.43 | D47: MSA
A48: 2N - Rescare | B48: 111968512 | C48: 18.43 | D48: MSA
A49: 2N - Sails | B49: 111805705 | C49: 18.43 | D49: MSA
A50: 2N - Service Alternatives for WA | B50: 111513304 | C50: 18.43 | D50: MSA
A51: 2N - Snohomish Supportive Living Services | B51: 111518901 | C51: 18.43 | D51: MSA
A52: 2N - Soundview Association | B52: 111830201 | C52: 18.43 | D52: MSA
A53: 2N - Steps Toward Independence | B53: 112034301 | C53: 18.43 | D53: MSA
A54: 2N - Sunrise Services | B54: 203434610 | C54: 18.43 | D54: MSA
A55: 2N - Village Community Services | B55: 111938301 | C55: 18.43 | D55: MSA
A56: 2N - Volunteers of America | B56: 200494106 | C56: 18.43 | D56: MSA
A57: 2S - Aacres | B57: 111414302 | C57: 19.03 | D57: KING
A58: 2S - Alpha Supported Living Services | B58: 111320901 | C58: 19.03 | D58: KING
A59: 2S - Ambitions | B59: 111901902 | C59: 19.03 | D59: KING
A60: 2S - Arc of King County | B60: 112013701 | C60: 19.03 | D60: KING
A61: 2S - Banchero Friends Services | B61: 111415001 | C61: 19.03 | D61: KING
A62: 2S - Bethesda Lutheran Communities | B62: 111621301 | C62: 19.03 | D62: KING
A63: 2S - Camelot Society | B63: 101955201 | C63: 19.03 | D63: KING
A64: 2S - Cascade Community Services | B64: 111875001 | C64: 19.03 | D64: KING
A65: 2S - Citizen Access Residential Resources | B65: 111533401 | C65: 19.03 | D65: KING
A66: 2S - Community Integrated Services | B66: 111425302 | C66: 19.03 | D66: KING
A67: 2S - Community Living | B67: 111962201 | C67: 19.03 | D67: KING
A68: 2S - Destiny House Operations | B68: 111992801 | C68: 19.03 | D68: KING
A69: 2S - Friendship House | B69: 111405501 | C69: 19.03 | D69: KING
A70: 2S - Greenwood Home | B70: 111913301 | C70: 19.03 | D70: KING
A71: 2S - Habilitation Services | B71: 208173701 | C71: 19.03 | D71: KING
A72: 2S - Helping Hands for the Disabled | B72: 111736002 | C72: 19.03 | D72: KING
A73: 2S - Inglewood Residential and Community Services | B73: 111568401 | C73: 19.03 | D73: KING
A74: 2S - Integrated Living Services | B74: 111789002 | C74: 19.03 | D74: KING
A75: 2S - L'Arche Noah Sealth of Seattle | B75: 111798601 | C75: 19.03 | D75: KING
A76: 2S - Life Skills Center | B76: 111499601 | C76: 19.03 | D76: KING
A77: 2S - Maksu | B77: 111577901 | C77: 19.03 | D77: KING
A78: 2S - Nellie Goodhue Group Homes | B78: 111800501 | C78: 19.03 | D78: KING
A79: 2S - Parkview Services | B79: 111456901 | C79: 19.03 | D79: KING
A80: 2S - Premier Care Services | B80: 111437001 | C80: 19.03 | D80: KING
A81: 2S - Provail | B81: 101144803 | C81: 19.03 | D81: KING
A82: 2S - Puget Sound Regional Services | B82: 111925301 | C82: 19.03 | D82: KING
A83: 2S - Res-Care Washington | B83: 111968506 | C83: 19.03 | D83: KING
A84: 2S - Sails | B84: 111805704 | C84: 19.03 | D84: KING
A85: 2S - Service Alternatives for WA | B85: 111513302 | C85: 19.03 | D85: KING
A86: 2S - Shamrock Living Services | B86: 111958301 | C86: 19.03 | D86: KING
A87: 2S - Shared Journeys | B87: 111515201 | C87: 19.03 | D87: KING
A88: 2S - Stand Together | B88: 111753401 | C88: 19.03 | D88: KING
A89: 2S - Tahoma Hills | B89: 111799101 | C89: 19.03 | D89: KING
A90: 2S - Total Living Concept | B90: 111571101 | C90: 19.03 | D90: KING
A91: 2S - United Friends Group Home | B91: 101601101 | C91: 19.03 | D91: KING
A92: 2S - Volunteers of America | B92: 200494104 | C92: 19.03 | D92: KING
A93: 3N - Aacres WA | B93: 111414304 | C93: 18.43 | D93: MSA
A94: 3N - Ambitions, WA | B94: 111901904 | C94: 18.43 | D94: MSA
A95: 3N - Communitas Group | B95: 102702801 | C95: 18.43 | D95: MSA
A96: 3N - Community Alternatives for People with Autism (CAPA) | B96: 112026801 | C96: 18.43 | D96: MSA
A97: 3N - Educational Programs in Home Living | B97: 111975401 | C97: 18.43 | D97: MSA
A98: 3N - Group Action for Peninsula People | B98: 111703801 | C98: 18.43 | D98: MSA
A99: 3N - Hope Human Services | B99: 207150601 | C99: 18.43 | D99: MSA
A100: 3N - Kitsap Residences | B100: 111781001 | C100: 18.43 | D100: MSA
A101: 3N - Kitsap Tenant Support Services | B101: 111715902 | C101: 18.43 | D101: MSA
A102: 3N - L'Arche Tahoma Hope Community | B102: 111610303 | C102: 18.43 | D102: MSA
A103: 3N - Life Force Services | B103: 111691201 | C103: 18.43 | D103: MSA
A104: 3N - NW Services for Independent Living | B104: 111812601 | C104: 18.43 | D104: MSA
A105: 3N - Options Unlimited | B105: 111904801 | C105: 18.43 | D105: MSA
A106: 3N - PAM Group Home | B106: 111728401 | C106: 18.43 | D106: MSA
A107: 3N - Puget Sound Assisted Living | B107: 111557601 | C107: 18.43 | D107: MSA
A108: 3N - Res-Care Washington | B108: 111968504 | C108: 18.43 | D108: MSA
A109: 3N - Self Determined Services | B109: 111874501 | C109: 18.43 | D109: MSA
A110: 3N - Self Reliant Endeavors | B110: 204861001 | C110: 18.43 | D110: MSA
A111: 3N - Service Alternatives for WA | B111: 111513305 | C111: 18.43 | D111: MSA
A112: 3N - Tahoma Associates | B112: 111335302 | C112: 18.43 | D112: MSA
A113: 3N - Valley Supported Living | B113: 111938101 | C113: 18.43 | D113: MSA
A114: 3S - Aacres - Clark | B114: 111414303 | C114: 18.12 | D114: NON-MSA
A115: 3S - Aacres - Thurston | B115: 111414308 | C115: 18.43 | D115: MSA
A116: 3S - ABC Residential Services | B116: 555777999 | C116: 18.43 | D116: MSA
A117: 3S - Ambitions | B117: 111901905 | C117: 18.275 | D117: MSA/NON-MSA
A118: 3S - Another Option | B118: 111619102 | C118: 18.43 | D118: MSA
A119: 3S - Arc of Clark County | B119: 102623403 | C119: 18.43 | D119: MSA
A120: 3S - Brighton Enterprises - Clark | B120: 111686601 | C120: 18.43 | D120: MSA
A121: 3S - Brighton Enterprises - Thurston | B121: 111686602 | C121: 18.43 | D121: MSA
A122: 3S - Caregivers of Washington | B122: 203690902 | C122: 18.12 | D122: NON-MSA
A123: 3S - CCH Individual Support Services | B123: 111909801 | C123: 18.12 | D123: NON-MSA
A124: 3S - Citizen Access Residential Resources | B124: 111533403 | C124: 18.43 | D124: MSA
A125: 3S - Community Resources | B125: 111977701 | C125: 18.275 | D125: MSA/NON-MSA
A126: 3S - Exceptional Foresters | B126: 111551801 | C126: 18.43 | D126: MSA
A127: 3S - Harbor Alternative Living Association | B127: 111349601 | C127: 18.12 | D127: NON-MSA
A128: 3S - Hope Human Services | B128: 207150603 | C128: 18.43 | D128: MSA
A129: 3S - Kitsap Tenant Support Services | B129: 111715901 | C129: 18.12 | D129: NON-MSA
A130: 3S - Kokua | B130: 111492901 | C130: 18.43 | D130: MSA
A131: 3S - Life Force Services - Clark | B131: 111691204 | C131: 18.43 | D131: MSA
A132: 3S - Life Force Services - Thurston | B132: 111691202 | C132: 18.43 | D132: MSA
A133: 3S - Life Works | B133: 111594402 | C133: 18.43 | D133: MSA
A134: 3S - Placeone | B134: 111512001 | C134: 18.43 | D134: MSA
A135: 3S - Reside Residential Care of Washington | B135: 111864101 | C135: 18.43 | D135: MSA
A136: 3S - ROAR | B136: 111442501 | C136: 18.43 | D136: MSA
A137: 3S - SOLO | B137: 111910501 | C137: 18.43 | D137: MSA
A138: 3S - Twin Harbors Group Home Association | B138: 111669901 | C138: 18.12 | D138: NON-MSA
A139: 3S - Vancare | B139: 111811201 | C139: 18.43 | D139: MSA
